Workbook

Sheet GESTION A
C1: GESTION DE STOCK A
A2: ADRESSE | B2: MACHINES | C2: REFERENCES | D2: DESIGNATIONS | E2: FIFO | F2: STOCKS | G2: POIDS/PIECE | H2: POIDS TOTAL
H3: =IF(G3>0,G3*F3," ") -> 
A4: A0101 | B4: SIRUGUE | C4: M110 | D4: EBAUCHE 2 FACES | F4: 17 | G4: 1123 | H4: =IF(G4>0,G4*F4," ") -> 19091
A5: A0102 | B5: SIRUGUE | C5: M110 | D5: EBAUCHE 1 FACE | F5: 23 | G5: 1753 | H5: =IF(G5>0,G5*F5," ") -> 40319
A6: A0103 | B6: SIRUGUE | C6: M110 | D6: EBAUCHE 1 FACE | F6: 24 | G6: 1753 | H6: 42072
A7: A0104 | B7: SIRUGUE | C7: M110 | D7: EBAUCHE 1 FACE | F7: 19 | G7: 1753 | H7: 33307
A8: A0105 | B8: SIRUGUE | C8: M110 | D8: EBAUCHE 1 FACE | F8: 13 | G8: 1753 | H8: 22789
A9: A0106-A | B9: SIRUGUE | C9: M40 | D9: EBAUCHE PERCEE | F9: 7 | G9: 143 | H9: 1001
A10: A0106-B | B10: SIRUGUE | C10: M40 | D10: EBAUCHE FRAISEE NON PERCEE | F10: 28 | G10: 187 | H10: 5236
A11: A0107 | B11: SIRUGUE | C11: M40 | D11: EBAUCHE FRAISEE | F11: 213 | G11: 153 | H11: 32589
A12: A0108 | B12: SIRUGUE | C12: M40 | D12: EBAUCHE FRAISEE | F12: 215 | G12: 153 | H12: 32895
A13: A0109 | B13: SIRUGUE | C13: M40 | D13: EBAUCHE | F13: 137 | G13: 190 | H13: 26030
A14: A0109 | B14: SIRUGUE | C14: M40 | D14: EBAUCHE SCS | F14: 0
A15: A0110 | B15: SIRUGUE | C15: M34 | D15: EBAUCHE FRAISEE PERCEE | F15: 29 | G15: 84 | H15: 2436
A16: A0111-A | B16: SIRUGUE | C16: M34 | D16: EBAUCHE PERCEE Ø16 | F16: 3 | G16: 98 | H16: 294
A17: A0111-B | B17: SIRUGUE | C17: M34 | D17: EBAUCHE | F17: 75 | G17: 114 | H17: 8550
A18: A0112-A | B18: SIRUGUE | C18: M14 | D18: EBAUCHE | F18: 72 | G18: 5 | H18: 360
A19: A0112-B | B19: SIRUGUE | C19: M24 | D19: EBAUCHE | F19: 188 | G19: 44 | H19: 8272
A20: A0113 | B20: SIRUGUE | C20: PC16 | D20: Ø26 | F20: 130 | G20: 110 | H20: 14300
A21: A0114 | B21: SIRUGUE | C21: PC16 | D21: SUPERIEUR CORPS 20 | F21: 180 | G21: 84 | H21: 15120
A22: A0115 | B22: SIRUGUE | C22: PC16 | D22: EBAUCHE 1 REPERE | F22: 312 | G22: 69 | H22: 21528
A23: A0116 | B23: SIRUGUE | C23: PC14 | D23: SUPERIEUR CORPS 20 | F23: 272 | G23: 60 | H23: 16320
A24: A0117 | B24: SIRUGUE | C24: PC14 | D24: SUPERIEUR CORPS 19,5 | F24: 295 | G24: 58 | H24: 17110
A25: A0118-A | B25: SIRUGUE | C25: PC14 | D25: SUPERIEUR CORPS 20 | F25: 76 | G25: 67 | H25: 5092
A26: A0118-B | B26: SIRUGUE | C26: PC14 | D26: EBAUCHE 1 REPERE | F26: 187 | G26: 42 | H26: 7854
A27: A0119-A | B27: SIRUGUE | C27: PC10 | D27: EBAUCHE FRAISEE | F27: 79 | G27: 26 | H27: 2054
A28: A0119-A | B28: SIRUGUE | C28: PC10 | D28: EBAUCHE NON FRAISEE Ø10 | F28: 76 | G28: 26 | H28: 1976
A29: A0119-B | B29: SIRUGUE | C29: PC10 | D29: EBAUCHE NON FRAISEE Ø6 | F29: 24 | G29: 20 | H29: 480
A30: A0119-B | B30: SIRUGUE | C30: PC10 | D30: EBAUCHE NON FRAISEE Ø8 | F30: 126 | G30: 14 | H30: 1764
A31: A0120-A | B31: SIRUGUE | C31: EM300 | D31: N°1 | F31: 3 | G31: 75 | H31: 225
A32: A0120-B | B32: SIRUGUE | C32: EM300 | D32: N°3 | F32: 1 | G32: 354 | H32: 354
A33: A0120-C | B33: SIRUGUE | C33: EM300 | D33: N°3 CANON EUROPEEN | F33: 5 | G33: 383 | H33: 1915
A34: A0121 | B34: SIRUGUE | C34: SC4 | D34: EBAUCHE FRAISEE | F34: 27 | G34: 560 | H34: 15120
A35: A0122-A | B35: SIRUGUE | C35: SC3 | D35: EBAUCHE FRAISEE | F35: 6 | G35: 328 | H35: 1968
A36: A0122-B | B36: SIRUGUE | C36: SC3 | D36: CANON EUROPEEN | F36: 2 | G36: 344 | H36: 688
A37: A0123 | B37: SIRUGUE | C37: SC2 | D37: EBAUCHE FRAISEE | F37: 29 | G37: 154 | H37: 4466
A38: A0124-A | B38: SIRUGUE | C38: SC1 | D38: EBAUCHE NON FRAISEE | F38: 32 | G38: 69 | H38: 2208
A39: A0124-B | B39: SIRUGUE | C39: SC1 | D39: EBAUCHE FRAISEE | F39: 68 | G39: 69 | H39: 4692
A40: A0125
A41: A0201-A | B41: SIRUGUE | C41: M50 | D41: EBAUCHE | F41: 4 | G41: 381 | H41: 1524
A42: A0201-B | B42: SIRUGUE | C42: M50 | D42: EBAUCHE 1/4 ROND | F42: 7 | G42: 695 | H42: 4865
A43: A0202 | B43: SIRUGUE | C43: M50 | D43: EBAUCHE FRAISEE Ø24 | F43: 67 | G43: 320 | H43: 21440
A44: A0203 | B44: SIRUGUE | C44: M50 | D44: EBAUCHE FRAISEE Ø34 | F44: 97 | G44: 244 | H44: 23668
A45: A0204 | B45: SIRUGUE | C45: M50 | D45: EBAUCHE PERCEE Ø21 | F45: 50 | G45: 300 | H45: 15000
A46: A0205 | B46: SIRUGUE | C46: M50 | D46: EBAUCHE Ø34 | F46: 20 | G46: 270 | H46: 5400
A47: A0206-A | B47: SIRUGUE | C47: M70 | D47: EBAUCHE Ø46 | F47: 0
A48: A0206-B | B48: SIRUGUE | C48: M70 | D48: EBAUCHE Ø47 | F48: 11 | G48: 740 | H48: 8140
A49: A0206-C | B49: SIRUGUE | C49: M70 | D49: EBAUCHE | F49: 9 | G49: 739 | H49: 6651
A50: A0207 | B50: SIRUGUE | C50: M70 | D50: EBAUCHE ED | F50: 34 | G50: 655 | H50: 22270
A51: A0208-A | B51: SIRUGUE | C51: PED 18 | D51: CORPS 18 Ø50 FRAISE | F51: 5 | G51: 976 | H51: 4880
A52: A0208-B | B52: SIRUGUE | C52: PED 18 | D52: CORPS 18 Ø50 NON FRAISE | F52: 8 | G52: 1020 | H52: 8160
A53: A0209 | B53: SIRUGUE | C53: PED 20 | D53: CORPS 20 D50 FRAISE | F53: 34 | G53: 561 | H53: 19074
A54: A0210 | B54: SIRUGUE | C54: PED 20 | D54: CORPS 20 Ø50 FRAISE SANS POINTE | F54: 18 | G54: 620 | H54: 11160
A55: A0211 | B55: SIRUGUE | C55: PED 20 | D55: CORPS 20 Ø70 FRAISE SANS POINTE | F55: 11 | G55: 1141 | H55: 12551
A56: A0212 | B56: SIRUGUE | C56: PED 20 | D56: CORPS 20 Ø70 FRAISE SANS POINTE | F56: 20 | G56: 1138 | H56: 22760
A57: A0213 | B57: SIRUGUE | C57: PED 22 | D57: CORPS 22 Ø50 FRAISE H30 | F57: 15 | G57: 590 | H57: 8850
A58: A0214 | B58: SIRUGUE | C58: PED 22 | D58: CORPS 22 Ø50 FRAISE H40 | F58: 24 | G58: 787 | H58: 18888
A59: A0215 | B59: SIRUGUE | C59: PED 22 | D59: CORPS 22 Ø70 FRAISE H30 | F59: 25 | G59: 1169 | H59: 29225
A60: A0216 | B60: SIRUGUE | C60: PED 22 | D60: CORPS 22 Ø70 FRAISE H40 | F60: 27 | G60: 1169 | H60: 31563
A61: A0217 | B61: SIRUGUE | C61: PED 22 | D61: CORPS 22 Ø70 FRAISE H40 | F61: 21 | G61: 1169 | H61: 24549
A62: A0218 | B62: SIRUGUE | C62: PED 22 | D62: CORPS 22 Ø100 FRAISE H30 | F62: 16 | G62: 1975 | H62: 31600
A63: A0219 | B63: SIRUGUE | C63: PED 22 | D63: CORPS 22 Ø100 FRAISE H30 SANS POINTE | F63: 5 | G63: 2196 | H63: 10980
A64: A0220 | B64: SIRUGUE | C64: PED 22 | D64: CORPS 22 Ø100 FRAISE H40 SANS POINTE | F64: 12 | G64: 2867 | H64: 34404
A65: A0221 | B65: SIRUGUE | C65: PED 22 | D65: CORPS 22 Ø100 FRAISE H40 SANS POINTE | F65: 8 | G65: 2880 | H65: 23040
A66: A0222 | B66: SIRUGUE | C66: PED 22 | D66: CORPS 22 Ø100 FRAISE H30 SANS POINTE | F66: 7 | G66: 2877 | H66: 20139
A67: A0223 | B67: SIRUGUE | C67: PED 22 | D67: CORPS 22 Ø110 FRAISE SANS POINTE | F67: 4 | G67: 3449 | H67: 13796
A68: A0224-A | B68: SIRUGUE | C68: PED 22 | D68: PED 22 LONG Ø22 | F68: 3 | G68: 369 | H68: 1107
A69: A0224-B | B69: SIRUGUE | C69: PED 22 | D69: PED 22 LONG Ø40 | F69: 5 | G69: 867 | H69: =IF(G69>0,G69*F69," ") -> 4335
A70: A0225 | B70: SIRUGUE | C70: TRA3 | D70: EBAUCHE | F70: 1 | G70: 560 | H70: 560
A71: A0301-A | B71: SIRUGUE | C71: PED 30 | D71: Ø30 | F71: 12 | G71: 756 | H71: 9072
A72: A0301-B | B72: SIRUGUE | C72: PED 30 | D72: Ø80 | F72: 1 | G72: 3947 | H72: 3947
A73: A0302-A | B73: SIRUGUE | C73: PED 30 | D73: Ø50 | F73: 1 | G73: 1460 | H73: 1460
A74: A0302-B | B74: SIRUGUE | C74: PED 30 | D74: Ø50 LONGUEUR + 10 MM | F74: 4 | G74: 1592 | H74: 6368
A75: A0303 | B75: SIRUGUE | C75: PED 30 | D75: Ø102 | F75: 5 | G75: 3666 | H75: 18330
A76: A0304 | B76: SIRUGUE | C76: PED 25 | D76: Ø50 | F76: 17 | G76: 1498 | H76: 25466
A77: A0305-A | B77: SIRUGUE | C77: PEMH | D77: EBAUCHE Ø30 | F77: 47 | G77: 423 | H77: 19881
A78: A0305-B | B78: SIRUGUE | C78: PEMH | D78: EBAUCHE Ø27 | F78: 19 | G78: 381 | H78: 7239
A79: A0306-A | B79: SIRUGUE | C79: PED 36 | D79: TIRANT PORTE MATRICE 428 | F79: 22 | G79: 279 | H79: 6138
A80: A0306-B | B80: SIRUGUE | C80: ED36 | D80: EBAUCHE | E80: MATELON | F80: 5 | G80: 778 | H80: 3890
A81: A0307 | B81: SIRUGUE | C81: SC3 | D81: NEZ DE BROCHE Ø30 | F81: 24
A82: A0308 | B82: SIRUGUE | C82: SC4 | D82: NEZ DE BROCHE Ø30 | F82: 20
A83: A0309 | B83: SIRUGUE | C83: SC4 | D83: NEZ DE BROCHE Ø30 | F83: 22
A84: A0310 | B84: SIRUGUE | C84: SC4 | D84: NEZ DE BROCHE Ø30 | F84: 16
A85: A0311 | B85: SIRUGUE | C85: SC4 | D85: NEZ DE BROCHE Ø30 | F85: 14
A86: A0312 | B86: SIRUGUE | C86: SC3 | D86: NEZ DE BROCHE Ø30 | F86: 24
A87: A0313 | B87: SIRUGUE | C87: SC3 | D87: NEZ DE BROCHE Ø30 | F87: 22
A88: A0314 | B88: SIRUGUE | C88: SC4 | D88: BONNET | F88: 16
A89: A0315 | B89: SIRUGUE | C89: SC4 | D89: BONNET | F89: 39
A90: A0316 | B90: SIRUGUE | C90: SC4 | D90: BONNET | F90: 39
A91: A0317 | B91: SIRUGUE | C91: SC4 | D91: BONNET | F91: 39
A92: A0318 | B92: SIRUGUE | C92: SC4 | D92: BONNET | F92: 39
A93: A0319 | B93: SIRUGUE | C93: SC3 | D93: NEZ DE BROCHE 06/22 | F93: 79
A94: A0320 | B94: SIRUGUE | C94: SC2 | D94: BONNET | F94: 97
A95: A0321 | B95: SIRUGUE | C95: SC2 | D95: BONNET | F95: 94
A96: A0322-A | B96: SIRUGUE | D96: DECHAUSSOIR
A97: A0322-B | B97: SIRUGUE | D97: DECHAUSSOIR | F97: 20
A98: A0323-A | B98: SIRUGUE | C98: M164 | D98: EBAUCHE TREMPEE | F98: 1 | G98: 4480 | H98: 4480
A99: A0323-B | B99: SIRUGUE | C99: M164 | D99: EBAUCHE | F99: 4 | G99: 4480 | H99: 17920
A100: A0324-A | B100: SIRUGUE | C100: TRA1 | D100: EBAUCHE | F100: 3 | G100: 275 | H100: 825
A101: A0324-B | B101: SIRUGUE | C101: TRA EMH | D101: EBAUCHE | F101: 5 | G101: 584 | H101: 2920
A102: A0325 | B102: SIRUGUE | C102: TRA2 | D102: EBAUCHE | F102: 41 | G102: 356 | H102: 14596
A103: A0401-A | B103: FICEP | C103: PC28 | D103: EBAUCHE FRAISEE L55 | F103: 13 | G103: 267 | H103: 3471
A104: A0401-B | B104: FICEP | C104: PC28 | D104: EBAUCHE FRAISEE L65 | F104: 29 | G104: 316 | H104: 9164
A105: A0401-C | B105: FICEP | C105: PC28 | D105: EBAUCHE FRAISEE L85 | F105: 0
A106: A0402-A | B106: FICEP | C106: PC28 | D106: EBAUCHE FRAISEE 0 ET 90° | F106: 12 | G106: 266 | H106: 3192
A107: A0402-B | B107: FICEP | C107: PC28 | D107: EBAUCHE FRAISEE 0 ET 45° | F107: 0
A108: A0403 | B108: FICEP | C108: PC32 | D108: EBAUCHE FRAISEE | F108: 20 | G108: 382 | H108: 7640
A109: A0404-A | B109: FICEP | C109: PC32 | D109: EBAUCHE FRAISEE EXCENTREE | F109: 4 | G109: 395 | H109: 1580
A110: A0404-B | B110: FICEP | C110: PC32 | D110: CANON EUROPEEN | F110: 11 | G110: 438 | H110: 4818
A111: A0405 | B111: FICEP | C111: PC40 | D111: EBAUCHE FRAISEE | F111: 7 | G111: 613 | H111: 4291
A112: A0406 | B112: FICEP | C112: PC51 | D112: EBAUCHE FRAISEE | F112: 18 | G112: 988 | H112: 17784
A113: A0407 | B113: FICEP | C113: MC79,37 | D113: EBAUCHE | F113: 21 | G113: 1871 | H113: 39291
A114: A0408 | B114: FICEP | C114: MC79,37 | D114: EBAUCHE PERCEE | F114: 3 | G114: 1042 | H114: 3126
A115: A0409 | B115: FICEP | C115: PC31 | D115: EBAUCHE PERCEE | F115: 2 | G115: 508 | H115: 1016
A116: A0410-A | B116: FICEP | C116: PC39,5 | D116: EBAUCHE PERCEE | F116: 38 | G116: 848 | H116: 32224
A117: A0410-B | B117: FICEP | C117: PC40 | D117: EBAUCHE PERCEE | F117: 4 | G117: 871 | H117: 3484
A118: A0411 | B118: FICEP | C118: PC45 | D118: EBAUCHE PERCEE | F118: 34 | G118: 1083 | H118: 36822
A119: A0412-A | B119: FICEP | C119: PC45 | D119: EBAUCHE PERCEE 2 REPERES 0° ET 90° | F119: 6 | G119: 783 | H119: 4698
A120: A0412-B | B120: FICEP | C120: PC45 | D120: EBAUCHE PERCEE Ø34 +Ø3 2 REPERES 0°ET 90° | F120: 18 | G120: 1125 | H120: 20250
A121: A0413 | B121: FICEP | C121: M50,8 | D121: EBAUCHE PERCEE | F121: 56 | G121: 390 | H121: 21840
A122: A0414 | B122: FICEP | C122: M50,8 | D122: EBAUCHE PERCEE | F122: 83 | G122: 390 | H122: 32370
A123: A0415-A | B123: FICEP | C123: M73 | D123: EBAUCHE | F123: 2 | G123: 680 | H123: 1360
A124: A0415-B | B124: FICEP | C124: M73 | D124: EBAUCHE PERCEE | F124: 8 | G124: 936 | H124: 7488
A125: A0416-A | B125: FICEP | C125: LPA 8D | D125: POINCON EBAUCHE | F125: 32 | G125: 300 | H125: 9600
A126: A0416-B | B126: FICEP | C126: LPA 8D | D126: MATRICE EBAUCHE | F126: 10 | G126: 119 | H126: 1190
A127: A0417 | B127: FICEP | C127: PC27 | D127: EBAUCHE PERCEE | F127: 4 | G127: 388 | H127: 1552
A128: A0418-A | B128: FICEP | C128: M50,8 P | D128: EBAUCHE 1 REPERE DERVAUX | F128: 10 | G128: 397 | H128: 3970
A129: A0418-B | B129: FICEP | C129: M73 | D129: EBAUCHE PERCEE Ø22 | F129: 3 | G129: 939 | H129: 2817
A130: A0418-C | B130: FICEP | C130: M73 | D130: EBAUCHE PERCEE Ø50 2 REPERES 0° et 90° | F130: 2 | G130: 704 | H130: 1408
A131: A0419
A132: A0420
A133: A0421
A134: A0422
A135: A0423 | B135: SIRUGUE | C135: SC3 | D135: NEZ DE BROCHE 04/20 | F135: 54 | H135: =IF(G135>0,G135*F135," ") -> 
A136: A0424 | B136: SIRUGUE | C136: PED 30 | D136: Ø102 | F136: 10 | G136: 3673 | H136: 36730
A137: A0425 | B137: SIRUGUE | C137: PED 30 | D137: Ø102 LONGUEUR + 20MM | F137: 4 | G137: 4899 | H137: 19596
A138: A0501-A | B138: PEDDY | C138: PN1 | D138: EBAUCHE FRAISEE | F138: 2 | G138: 65 | H138: 130
A139: A0501-B | B139: PEDDY | C139: PN1 | D139: EBAUCHE FRAISEE L55 | F139: 5 | G139: 73 | H139: 365
A140: A0501-C | B140: PEDDY | C140: PN1 | D140: EBAUCHE FRAISEE SUPERIEUR | F140: 3 | G140: 106 | H140: 318
A141: A0502-A | B141: PEDDY | C141: PN2 | D141: EBAUCHE FRAISEE | F141: 62 | G141: 142 | H141: 8804
A142: A0502-B | B142: PEDDY | C142: PN4 | D142: EBAUCHE FRAISEE L85 | F142: 0
A143: A0502-C | B143: PEDDY | C143: PN4 | D143: CANON EUROPEEN | F143: 2 | G143: 280 | H143: 560
A144: A0503-A | B144: PEDDY | C144: PN3 | D144: EBAUCHE FRAISEE 26,4 | F144: 24 | G144: 305 | H144: 7320
A145: A0503-B | B145: PEDDY | C145: PN4 | D145: EBAUCHE FRAISEE 0° et 90° Ø26,4 | F145: 28 | G145: 211 | H145: 5908
A146: A0504 | B146: PEDDY | C146: PN4 | D146: EBAUCHE FRAISEE 27 | F146: 45 | G146: 223 | H146: 10035
A147: A0505-A | B147: PEDDY | C147: PN5 | D147: EBAUCHE FRAISEE 31,5 | F147: 0 | G147: 369 | H147: 0
A148: A0505-B | B148: PEDDY | C148: PN5 | D148: EBAUCHE FRAISEE EXCENTREE Ø32 | F148: 26 | G148: 399 | H148: 10374
A149: A0506-A | B149: PEDDY | C149: PN5 | D149: EBAUCHE FRAISEE 32 | F149: 15 | G149: 381 | H149: 5715
A150: A0506-B | B150: PEDDY | C150: PN5 | D150: EBAUCHE FRAISEE 0 ET 45° | F150: 28 | G150: 366 | H150: 10248
A151: A0507-A | B151: PEDDY | C151: PN5 | D151: EBAUCHE FRAISEE 0 ET 90° | F151: 8 | G151: 366 | H151: 2928
A152: A0507-B
A153: A0508-A | B153: PEDDY | C153: PN5 | D153: EBAUCHE FRAISEE L74 | F153: 9 | G153: 451 | H153: 4059
A154: A0508-B | B154: PEDDY | C154: PN5 | D154: EBAUCHE FRAISEE L80 | F154: 7 | G154: 487 | H154: 3409
A155: A0508-C | B155: PEDDY | C155: PN5 | D155: EBAUCHE FRAISEE L90 | F155: 7 | G155: 549 | H155: 3843
A156: A0508-D | B156: PEDDY | C156: PN5 | D156: EBAUCHE FRAISEE L86 | F156: 6 | G156: 523 | H156: 3138
A157: A0508-E | B157: PEDDY | C157: PN5 | D157: EBAUCHE FRAISEE L100 | F157: 15 | G157: 609 | H157: 9135
A158: A0508-F | B158: PEDDY | C158: PN5 | D158: EBAUCHE FRAISEE Ø32 L95 | F158: 6 | G158: 596 | H158: 3576
A159: A0509-A | B159: PEDDY | C159: PN4 S | D159: EBAUCHE FRAISEE | F159: 4 | G159: 272 | H159: 1088
A160: A0509-B | B160: PEDDY | C160: PN4 S | D160: EBAUCHE FRAISEE 0 ET 45° | F160: 16 | G160: 268 | H160: 4288
A161: A0509-C | B161: PEDDY | C161: PN4 S | D161: EBAUCHE FRAISEE L85 | F161: 10 | G161: 467 | H161: 4670
A162: A0510 | B162: PEDDY | C162: PN6 | D162: EBAUCHE FRAISEE | F162: 11 | G162: 664 | H162: 7304
A163: A0511-A | B163: PEDDY | C163: PN6 | D163: EBAUCHE FRAISEE Ø40 | F163: 2 | G163: 682 | H163: 1364
A164: A0511-B | B164: PEDDY | C164: PN6 | D164: EBAUCHE FRAISEE L106 | F164: 2 | G164: 1009 | H164: 2018
A165: A0512-A | B165: PEDDY | C165: PN4 | D165: EBAUCHE FRAISEE 0 ET 45° | F165: 31 | G165: 211 | H165: 6541
A166: A0512-B | B166: PEDDY | C166: PN5 | D166: CANON EUROPEEN | F166: 16 | G166: 391 | H166: 6256
A167: A0513
A168: A0514
A169: A0515 | B169: PEDDY | C169: PN7 | D169: EBAUCHE FRAISEE CORPS 41 | F169: 9 | G169: 1096 | H169: 9864
A170: A0516 | B170: PEDDY | C170: PN7 | D170: EBAUCHE FRAISEE CORPS 58,5 | F170: 5 | G170: 1599 | H170: 7995
A171: A0517 | B171: PEDDY | C171: PN7 | D171: EBAUCHE FRAISEE CORPS 58,5 | F171: 13 | G171: 1599 | H171: 20787
A172: A0518 | B172: PEDDY | C172: PN7 | D172: EBAUCHE FRAISEE CORPS 58,5 | F172: 8 | G172: 1596 | H172: 12768
A173: A0519 | B173: PEDDY | C173: PN7 | D173: EBAUCHE FRAISEE CORPS 60 | F173: 5 | G173: 1685 | H173: 8425
A174: A0520 | B174: PEDDY | C174: PN7 | D174: EBAUCHE FRAISEE L100 | F174: 7 | G174: 2090 | H174: 14630
A175: A0521-A | B175: PEDDY | C175: PN7 | D175: EBAUCHE NON TOURNEE | F175: 2 | G175: 1946 | H175: 3892
A176: A0521-B | B176: PEDDY | C176: PN7 | D176: EBAUCHE FRAISEE L85 | F176: 6 | G176: 1781 | H176: 10686
A177: A0522 | B177: PEDDY | C177: PN11 | D177: EBAUCHE FRAISEE | F177: 6 | G177: 3754 | H177: 22524
A178: A0523 | B178: PEDDY | C178: PN11 | D178: EBAUCHE FRAISEE | F178: 6 | G178: 3757 | H178: 22542
A179: A0524 | B179: PEDDY | C179: PN11 | D179: EBAUCHE FRAISEE | F179: 1 | G179: 2154 | H179: 2154
A180: A0525 | B180: PEDDY | C180: PN11 | D180: EBAUCHE NON TOURNEE L98 | F180: 5 | G180: 5220 | H180: 26100
A181: A0601 | B181: PEDDY | C181: M35 | D181: EBAUCHE | F181: 223 | G181: 110 | H181: 24530
A182: A0602 | B182: PEDDY | C182: M35 | D182: EBAUCHE | F182: 232 | G182: 110 | H182: 25520
A183: A0603-A | B183: PEDDY | C183: M35 | D183: EBAUCHE FRAISEE PERCEE Ø20,5 | F183: 1 | G183: 93 | H183: 93
A184: A0603-B | B184: PEDDY | C184: M35 | D184: EBAUCHE PERCEE Ø22 | F184: 28 | G184: 88 | H184: 2464
A185: A0604-A | B185: PEDDY | C185: M20 | D185: EBAUCHE PERCEE | F185: 37 | G185: 34 | H185: 1258
A186: A0604-B | B186: PEDDY | C186: M30 | D186: EBAUCHE PERCEE Ø3 | F186: 68 | G186: 80 | H186: 5440
A187: A0605-A
A188: A0605-B | B188: PEDDY | C188: M28 | D188: EBAUCHE FRAISEE EXCENTREE | F188: 62 | G188: 54 | H188: 3348
A189: A0606 | B189: PEDDY | C189: MN2 | D189: EBAUCHE FRAISEE EXCENTREE | F189: 32 | G189: 362 | H189: 11584
A190: A0607-A | B190: PEDDY | C190: MN2 | D190: EBAUCHE FRAISEE PERCEE 3 REPERES 0° -45° +45° | F190: 19 | G190: 249 | H190: 4731
A191: A0607-B | B191: PEDDY | C191: MN2 | D191: EBAUCHE FRAISEE PERCEE 3 REPERES 0° +45° +135° | F191: 24 | G191: 249 | H191: 5976
A192: A0608-A | B192: PEDDY | C192: MN2 | D192: EBAUCHE | F192: 17 | G192: 298 | H192: 5066
A193: A0608-B | B193: PEDDY | C193: MN2 | D193: EBAUCHE PERCEE | F193: 12 | G193: 270 | H193: 3240
A194: A0609-A | B194: PEDDY | C194: MN2 | D194: EBAUCHE UPN | F194: 22 | G194: 433 | H194: 9526
A195: A0609-B | B195: PEDDY | C195: MN2 | D195: EBAUCHE 1/4 ROND | F195: 8 | G195: 523 | H195: 4184
A196: A0610 | B196: PEDDY | C196: MN2 | D196: EBAUCHE FRAISEE PERCEE 0° ET 90° | F196: 12 | G196: 234 | H196: 2808
A197: A0611 | B197: PEDDY | C197: MN2 | D197: EBAUCHE FRAISEE PERCEE 0° ET 90° | F197: 0 | G197: 253 | H197: 0
A198: A0612-A | B198: PEDDY | C198: MN3 | D198: EBAUCHE FRAISEE PERCEE 0° ET 90° | F198: 0 | G198: 260 | H198: 0
A200: A0613 | B200: PEDDY | C200: MN3 | D200: EBAUCHE FRAISEE PERCEE 0° ET 90° | F200: 158 | G200: 288 | H200: =IF(G200>0,G200*F200," ") -> 45504
A201: A0614-A | B201: PEDDY | C201: MN3 | D201: EBAUCHE FRAISEE PERCEE 0° ET 45° | F201: 13 | G201: 285 | H201: 3705
... 245 more rows

Sheet GESTION B
B1: GESTION DE STOCK B
A2: ADRESSES | B2: MACHINES | C2: REFERENCES | D2: DESIGNATIONS | E2: FIFO | F2: STOCKS | G2: POIDS/PIECE | H2: POIDS TOTAL
H3: =IF(G3>0,G3*F3," ") -> 
A4: B0101-A | B4: KINGSLAND | C4: 9001 | D4: EBAUCHE FRAISEE | F4: 45 | G4: 357 | H4: =IF(G4>0,G4*F4," ") -> 16065
A5: B0101-B | B5: KINGSLAND | C5: 9001 | D5: EBAUCHE FRAISEE L90 | F5: 0
A6: B0102-A | B6: KINGSLAND | C6: 9001 | D6: EBAUCHE FRAISEE L70 | F6: 12 | G6: 414 | H6: 4968
A7: B0102-B | B7: KINGSLAND | C7: 9001 | D7: EBAUCHE FRAISEE L71 | F7: 1 | G7: 418 | H7: 418
A8: B0103-A | B8: KINGSLAND | C8: 9001 | D8: EBAUCHE FRAISEE L80 | F8: 2 | G8: 471 | H8: 942
A9: B0103-B | B9: KINGSLAND | C9: 9001 | D9: EBAUCHE FRAISEE L97 | F9: 1 | G9: 573 | H9: 573
A10: B0104 | B10: KINGSLAND | C10: 9004 | D10: EBAUCHE FRAISEE | F10: 2 | G10: 550 | H10: 1100
A11: B0105 | B11: KINGSLAND | C11: 9004 | D11: EBAUCHE FRAISEE | F11: 200
A12: B0106-A | B12: KINGSLAND | C12: 9004 | D12: EBAUCHE FRAISEE L80 | F12: 0 | H12: =IF(F12>0,G12*F12," ") -> 
A13: B0106-B | B13: KINGSLAND | C13: 9004 | D13: EBAUCHE FRAISEE L120 | F13: 0
A14: B0106-C | B14: KINGSLAND | C14: 9004 | D14: EBAUCHE FRAISEE L140 | F14: 1 | G14: 1244 | H14: 1244
A15: B0107 | B15: KINGSLAND | C15: 9007 | D15: EBAUCHE FRAISEE | F15: 0
A16: B0108 | B16: KINGSLAND | C16: 9007 | D16: EBAUCHE FRAISEE | F16: 12
A17: B0109 | B17: KINGSLAND | C17: 9006 | D17: EBAUCHE FRAISEE | F17: 27 | G17: 739 | H17: 19953
A18: B0110 | B18: KINGSLAND | C18: 9006 | D18: EBAUCHE FRAISEE | F18: 0
A19: B0111 | B19: KINGSLAND | C19: 9009 | D19: EBAUCHE FRAISEE | F19: 12 | G19: 1525 | H19: 18300
A20: B0112 | B20: KINGSLAND | C20: 9009 | D20: EBAUCHE FRAISEE | F20: 0
A21: B0113-A | B21: KINGSLAND | C21: 9006 | D21: EBAUCHE FRAISEE L… | F21: 0
A22: B0113-B | B22: KINGSLAND | C22: 9009 | D22: EBAUCHE FRAISEE L… | F22: 11 | G22: 1524 | H22: 16764
A23: B0114 | B23: KINGSLAND | C23: 9010 | D23: EBAUCHE FRAISEE | F23: 12 | G23: 3380 | H23: 40560
A24: B0115 | B24: KINGSLAND | C24: 9010 | D24: EBAUCHE FRAISEE L70 | F24: 4 | G24: 3120 | H24: 12480
A25: B0116 | B25: KINGSLAND | C25: 9010 | D25: EBAUCHE NON TOURNEE | F25: 4 | G25: 3820 | H25: 15280
A26: B0117 | B26: KINGSLAND | C26: 9010 | D26: EBAUCHE NON TOURNEE | F26: 12 | G26: 3820 | H26: 45840
A27: B0118 | B27: KINGSLAND | C27: 9010 | D27: EBAUCHE NON TOURNEE | F27: 12 | G27: 3820 | H27: 45840
A28: B0119-A | B28: KINGSLAND | C28: 9011 | D28: EBAUCHE FRAISEE | F28: 6 | G28: 5660 | H28: 33960
A29: B0119-B
A30: B0119-C
A31: B0120 | B31: KINGSLAND | C31: 9011 | D31: EBAUCHE FRAISEE | F31: 5 | G31: 5660 | H31: 28300
A32: B0121 | B32: KINGSLAND | C32: 9011 | D32: EBAUCHE NON TOURNEE | F32: 6 | G32: 5620 | H32: 33720
A33: B0122 | B33: KINGSLAND | C33: 9011 | D33: EBAUCHE NON TOURNEE | F33: 6 | G33: 5620 | H33: 33720
A34: B0123 | B34: KINGSLAND | C34: 9011 | D34: EBAUCHE NON TOURNEE | F34: 6 | G34: 5620 | H34: 33720
A35: B0124 | B35: KINGSLAND | C35: 9011 | D35: EBAUCHE NON TOURNEE | F35: 4 | G35: 5620 | H35: 22480
A36: B0125
A37: B0201-A | B37: KINGSLAND | C37: 9020 | D37: EBAUCHE | F37: 44 | G37: 171 | H37: 7524
A38: B0201-B | B38: KINGSLAND | C38: 9020 | D38: EBAUCHE FRAISEE PERCEE | F38: 24 | G38: 78 | H38: 1872
A39: B0202-A | B39: KINGSLAND | C39: 9022 | D39: EBAUCHE | F39: 50 | G39: 157 | H39: 7850
A40: B0202-B | B40: KINGSLAND | C40: 9022 | D40: EBAUCHE FRAISEE PERCEE | F40: 5 | G40: 121 | H40: 605
A41: B0203 | B41: KINGSLAND | C41: 9023 | D41: EBAUCHE | F41: 21 | G41: 696 | H41: 14616
A42: B0204 | B42: KINGSLAND | C42: 9023 | D42: EBAUCHE DEPORTEE | F42: 1 | G42: 466 | H42: 466
A43: B0205 | B43: KINGSLAND | C43: 9023 | D43: EBAUCHE PERCEE Ø20 | F43: 12 | G43: 564 | H43: 6768
A44: B0206 | B44: KINGSLAND | C44: 9023 | D44: EBAUCHE FRAISEE PERCEE | F44: 4 | G44: 460 | H44: 1840
A45: B0207 | B45: KINGSLAND | C45: 9023 | D45: EBAUCHE FRAISEE PERCEE | F45: 60 | G45: 460 | H45: 27600
A46: B0208 | B46: KINGSLAND | C46: 9023 | D46: EBAUCHE FRAISEE PERCEE | F46: 0
A47: B0209 | B47: KINGSLAND | C47: 9023 | D47: EBAUCHE FRAISEE PERCEE | F47: 0
A48: B0210 | B48: KINGSLAND | C48: 9023 | D48: EBAUCHE FRAISEE PERCEE Ø3 | F48: 0
A49: B0211 | B49: KINGSLAND | C49: 9023 | D49: EBAUCHE TOUT VENANT | F49: 4 | G49: 912 | H49: 3648
A50: B0212 | B50: KINGSLAND | C50: 9023 | D50: EBAUCHE 1/4 ROND | F50: 7 | G50: 1155 | H50: 8085
A51: B0213 | B51: KINGSLAND | C51: 9024 | D51: EBAUCHE | F51: 0
A52: B0214 | B52: KINGSLAND | C52: 9024 | D52: EBAUCHE | F52: 15 | G52: 1209 | H52: 18135
A53: B0215 | B53: KINGSLAND | C53: 9025 | D53: EBAUCHE | F53: 15 | G53: 2520 | H53: 37800
A54: B0216 | B54: KINGSLAND | C54: 9025 | D54: EBAUCHE | F54: 15 | G54: 2520 | H54: 37800
A55: B0217 | B55: KINGSLAND | C55: 9025 | D55: EBAUCHE FRAISEE PERCEE | F55: 2 | G55: 1537 | H55: 3074
A56: B0218 | B56: KINGSLAND | C56: 9023 | D56: EBAUCHE PERCEE Ø48 2 PLATS 0° et 90° | F56: 30 | G56: 480 | H56: 14400
A57: B0219
A58: B0220
A59: B0221
A60: B0222
A61: B0223
A62: B0224
A63: B0225
A64: B0301 | B64: MUBEA | C64: GR2 | D64: EBAUCHE FRAISEE | F64: 28 | G64: 387 | H64: 10836
A65: B0302 | B65: MUBEA | C65: GR2 | D65: EBAUCHE FRAISEE | F65: 0
A66: B0303 | B66: MUBEA | C66: GR2 | D66: EBAUCHE FRAISEE | F66: 0
A67: B0304-A | B67: MUBEA | C67: GR2 | D67: EBAUCHE FRAISEE 0 ET 45° | F67: 0
A68: B0304-B | B68: MUBEA | C68: GR2 | F68: 0 | H68: =IF(G68>0,G68*F68," ") -> 
A69: B0305-A | B69: MUBEA | C69: GR2 | D69: EBAUCHE FRAISEE L85 | F69: 9 | G69: 482 | H69: 4338
A70: B0305-B | B70: MUBEA | C70: GR2 | D70: EBAUCHE FRAISEE L95 | F70: 5 | G70: 538 | H70: 2690
A71: B0305-C | B71: MUBEA | C71: GR2 | D71: EBAUCHE FRAISEE L90 | F71: 12 | G71: 510 | H71: 6120
A72: B0305-D | B72: MUBEA | C72: GR2 | D72: EBAUCHE FRAISEE L100 | F72: 3 | G72: 563 | H72: 1689
A73: B0306 | B73: MUBEA | C73: GR2 | D73: CANON EUROPEEN | F73: 0
A74: B0307 | B74: MUBEA | C74: GR2 | D74: EBAUCHE FRAISEE EXCENTREE | F74: 1 | G74: 410 | H74: 410
A75: B0308-A | B75: MUBEA | C75: GR2 | D75: EBAUCHE FRAISEE SUPERIEUR Ø55 | F75: 9 | G75: 768 | H75: 6912
A76: B0308-B | B76: MUBEA | C76: GR2 | D76: EBAUCHE FRAISEE SUPERIEUR Ø60 | F76: 5 | G76: 886 | H76: 4430
A77: B0308-C | B77: MUBEA | C77: GR2 | D77: EBAUCHE FRAISEE SUPERIEUR Ø32 | F77: 9 | G77: 406 | H77: 3654
A78: B0309 | B78: MUBEA | C78: GR2 | D78: EBAUCHE PERCEE D6 | F78: 24 | G78: 387 | H78: 9288
A79: B0310 | B79: MUBEA | C79: GR3 | D79: EBAUCHE FRAISEE | F79: 17 | G79: 675 | H79: 11475
A80: B0311 | B80: MUBEA | C80: GR3 | D80: EBAUCHE FRAISEE | F80: 17 | G80: 675 | H80: 11475
A81: B0312 | B81: MUBEA | C81: GR3 | D81: EBAUCHE FRAISEE | F81: 0
A82: B0313 | B82: MUBEA | C82: GR3 | D82: EBAUCHE FRAISEE 0 ET 45° | F82: 13 | G82: 670 | H82: 8710
A83: B0314 | B83: MUBEA | C83: GR3 | D83: EBAUCHE FRAISEE L…….
A84: B0315 | B84: MUBEA | C84: GR3 | D84: EBAUCHE FRAISEE EXCENTREE | F84: 8 | G84: 714 | H84: 5712
A85: B0316 | B85: MUBEA | C85: GR4 | D85: EBAUCHE FRAISEE | F85: 22 | G85: 1044 | H85: 22968
A86: B0317 | B86: MUBEA | C86: GR4 | D86: EBAUCHE FRAISEE | F86: 0
A87: B0318 | B87: MUBEA | C87: GR4 | D87: EBAUCHE FRAISEE | F87: 0
A88: B0319 | B88: MUBEA | C88: GR4 | D88: EBAUCHE FRAISEE 0 ET 45° | F88: 0
A89: B0320 | B89: MUBEA | C89: GR4 | D89: EBAUCHE FRAISEE EXCENTREE | F89: 16 | G89: 1105 | H89: 17680
A90: B0321-A | B90: MUBEA | C90: GR4 | D90: EBAUCHE FRAISEE L90 | F90: 3 | G90: 1395 | H90: 4185
A91: B0321-B | B91: MUBEA | C91: GR4 | D91: EBAUCHE FRAISEE L100 | F91: 3 | G91: 1576 | H91: 4728
A92: B0321-C | B92: MUBEA | C92: GR4 | D92: EBAUCHE FRAISEE L110 | F92: 2 | G92: 1697 | H92: 3394
A93: B0321-D | B93: MUBEA | C93: GR4 | D93: EBAUCHE FRAISEE L130 | F93: 1 | G93: 1999 | H93: 1999
A94: B0322
A95: B0323
A96: B0324
A97: B0325
A98: B0401 | B98: MUBEA | C98: ED50 | D98: CORPS 80 1 ENCOCHE | F98: 6 | G98: 3140 | H98: 18840
A99: B0402 | B99: MUBEA | C99: ED50 | D99: CORPS 80 2 ENCOCHES | F99: 12 | G99: 3140 | H99: 37680
A100: B0403 | B100: MUBEA | C100: ED50 | D100: CORPS 101 1 ENCOCHE | F100: 4 | G100: 4440 | H100: 17760
A101: B0404 | B101: MUBEA | C101: ED50 | D101: CORPS 101 2 ENCOCHES | F101: 9 | G101: 4420 | H101: 39780
A102: B0405 | B102: MUBEA | C102: ED50 | D102: CORPS 101 2 ENCOCHES | F102: 2 | G102: 4420 | H102: 8840
A103: B0406 | B103: MUBEA | C103: M45 | D103: EBAUCHE EXCENTREE | F103: 42 | G103: 274 | H103: 11508
A104: B0407-A | B104: MUBEA | C104: M30 | D104: EBAUCHE PERCEE 1 REPERE | F104: 0
A105: B0407-B | B105: MUBEA | C105: M30 | D105: EBAUCHE PERCEE 2 REPERES 0° ET 90° | F105: 164 | G105: 65 | H105: 10660
A106: B0408-A | B106: MUBEA | C106: M30 | D106: EBAUCHE PERCEE D3 2 REPERES 0° ET 90° | F106: 94 | G106: 280 | H106: 26320
A107: B0408-B | B107: MUBEA | C107: M45 | D107: EBAUCHE PERCEE 4 REPERES | F107: 8 | G107: 660 | H107: 5280
A108: B0409-A | B108: MUBEA | C108: M45 | D108: EBAUCHE | F108: 12 | G108: 865 | H108: 10380
A109: B0409-B | B109: MUBEA | F109: 0
A110: B0410 | B110: MUBEA | C110: M45 | D110: EBAUCHE PERCEE 2 REPERES 0° ET 90° | F110: 0 | G110: 184 | H110: 0
A111: B0411 | B111: MUBEA | C111: M45 | D111: EBAUCHE PERCEE 2 REPERES 0° ET 90° | F111: 52 | G111: 184 | H111: 9568
A112: B0412-A | B112: MUBEA | C112: M45 | D112: EBAUCHE PERCEE 4 REPERES | F112: 0
A113: B0412-B | B113: MUBEA | C113: M45 | D113: EBAUCHE PERCEE Ø34 et Ø3 2 REPERES 0° et 90° | F113: 0
A114: B0413-A | B114: MUBEA | C114: M45 | D114: EBAUCHE 3 REPERES 0° 45° 90° | F114: 24 | G114: 965 | H114: 23160
A115: B0413-B | B115: MUBEA | C115: M45 | D115: EBAUCHE PERCEE D3 3 REPERES 0° 45° 90° | F115: 41 | G115: 960 | H115: 39360
A116: B0413-C | B116: MUBEA | C116: M45 | D116: EBAUCHE PERCEE D3 2 REPERES 0° ET 90° | F116: 8 | G116: 965 | H116: 7720
A117: B0414 | B117: MUBEA | C117: M45 | D117: EBAUCHE 1/4 ROND | F117: 1 | G117: 1670 | H117: 1670
A118: B0415-A | B118: MUBEA | C118: M45 | D118: EBAUCHE UPN | F118: 6 | G118: 965 | H118: 5790
A119: B0415-B | B119: MUBEA | C119: M45 | D119: EBAUCHE IPN | F119: 23 | G119: 1050 | H119: 24150
A120: B0416 | B120: MUBEA | C120: M45 | D120: EBAUCHE UPN FRAISEE | F120: 14 | G120: 1045 | H120: 14630
A121: B0417 | B121: MUBEA | C121: M45 | D121: EBAUCHE IPN FRAISEE | F121: 86 | G121: 1155 | H121: 99330
A122: B0418 | B122: MUBEA | C122: M60 | D122: EBAUCHE | F122: 0
A123: B0419 | B123: MUBEA | C123: M60 | D123: EBAUCHE | F123: 0
A124: B0420 | B124: MUBEA | C124: M60 | D124: EBAUCHE PERCEE 2 REPERES 0° ET 90° | F124: 56 | G124: 400 | H124: 22400
A125: B0421 | B125: MUBEA | C125: M60 | D125: EBAUCHE PERCEE 2 REPERES 0° ET 90° | F125: 0
A126: B0422 | B126: MUBEA | C126: M60 | D126: EBAUCHE PERCEE 2 REPERES 0° ET 90° | F126: 40 | G126: 1485 | H126: 59400
A127: B0423 | B127: MUBEA | C127: M60 | D127: EBAUCHE 3 REPERES 0° 45° 90° | F127: 15 | G127: 1435 | H127: 21525 | I127: =IF(F124=0,"B908"," ") -> 
A128: B0424-A | B128: MUBEA | C128: M60 | D128: EBAUCHE EXCENTREE | F128: 16 | G128: 2295 | H128: 36720
A129: B0424-B | B129: MUBEA | C129: M60 | D129: EBAUCHE EXCENTREE PERCEE | F129: 1 | G129: 1375 | H129: 1375
A130: B0425-A | B130: MUBEA | C130: M60 | D130: EBAUCHE 1/4 ROND | F130: 2 | G130: 4155 | H130: 8310
A131: B0425-B | B131: MUBEA | C131: M60 | D131: EBAUCHE 1/4 ROND PERCEE | F131: 4 | G131: 3295 | H131: 13180
A132: B0501 | B132: MUBEA | C132: M60 | D132: EBAUCHE PERCEE D3 | F132: 33 | G132: 649 | H132: =IF(G132>0,G132*F132," ") -> 21417
A133: B0502-A | B133: MUBEA | C133: M60 | D133: EBAUCHE UPN | F133: 16 | G133: 715 | H133: 11440
A134: B0502-B | B134: MUBEA | C134: P. N°4 | D134: EBAUCHE FRAISEE Ø26,2 L85 | F134: 0
A135: B0503 | B135: MUBEA | C135: M80 | D135: EBAUCHE PERCEE 2 REPERES 0° ET 90° | F135: 1 | G135: 911 | H135: 911
A136: B0504 | B136: MUBEA | C136: M80 | D136: EBAUCHE PERCEE 2 REPERES 0° ET 90° | F136: 0
A137: B0505 | B137: MUBEA | C137: M80 | D137: EBAUCHE 2 REPERES 0° ET 45° | F137: 1 | G137: 1041 | H137: 1041
A138: B0506 | B138: MUBEA | C138: M80 | D138: EBAUCHE | F138: 0
A139: B0507 | B139: MUBEA | C139: M80 | D139: EBAUCHE 3 REPERES 0° 45° 90° | F139: 1 | G139: 1547 | H139: 1547
A140: B0508 | B140: MUBEA | C140: M80 | D140: EBAUCHE 1/4 ROND | F140: 6 | G140: 2519 | H140: 15114
A141: B0509 | B141: MUBEA | C141: M110 | D141: EBAUCHE | F141: 10 | G141: 2912 | H141: 29120
A142: B0510 | B142: MUBEA | C142: M110 | D142: EBAUCHE PERCEE | F142: 2 | G142: 1996 | H142: 3992
A143: B0511 | B143: MUBEA | C143: M150 | D143: EBAUCHE | F143: 4 | G143: 5460 | H143: 21840
A144: B0512 | B144: MUBEA | C144: M150 | D144: EBAUCHE | F144: 2 | G144: 5460 | H144: 10920
A145: B0513
A146: B0514
A147: B0515
A148: B0516
A149: B0517
A150: B0518
A151: B0519
A152: B0520
A153: B0521
A154: B0522
A155: B0523
A156: B0524
A157: B0525
A158: B0601 | B158: MUBEA | C158: GR3 | D158: SOUS TIGE 60 | F158: 25 | G158: 523 | H158: 13075
A159: B0602 | B159: MUBEA | C159: GR2 | D159: SOUS TIGE 65 | F159: 23 | G159: 899 | H159: 20677
A160: B0602 | B160: MUBEA | C160: GR2 | D160: SOUS TIGE 100 | F160: 1 | G160: 2345 | H160: 2345
A161: B0603 | B161: MUBEA | C161: GR4 | D161: SOUS TIGE 65 | F161: 35 | G161: 681 | H161: 23835
A162: B0604 | B162: MUBEA | C162: C10 | D162: EBAUCHE | F162: 22 | G162: 21 | H162: 462
A163: B0605-A | B163: MUBEA | C163: C15 | D163: EBAUCHE 1 REPERE | F163: 41 | G163: 71 | H163: 2911
A164: B0605-B | B164: MUBEA | C164: C15 | D164: EBAUCHE 2 REPERES | F164: 9 | G164: 70 | H164: 630
A165: B0606-A | B165: MUBEA | C165: C15 | D165: EBAUCHE SUPERIEUR Ø20 1 REPERE | F165: 5 | G165: 99 | H165: 495
A166: B0606-B | B166: MUBEA | C166: C15 | D166: EBAUCHE SUPERIEUR Ø20 2 REPERES | F166: 0 | G166: 96 | H166: 0
A167: B0607-A | B167: MUBEA | C167: C15 | D167: EBAUCHE SUPERIEUR Ø30 1 REPERE | F167: 2 | G167: 215 | H167: 430
A168: B0607-B | B168: MUBEA | C168: C15 | D168: EBAUCHE SUPERIEUR Ø30 2 REPERES | F168: 4 | G168: 198 | H168: 792
A169: B0608 | B169: MUBEA | C169: C15 | D169: MIXTE
A170: B0609-A | B170: MUBEA | C170: C20 | D170: EBAUCHE SUPERIEUR Ø20 1 REPERE | F170: 34 | G170: 172 | H170: 5848
A171: B0609-B | B171: MUBEA | C171: C20 | D171: EBAUCHE SUPERIEUR Ø20 2 REPERES | F171: 34 | G171: 170 | H171: 5780
A172: B0609-C | B172: MUBEA | C172: C20 | D172: EBAUCHE SUPERIEURE Ø30 2 REPERES 0° et 90° | F172: 12 | G172: 241 | H172: 2892
A173: B0610 | B173: MUBEA | C173: TRI | D173: EBAUCHE FRAISEE | F173: 23 | G173: 539 | H173: 12397
A174: B0611-A | B174: MUBEA/SUNRISE | C174: RP4 | D174: EBAUCHE | F174: 9 | G174: 1503 | H174: 13527
A175: B0611-B | B175: MUBEA/SUNRISE | C175: RP4 | D175: EBAUCHE FRAISEE | F175: 2 | G175: 1497 | H175: 2994
A176: B0612-A | B176: MUBEA/SUNRISE | C176: RP5 | D176: EBAUCHE | F176: 5 | G176: 2044 | H176: 10220
A177: B0612-B | B177: MUBEA/SUNRISE | C177: RP5 | D177: EBAUCHE FRAISEE | F177: 0
A178: B0613 | B178: MUBEA/SUNRISE | C178: RP6 | D178: EBAUCHE | F178: 0
A179: B0614 | B179: MUBEA/SUNRISE | C179: RP6 | D179: EBAUCHE FRAISEE | F179: 15 | G179: 3124 | H179: 46860
A180: B0615 | B180: MUBEA/SUNRISE | C180: RP8 | D180: EBAUCHE | F180: 2 | G180: 4540 | H180: 9080
A181: B0616 | B181: MUBEA/SUNRISE | C181: RP8 | D181: EBAUCHE FRAISEE | F181: 6 | G181: 4140 | H181: 24840
A182: B0617 | B182: SUNRISE | C182: GP-P01-075-3 | D182: EBAUCHE | F182: 16 | G182: 3562 | H182: 56992
A183: B0618 | B183: SUNRISE | C183: GP-P01-075-3 | D183: EBAUCHE | F183: 11 | G183: 3562 | H183: 39182
A184: B0619 | B184: SUNRISE | C184: GP-P01-075-3 | D184: EBAUCHE FRAISEE | F184: 11 | G184: 3096 | H184: 34056
A185: B0620 | B185: SUNRISE | C185: GP-P01-075-3 | D185: EBAUCHE FRAISEE | F185: 11 | G185: 3096 | H185: 34056
A186: B0621 | B186: SUNRISE | C186: GP-P01-100-3 | D186: EBAUCHE | F186: 10 | G186: 5960 | H186: 59600
A187: B0622 | B187: SUNRISE | C187: GP-P01-100-3 | D187: EBAUCHE | F187: 8 | G187: 5960 | H187: 47680
A188: B0623 | B188: SUNRISE | C188: GP-P01-100-3 | D188: EBAUCHE FRAISEE L90 | F188: 6 | G188: 5460 | H188: 32760
A189: B0624 | B189: SUNRISE | C189: GP-P01-075-3 | D189: EBAUCHE AUDINOX | F189: 3 | G189: 3098 | H189: 9294
A190: B0625
A191: B0701-A | B191: VERNET | C191: P. N°1 | D191: EBAUCHE FRAISEE L4 | F191: 0
A192: B0701-B | B192: VERNET | C192: P. N°2 | D192: EBAUCHE FRAISEE L4 | F192: 125 | G192: 68 | H192: 8500
A193: B0702-A | B193: VERNET | C193: P. N°3 | D193: EBAUCHE FRAISEE L4 | F193: 60 | G193: 180 | H193: 10800
A194: B0702-B | B194: VERNET | C194: P. N°3 | D194: EBAUCHE FRAISEE L4 LONG +3 MM | F194: 8 | G194: 193 | H194: 1544
A195: B0703-A | B195: VERNET | C195: P. N°4 | D195: EBAUCHE FRAISEE L4 | F195: 48 | G195: 285 | H195: 13680
A196: B0703-B | B196: VERNET | C196: P. N°4 | D196: EBAUCHE FRAISEE CROIX L4 | F196: 7 | G196: 285 | H196: =IF(G196>0,G196*F196," ") -> 1995
A197: B0704 | B197: VERNET | C197: P. N°4 | D197: EBAUCHE FRAISEE CROIX L8 | F197: 85 | G197: 272 | H197: 23120
A198: B0705-A | B198: VERNET | C198: P. N°4 | D198: EBAUCHE FRAISEE ERGOT 8 AVEC MOUCHE Ø33 | F198: 26 | G198: 305 | H198: 7930
A199: B0705-B | B199: VERNET | C199: P. N°4 | D199: EBAUCHE FRAISEE ERGOT 8 SANS MOUCHE Ø33 | F199: 16 | G199: 300 | H199: 4800
A200: B0706 | B200: VERNET | C200: P. N°4 | D200: EBAUCHE FRAISEE ERGOT 8 AVEC MOUCHE | F200: 10 | G200: 292 | H200: 2920
... 217 more rows

Sheet GESTION C
C1: GESTION DE STOCK C
A2: ADRESSE | B2: MACHINES | C2: REFERENCES | D2: DESIGNATIONS | E2: FIFO | F2: STOCKS | G2: POIDS/PIECE | H2: POIDS TOTAL
H3: =IF(F3>0,F3*G3/1000," ") -> 
A4: C0901 | B4: VERNET | C4: 5013710-1 | D4: EBAUCHE | F4: 0 | G4: 125 | H4: =IF(F4>0,F4*G4/1000," ") -> 
A5: C0902
A6: C0903
A7: C0904
A8: C0905
A9: C0906
A10: C0907
A11: C0908
A12: C0909
A13: C0910
A14: C0911
A15: C0912
A16: C0913
A17: C0914
A18: C0915
A19: C0916 | F19: 12 | H19: 0
A20: C0917
A21: C1001
A22: C1002
A23: C1003
A24: C1004
A25: C1005
A26: C1006
A27: C1007
A28: C1008
A29: C1009
A30: C1010
A31: C1011
A32: C1012
A33: C1013
A34: C1014
A35: C1015
A36: C1016
A37: C1017
A38: C1018
A39: C1101
A40: C1102
A41: C1103
A42: C1104
A43: C1105
A44: C1106
A45: C1107
A46: C1108
A47: C1109
A48: C1110
A49: C1111
A50: C1112
A51: C1113
A52: C1114
A53: C1115
A54: C1116
A55: C1117
A56: C1201-A | B56: IRES | C56: 5013090+ | D56: EBAUCHE | F56: 21 | G56: 371 | H56: 7.791
A57: C1201-B
A58: C1202-A | B58: REY | C58: P CORPS 26 Lg45 | D58: EBAUCHE FRAISEE | F58: 24 | G58: 189 | H58: 4.536
A59: C1202-B
A60: C1203
A61: C1204
A62: C1205
A63: C1206
A64: C1207
A65: C1208
A66: C1209
A67: C1210
A68: C1211 | H68: =IF(F68>0,F68*G68/1000," ") -> 
A69: C1212
A70: C1213
A71: C1214
A72: C1215 | B72: IMAC | C72: P70 | D72: OBLONG 12/24
A73: C1216 | B73: IMAC | C73: M40 | D73: Ø26 J1 | F73: 0
A74: C1217-A | B74: IMAC | C74: P70 | D74: Ø11 | F74: 0
A75: C1217-B | B75: IMAC | C75: M40 | D75: Ø11
A76: C1301-A | B76: HUVEMA | C76: CORPS 28 | D76: Ø22,5 | F76: 16 | G76: 197 | H76: 3.152
A77: C1301-B1 | B77: HUVEMA | C77: CORPS 34 | D77: Ø16 | F77: 31 | G77: 238 | H77: 7.378
A78: C1301-B2 | B78: IMAC | C78: M40 | D78: Ø18 J,7 | F78: 0
A79: C1301-B3 | B79: IMAC | C79: M40 | D79: T3000 | F79: 0
A80: C1302-A | B80: HUVEMA | C80: CORPS 34 | D80: Ø22,5 | F80: 13 | G80: 274 | H80: 3.562
A81: C1302-B | B81: IMAC | C81: M40 | D81: Ø19 RECTIF | F81: 0
A82: C1303-A | B82: IMAC | C82: P70 | D82: Ø20 | F82: 0
A83: C1303-B | B83: IMAC | C83: M40 | D83: Ø20 J1 | F83: 0
A84: C1304-A | B84: IMAC | C84: P70 | D84: Ø21 | F84: 0
A85: C1304-B | B85: IMAC | C85: M40 | D85: Ø21 | F85: 0
A86: C1305-A | B86: IMAC | C86: P70 | D86: Ø22 | F86: 0
A87: C1305-B | B87: IMAC | C87: M40 | D87: Ø22 J2 | F87: 0
A88: C1305-C | B88: IMAC | C88: M40 | D88: Ø22 J1 | F88: 0
A89: C1305-D | B89: IMAC | C89: M40 | D89: Ø22 J,7 | F89: 0
A90: C1306-A | B90: IMAC | C90: P70 | D90: Ø23 | F90: 0
A91: C1306-B1 | B91: IMAC | C91: M40 | D91: Ø23 J1 | F91: 0
A92: C1306-B2 | B92: IMAC
A93: C1307-A | B93: IMAC | C93: P70 | D93: Ø24 | F93: 0
A94: C1307-B1 | B94: IMAC | C94: M40 | D94: Ø24 J,7 | F94: 0
A95: C1307-B2 | B95: IMAC | C95: M40 | D95: Ø24 J1 | F95: 0
A96: C1308-A | B96: IMAC | C96: P70 | D96: Ø25 | F96: 0
A97: C1308-B | B97: IMAC | C97: M40 | D97: Ø25 | F97: 0
A98: C1309-A | B98: IMAC | C98: P70 | D98: Ø30 | F98: 0
A99: C1309-B1 | B99: IMAC | C99: M40 | D99: Ø30 J1 | F99: 0
A100: C1309-B2 | B100: IMAC | C100: M40 | D100: Ø30 J2 | F100: 0
A101: C1310-A | B101: IMAC | C101: P70 | D101: Ø27 | F101: 0
A102: C1310-B | B102: IMAC | C102: M40 | D102: Ø27 | F102: 0
A103: C1311-A | B103: IMAC | C103: P70 | D103: Ø28 | F103: 0
A104: C1311-B1 | B104: IMAC | C104: M40 | D104: Ø28 | F104: 0
A105: C1311-B2 | B105: IMAC | C105: M40 | D105: Ø28 J1 | F105: 0
A106: C1311-B3 | B106: IMAC | C106: M40 | D106: Ø28 J2 | F106: 0
A107: C1311-B4 | B107: IMAC | C107: M40 | D107: Ø28,5 J1 | F107: 0
A108: C1311-B5 | B108: IMAC | C108: M40 | D108: Ø28 J,7 | F108: 0
A109: C1312-A
A110: C1312-B | F110: 0
A111: C1313-A | B111: IMAC | C111: P70 | D111: Ø30 | F111: 0
A112: C1313-B | B112: IMAC | C112: M40 | D112: Ø30 J1 | F112: 0
A113: C1314-A1 | B113: IMAC | C113: P70 | D113: Ø31,5 | F113: 0
A114: C1314-A2 | B114: IMAC | C114: P70 | D114: Ø31 | F114: 0
A115: C1314-B1 | B115: IMAC | C115: M40 | D115: Ø31,5 J1 | F115: 0
A116: C1314-B2 | B116: IMAC | C116: M40 | D116: Ø31 | F116: 0
A117: C1315-A1 | B117: IMAC | C117: P70 | D117: Ø32 | F117: 0
A118: C1315-A2 | B118: IMAC | C118: P70 | D118: Ø33 | F118: 0
A119: C1315-A3 | B119: IMAC | C119: P70 | D119: Ø34 | F119: 0
A120: C1315-A4 | B120: IMAC | C120: P70 | D120: Ø35 | F120: 0
A121: C1315-B | B121: IMAC | C121: M40 | D121: Ø33 | F121: 0
A122: C1316-A | B122: IMAC | C122: P70 | D122: Ø31,5 | F122: 0
A123: C1316-B | B123: IMAC | C123: M40 | D123: Ø31,5 | F123: 0
A124: C1317-A1 | B124: IMAC | C124: P40 | D124: Ø12 | F124: 0
A125: C1317-A2 | B125: IMAC | C125: P40 | D125: Ø14 | F125: 0
A126: C1317-A3 | B126: IMAC | C126: P40 | D126: Ø16 | F126: 0
A127: C1317-A4 | B127: IMAC | C127: P40 | D127: Ø20 | F127: 0
A128: C1317-A5 | B128: IMAC | C128: P40 | D128: Ø22 | F128: 0
A129: C1317-A6 | B129: IMAC | C129: P40 | D129: Ø24 | F129: 0
A130: C1317-A7 | B130: IMAC | C130: P40 | D130: Ø28 | F130: 0
A131: C1401-A | B131: IMAC | C131: P70 | D131: OBLONG 12/30 | F131: 0
A132: C1401-B | B132: IMAC | C132: M40 | D132: OBLONG 12/30 J1 | F132: 0 | H132: =IF(F132>0,F132*G132/1000," ") -> 
A133: C1402-A | B133: IMAC | C133: P70 | D133: OBLONG 14/30 | F133: 0
A134: C1402-B | B134: IMAC | C134: M40 | D134: OBLONG 14/30 J1 | F134: 0
A135: C1403-A | B135: IMAC | C135: P70 | D135: OBLONG 16/30 | F135: 0
A136: C1403-B | B136: IMAC | C136: M40 | D136: OBLONG 16/30 J1 | F136: 0
A137: C1404-A | B137: IMAC | C137: P70 | D137: OBLONG 18/30 | F137: 0
A138: C1404-B | B138: IMAC | C138: M40 | D138: OBLONG 18/30 | F138: 0
A139: C1405-A | B139: IMAC | C139: P70 | D139: OBLONG 20/30 | F139: 0
A140: C1405-B | B140: IMAC | C140: M40 | D140: OBLONG 20/30 J1 | F140: 0
A141: C1406-A | B141: IMAC | C141: P70 | D141: OBLONG 22/30 | F141: 0
A142: C1406-B | B142: IMAC | C142: M40 | D142: OBLONG 22/30 J1 | F142: 0
A143: C1407-A | B143: IMAC | C143: P70 | D143: OBLONG 18/26 | F143: 0
A144: C1407-B | B144: IMAC | C144: M40 | D144: OBLONG 18/26 J1 | F144: 0
A145: C1408-A | B145: IMAC | C145: P70 | D145: OBLONG 22/26 | F145: 0
A146: C1408-B | B146: IMAC | C146: M40 | D146: OBLONG 22/26 J1 | F146: 0
A147: C1409-A | B147: IMAC | C147: P70 | D147: OBLONG 10/30 | F147: 0
A148: C1409-A | B148: IMAC | C148: M40 | D148: OBLONG 10/30 J1 | F148: 0
A149: C1410-A | B149: IMAC | C149: P70 | D149: OBLONG 8/30 | F149: 0
A150: C1410-B | B150: IMAC
A151: C1411-A | B151: IMAC | C151: P70 | D151: Ø10 | F151: 0
A152: C1411-B | B152: IMAC | C152: M40 | D152: Ø10 J1 | F152: 0
A153: C1411-C | B153: IMAC | C153: M40 | D153: Ø10 J7 | F153: 0
A154: C1412-A | B154: IMAC | C154: P70 | D154: Ø12 | F154: 0
A155: C1412-B | B155: IMAC | C155: M40 | D155: Ø12 | F155: 0
A156: C1412-C | B156: IMAC | C156: M40 | D156: Ø12 J,7 | F156: 0
A157: C1413-A | B157: IMAC | C157: P70 | D157: Ø13 | F157: 0
A158: C1413-B | B158: IMAC | C158: M40 | D158: Ø13 | F158: 0
A159: C1414-A | B159: IMAC | C159: P70 | D159: Ø14 | F159: 0
A160: C1414-B1 | B160: IMAC | C160: M40 | D160: Ø14 J1 | F160: 0
A161: C1414-B2 | B161: IMAC | C161: M40 | D161: Ø14,7 | F161: 0
A162: C1415-A | B162: IMAC | C162: P70 | D162: Ø15 | F162: 0
A163: C1415-B | B163: IMAC | C163: M40 | D163: Ø15 | F163: 0
A164: C1416-A | B164: IMAC | C164: P70 | D164: Ø16 | F164: 0
A165: C1416-B | B165: IMAC | C165: M40 | D165: Ø16 | F165: 0
A166: C1416-C | B166: IMAC | C166: M40 | D166: Ø16 J1 | F166: 0
A167: C1417-A | B167: IMAC | C167: P70 | D167: Ø17 | F167: 0
A168: C1417-B1 | B168: IMAC | C168: M40 | D168: Ø17 J1 | F168: 0
A169: C1417-B2 | B169: IMAC | C169: M40 | D169: Ø17 RECTIF | F169: 0
A170: C1417-B3 | B170: IMAC | C170: M40 | D170: Ø17 | F170: 0
H196: =IF(F196>0,F196*G196/1000," ") -> 
H260: =IF(F260>0,F260*G260/1000," ") -> 
H324: =IF(F324>0,F324*G324/1000," ") -> 
G332: POIDS TOTAL | H332: =SUM(H4:H331) -> 26.419

Sheet VIDES A
A1: EMPLACEMENTS VIDES ETAGERE A
A6: ADRESSES | B6: MACHINE | C6: REFERENCE | D6: DESIGNATION
A7: =IF('GESTION A'!F4<=0,'GESTION A'!A4," ") ->  | B7: =IF('GESTION A'!F4<=0,'GESTION A'!B4," ") ->  | C7: =IF('GESTION A'!F4<=0,'GESTION A'!C4," " ) ->  | D7: =IF('GESTION A'!F4<=0,'GESTION A'!D4," ") -> 
A8: =IF('GESTION A'!F5<=0,'GESTION A'!A5," ") ->  | B8: =IF('GESTION A'!F5<=0,'GESTION A'!B5," ") ->  | C8: =IF('GESTION A'!F5<=0,'GESTION A'!C5," " ) ->  | D8: =IF('GESTION A'!F5<=0,'GESTION A'!D5," ") -> 
A9: =IF('GESTION A'!F6<=0,'GESTION A'!A6," ") ->  | B9: =IF('GESTION A'!F6<=0,'GESTION A'!B6," ") ->  | C9: =IF('GESTION A'!F6<=0,'GESTION A'!C6," " ) ->  | D9: =IF('GESTION A'!F6<=0,'GESTION A'!D6," ") -> 
A10: =IF('GESTION A'!F7<=0,'GESTION A'!A7," ") ->  | B10: =IF('GESTION A'!F7<=0,'GESTION A'!B7," ") ->  | C10: =IF('GESTION A'!F7<=0,'GESTION A'!C7," " ) ->  | D10: =IF('GESTION A'!F7<=0,'GESTION A'!D7," ") -> 
A11: =IF('GESTION A'!F8<=0,'GESTION A'!A8," ") ->  | B11: =IF('GESTION A'!F8<=0,'GESTION A'!B8," ") ->  | C11: =IF('GESTION A'!F8<=0,'GESTION A'!C8," " ) ->  | D11: =IF('GESTION A'!F8<=0,'GESTION A'!D8," ") -> 
A12: =IF('GESTION A'!F10<=0,'GESTION A'!A10," ") ->  | B12: =IF('GESTION A'!F10<=0,'GESTION A'!B10," ") ->  | C12: =IF('GESTION A'!F10<=0,'GESTION A'!C10," " ) ->  | D12: =IF('GESTION A'!F10<=0,'GESTION A'!D10," ") -> 
A13: =IF('GESTION A'!F11<=0,'GESTION A'!A11," ") ->  | B13: =IF('GESTION A'!F11<=0,'GESTION A'!B11," ") ->  | C13: =IF('GESTION A'!F11<=0,'GESTION A'!C11," " ) ->  | D13: =IF('GESTION A'!F11<=0,'GESTION A'!D11," ") -> 
A14: =IF('GESTION A'!F12<=0,'GESTION A'!A12," ") ->  | B14: =IF('GESTION A'!F12<=0,'GESTION A'!B12," ") ->  | C14: =IF('GESTION A'!F12<=0,'GESTION A'!C12," " ) ->  | D14: =IF('GESTION A'!F12<=0,'GESTION A'!D12," ") -> 
A15: =IF('GESTION A'!F13<=0,'GESTION A'!A13," ") ->  | B15: =IF('GESTION A'!F13<=0,'GESTION A'!B13," ") ->  | C15: =IF('GESTION A'!F13<=0,'GESTION A'!C13," " ) ->  | D15: =IF('GESTION A'!F13<=0,'GESTION A'!D13," ") -> 
A16: =IF('GESTION A'!F14<=0,'GESTION A'!A14," ") -> A0109 | B16: =IF('GESTION A'!F14<=0,'GESTION A'!B14," ") -> SIRUGUE | C16: =IF('GESTION A'!F14<=0,'GESTION A'!C14," " ) -> M40 | D16: =IF('GESTION A'!F14<=0,'GESTION A'!D14," ") -> EBAUCHE SCS
A17: =IF('GESTION A'!F15<=0,'GESTION A'!A15," ") ->  | B17: =IF('GESTION A'!F15<=0,'GESTION A'!B15," ") ->  | C17: =IF('GESTION A'!F15<=0,'GESTION A'!C15," " ) ->  | D17: =IF('GESTION A'!F15<=0,'GESTION A'!D15," ") -> 
A18: =IF('GESTION A'!F16<=0,'GESTION A'!A16," ") ->  | B18: =IF('GESTION A'!F16<=0,'GESTION A'!B16," ") ->  | C18: =IF('GESTION A'!F16<=0,'GESTION A'!C16," " ) ->  | D18: =IF('GESTION A'!F16<=0,'GESTION A'!D16," ") -> 
A19: =IF('GESTION A'!F17<=0,'GESTION A'!A17," ") ->  | B19: =IF('GESTION A'!F17<=0,'GESTION A'!B17," ") ->  | C19: =IF('GESTION A'!F17<=0,'GESTION A'!C17," " ) ->  | D19: =IF('GESTION A'!F17<=0,'GESTION A'!D17," ") -> 
A20: =IF('GESTION A'!F18<=0,'GESTION A'!A18," ") ->  | B20: =IF('GESTION A'!F18<=0,'GESTION A'!B18," ") ->  | C20: =IF('GESTION A'!F18<=0,'GESTION A'!C18," " ) ->  | D20: =IF('GESTION A'!F18<=0,'GESTION A'!D18," ") -> 
A21: =IF('GESTION A'!F19<=0,'GESTION A'!A19," ") ->  | B21: =IF('GESTION A'!F19<=0,'GESTION A'!B19," ") ->  | C21: =IF('GESTION A'!F19<=0,'GESTION A'!C19," " ) ->  | D21: =IF('GESTION A'!F19<=0,'GESTION A'!D19," ") -> 
A22: =IF('GESTION A'!F20<=0,'GESTION A'!A20," ") ->  | B22: =IF('GESTION A'!F20<=0,'GESTION A'!B20," ") ->  | C22: =IF('GESTION A'!F20<=0,'GESTION A'!C20," " ) ->  | D22: =IF('GESTION A'!F20<=0,'GESTION A'!D20," ") -> 
A23: =IF('GESTION A'!F21<=0,'GESTION A'!A21," ") ->  | B23: =IF('GESTION A'!F21<=0,'GESTION A'!B21," ") ->  | C23: =IF('GESTION A'!F21<=0,'GESTION A'!C21," " ) ->  | D23: =IF('GESTION A'!F21<=0,'GESTION A'!D21," ") -> 
A24: =IF('GESTION A'!F22<=0,'GESTION A'!A22," ") ->  | B24: =IF('GESTION A'!F22<=0,'GESTION A'!B22," ") ->  | C24: =IF('GESTION A'!F22<=0,'GESTION A'!C22," " ) ->  | D24: =IF('GESTION A'!F22<=0,'GESTION A'!D22," ") -> 
A25: =IF('GESTION A'!F23<=0,'GESTION A'!A23," ") ->  | B25: =IF('GESTION A'!F23<=0,'GESTION A'!B23," ") ->  | C25: =IF('GESTION A'!F23<=0,'GESTION A'!C23," " ) ->  | D25: =IF('GESTION A'!F23<=0,'GESTION A'!D23," ") -> 
A26: =IF('GESTION A'!F24<=0,'GESTION A'!A24," ") ->  | B26: =IF('GESTION A'!F24<=0,'GESTION A'!B24," ") ->  | C26: =IF('GESTION A'!F24<=0,'GESTION A'!C24," " ) ->  | D26: =IF('GESTION A'!F24<=0,'GESTION A'!D24," ") -> 
A27: =IF('GESTION A'!F25<=0,'GESTION A'!A25," ") ->  | B27: =IF('GESTION A'!F25<=0,'GESTION A'!B25," ") ->  | C27: =IF('GESTION A'!F25<=0,'GESTION A'!C25," " ) ->  | D27: =IF('GESTION A'!F25<=0,'GESTION A'!D25," ") -> 
A28: =IF('GESTION A'!F26<=0,'GESTION A'!A26," ") ->  | B28: =IF('GESTION A'!F26<=0,'GESTION A'!B26," ") ->  | C28: =IF('GESTION A'!F26<=0,'GESTION A'!C26," " ) ->  | D28: =IF('GESTION A'!F26<=0,'GESTION A'!D26," ") -> 
A29: =IF('GESTION A'!F27<=0,'GESTION A'!A27," ") ->  | B29: =IF('GESTION A'!F27<=0,'GESTION A'!B27," ") ->  | C29: =IF('GESTION A'!F27<=0,'GESTION A'!C27," " ) ->  | D29: =IF('GESTION A'!F27<=0,'GESTION A'!D27," ") -> 
A30: =IF('GESTION A'!F28<=0,'GESTION A'!A28," ") ->  | B30: =IF('GESTION A'!F28<=0,'GESTION A'!B28," ") ->  | C30: =IF('GESTION A'!F28<=0,'GESTION A'!C28," " ) ->  | D30: =IF('GESTION A'!F28<=0,'GESTION A'!D28," ") -> 
A31: =IF('GESTION A'!F29<=0,'GESTION A'!A29," ") ->  | B31: =IF('GESTION A'!F29<=0,'GESTION A'!B29," ") ->  | C31: =IF('GESTION A'!F29<=0,'GESTION A'!C29," " ) ->  | D31: =IF('GESTION A'!F29<=0,'GESTION A'!D29," ") -> 
A32: =IF('GESTION A'!F31<=0,'GESTION A'!A31," ") ->  | B32: =IF('GESTION A'!F31<=0,'GESTION A'!B31," ") ->  | C32: =IF('GESTION A'!F31<=0,'GESTION A'!C31," " ) ->  | D32: =IF('GESTION A'!F31<=0,'GESTION A'!D31," ") -> 
A33: =IF('GESTION A'!F32<=0,'GESTION A'!A32," ") ->  | B33: =IF('GESTION A'!F32<=0,'GESTION A'!B32," ") ->  | C33: =IF('GESTION A'!F32<=0,'GESTION A'!C32," " ) ->  | D33: =IF('GESTION A'!F32<=0,'GESTION A'!D32," ") -> 
A34: =IF('GESTION A'!F33<=0,'GESTION A'!A33," ") ->  | B34: =IF('GESTION A'!F33<=0,'GESTION A'!B33," ") ->  | C34: =IF('GESTION A'!F33<=0,'GESTION A'!C33," " ) ->  | D34: =IF('GESTION A'!F33<=0,'GESTION A'!D33," ") -> 
A35: =IF('GESTION A'!F34<=0,'GESTION A'!A34," ") ->  | B35: =IF('GESTION A'!F34<=0,'GESTION A'!B34," ") ->  | C35: =IF('GESTION A'!F34<=0,'GESTION A'!C34," " ) ->  | D35: =IF('GESTION A'!F34<=0,'GESTION A'!D34," ") -> 
A36: =IF('GESTION A'!F35<=0,'GESTION A'!A35," ") ->  | B36: =IF('GESTION A'!F35<=0,'GESTION A'!B35," ") ->  | C36: =IF('GESTION A'!F35<=0,'GESTION A'!C35," " ) ->  | D36: =IF('GESTION A'!F35<=0,'GESTION A'!D35," ") -> 
A37: =IF('GESTION A'!F36<=0,'GESTION A'!A36," ") ->  | B37: =IF('GESTION A'!F36<=0,'GESTION A'!B36," ") ->  | C37: =IF('GESTION A'!F36<=0,'GESTION A'!C36," " ) ->  | D37: =IF('GESTION A'!F36<=0,'GESTION A'!D36," ") -> 
A38: =IF('GESTION A'!F37<=0,'GESTION A'!A37," ") ->  | B38: =IF('GESTION A'!F37<=0,'GESTION A'!B37," ") ->  | C38: =IF('GESTION A'!F37<=0,'GESTION A'!C37," " ) ->  | D38: =IF('GESTION A'!F37<=0,'GESTION A'!D37," ") -> 
A39: =IF('GESTION A'!F38<=0,'GESTION A'!A38," ") ->  | B39: =IF('GESTION A'!F38<=0,'GESTION A'!B38," ") ->  | C39: =IF('GESTION A'!F38<=0,'GESTION A'!C38," " ) ->  | D39: =IF('GESTION A'!F38<=0,'GESTION A'!D38," ") -> 
A40: =IF('GESTION A'!F39<=0,'GESTION A'!A39," ") ->  | B40: =IF('GESTION A'!F39<=0,'GESTION A'!B39," ") ->  | C40: =IF('GESTION A'!F39<=0,'GESTION A'!C39," " ) ->  | D40: =IF('GESTION A'!F39<=0,'GESTION A'!D39," ") -> 
A41: =IF('GESTION A'!F40<=0,'GESTION A'!A40," ") -> A0125 | B41: =IF('GESTION A'!F40<=0,'GESTION A'!B40," ") -> 0 | C41: =IF('GESTION A'!F40<=0,'GESTION A'!C40," " ) -> 0 | D41: =IF('GESTION A'!F40<=0,'GESTION A'!D40," ") -> 0
A42: =IF('GESTION A'!F41<=0,'GESTION A'!A41," ") ->  | B42: =IF('GESTION A'!F41<=0,'GESTION A'!B41," ") ->  | C42: =IF('GESTION A'!F41<=0,'GESTION A'!C41," " ) ->  | D42: =IF('GESTION A'!F41<=0,'GESTION A'!D41," ") -> 
A43: =IF('GESTION A'!F43<=0,'GESTION A'!A43," ") ->  | B43: =IF('GESTION A'!F43<=0,'GESTION A'!B43," ") ->  | C43: =IF('GESTION A'!F43<=0,'GESTION A'!C43," " ) ->  | D43: =IF('GESTION A'!F43<=0,'GESTION A'!D43," ") -> 
A44: =IF('GESTION A'!F44<=0,'GESTION A'!A44," ") ->  | B44: =IF('GESTION A'!F44<=0,'GESTION A'!B44," ") ->  | C44: =IF('GESTION A'!F44<=0,'GESTION A'!C44," " ) ->  | D44: =IF('GESTION A'!F44<=0,'GESTION A'!D44," ") -> 
A45: =IF('GESTION A'!F45<=0,'GESTION A'!A45," ") ->  | B45: =IF('GESTION A'!F45<=0,'GESTION A'!B45," ") ->  | C45: =IF('GESTION A'!F45<=0,'GESTION A'!C45," " ) ->  | D45: =IF('GESTION A'!F45<=0,'GESTION A'!D45," ") -> 
A46: =IF('GESTION A'!F46<=0,'GESTION A'!A46," ") ->  | B46: =IF('GESTION A'!F46<=0,'GESTION A'!B46," ") ->  | C46: =IF('GESTION A'!F46<=0,'GESTION A'!C46," " ) ->  | D46: =IF('GESTION A'!F46<=0,'GESTION A'!D46," ") -> 
A47: =IF('GESTION A'!F47<=0,'GESTION A'!A47," ") -> A0206-A | B47: =IF('GESTION A'!F47<=0,'GESTION A'!B47," ") -> SIRUGUE | C47: =IF('GESTION A'!F47<=0,'GESTION A'!C47," " ) -> M70 | D47: =IF('GESTION A'!F47<=0,'GESTION A'!D47," ") -> EBAUCHE Ø46
A48: =IF('GESTION A'!F50<=0,'GESTION A'!A50," ") ->  | B48: =IF('GESTION A'!F50<=0,'GESTION A'!B50," ") ->  | C48: =IF('GESTION A'!F50<=0,'GESTION A'!C50," " ) ->  | D48: =IF('GESTION A'!F50<=0,'GESTION A'!D50," ") -> 
A49: =IF('GESTION A'!F51<=0,'GESTION A'!A51," ") ->  | B49: =IF('GESTION A'!F51<=0,'GESTION A'!B51," ") ->  | C49: =IF('GESTION A'!F51<=0,'GESTION A'!C51," " ) ->  | D49: =IF('GESTION A'!F51<=0,'GESTION A'!D51," ") -> 
A50: =IF('GESTION A'!F52<=0,'GESTION A'!A52," ") ->  | B50: =IF('GESTION A'!F52<=0,'GESTION A'!B52," ") ->  | C50: =IF('GESTION A'!F52<=0,'GESTION A'!C52," " ) ->  | D50: =IF('GESTION A'!F52<=0,'GESTION A'!D52," ") -> 
A51: =IF('GESTION A'!F53<=0,'GESTION A'!A53," ") ->  | B51: =IF('GESTION A'!F53<=0,'GESTION A'!B53," ") ->  | C51: =IF('GESTION A'!F53<=0,'GESTION A'!C53," " ) ->  | D51: =IF('GESTION A'!F53<=0,'GESTION A'!D53," ") -> 
A52: =IF('GESTION A'!F54<=0,'GESTION A'!A54," ") ->  | B52: =IF('GESTION A'!F54<=0,'GESTION A'!B54," ") ->  | C52: =IF('GESTION A'!F54<=0,'GESTION A'!C54," " ) ->  | D52: =IF('GESTION A'!F54<=0,'GESTION A'!D54," ") -> 
A53: =IF('GESTION A'!F55<=0,'GESTION A'!A55," ") ->  | B53: =IF('GESTION A'!F55<=0,'GESTION A'!B55," ") ->  | C53: =IF('GESTION A'!F55<=0,'GESTION A'!C55," " ) ->  | D53: =IF('GESTION A'!F55<=0,'GESTION A'!D55," ") -> 
A54: =IF('GESTION A'!F56<=0,'GESTION A'!A56," ") ->  | B54: =IF('GESTION A'!F56<=0,'GESTION A'!B56," ") ->  | C54: =IF('GESTION A'!F56<=0,'GESTION A'!C56," " ) ->  | D54: =IF('GESTION A'!F56<=0,'GESTION A'!D56," ") -> 
A55: =IF('GESTION A'!F57<=0,'GESTION A'!A57," ") ->  | B55: =IF('GESTION A'!F57<=0,'GESTION A'!B57," ") ->  | C55: =IF('GESTION A'!F57<=0,'GESTION A'!C57," " ) ->  | D55: =IF('GESTION A'!F57<=0,'GESTION A'!D57," ") -> 
A56: =IF('GESTION A'!F58<=0,'GESTION A'!A58," ") ->  | B56: =IF('GESTION A'!F58<=0,'GESTION A'!B58," ") ->  | C56: =IF('GESTION A'!F58<=0,'GESTION A'!C58," " ) ->  | D56: =IF('GESTION A'!F58<=0,'GESTION A'!D58," ") -> 
A57: =IF('GESTION A'!F59<=0,'GESTION A'!A59," ") ->  | B57: =IF('GESTION A'!F59<=0,'GESTION A'!B59," ") ->  | C57: =IF('GESTION A'!F59<=0,'GESTION A'!C59," " ) ->  | D57: =IF('GESTION A'!F59<=0,'GESTION A'!D59," ") -> 
A58: =IF('GESTION A'!F60<=0,'GESTION A'!A60," ") ->  | B58: =IF('GESTION A'!F60<=0,'GESTION A'!B60," ") ->  | C58: =IF('GESTION A'!F60<=0,'GESTION A'!C60," " ) ->  | D58: =IF('GESTION A'!F60<=0,'GESTION A'!D60," ") -> 
A59: =IF('GESTION A'!F61<=0,'GESTION A'!A61," ") ->  | B59: =IF('GESTION A'!F61<=0,'GESTION A'!B61," ") ->  | C59: =IF('GESTION A'!F61<=0,'GESTION A'!C61," " ) ->  | D59: =IF('GESTION A'!F61<=0,'GESTION A'!D61," ") -> 
A60: =IF('GESTION A'!F62<=0,'GESTION A'!A62," ") ->  | B60: =IF('GESTION A'!F62<=0,'GESTION A'!B62," ") ->  | C60: =IF('GESTION A'!F62<=0,'GESTION A'!C62," " ) ->  | D60: =IF('GESTION A'!F62<=0,'GESTION A'!D62," ") -> 
A61: =IF('GESTION A'!F63<=0,'GESTION A'!A63," ") ->  | B61: =IF('GESTION A'!F63<=0,'GESTION A'!B63," ") ->  | C61: =IF('GESTION A'!F63<=0,'GESTION A'!C63," " ) ->  | D61: =IF('GESTION A'!F63<=0,'GESTION A'!D63," ") -> 
A62: =IF('GESTION A'!F64<=0,'GESTION A'!A64," ") ->  | B62: =IF('GESTION A'!F64<=0,'GESTION A'!B64," ") ->  | C62: =IF('GESTION A'!F64<=0,'GESTION A'!C64," " ) ->  | D62: =IF('GESTION A'!F64<=0,'GESTION A'!D64," ") -> 
A63: =IF('GESTION A'!F65<=0,'GESTION A'!A65," ") ->  | B63: =IF('GESTION A'!F65<=0,'GESTION A'!B65," ") ->  | C63: =IF('GESTION A'!F65<=0,'GESTION A'!C65," " ) ->  | D63: =IF('GESTION A'!F65<=0,'GESTION A'!D65," ") -> 
A64: =IF('GESTION A'!F66<=0,'GESTION A'!A66," ") ->  | B64: =IF('GESTION A'!F66<=0,'GESTION A'!B66," ") ->  | C64: =IF('GESTION A'!F66<=0,'GESTION A'!C66," " ) ->  | D64: =IF('GESTION A'!F66<=0,'GESTION A'!D66," ") -> 
A65: =IF('GESTION A'!F67<=0,'GESTION A'!A67," ") ->  | B65: =IF('GESTION A'!F67<=0,'GESTION A'!B67," ") ->  | C65: =IF('GESTION A'!F67<=0,'GESTION A'!C67," " ) ->  | D65: =IF('GESTION A'!F67<=0,'GESTION A'!D67," ") -> 
A66: =IF('GESTION A'!F68<=0,'GESTION A'!A68," ") ->  | B66: =IF('GESTION A'!F68<=0,'GESTION A'!B68," ") ->  | C66: =IF('GESTION A'!F68<=0,'GESTION A'!C68," " ) ->  | D66: =IF('GESTION A'!F68<=0,'GESTION A'!D68," ") -> 
A67: =IF('GESTION A'!F69<=0,'GESTION A'!A69," ") ->  | B67: =IF('GESTION A'!F69<=0,'GESTION A'!B69," ") ->  | C67: =IF('GESTION A'!F69<=0,'GESTION A'!C69," " ) ->  | D67: =IF('GESTION A'!F69<=0,'GESTION A'!D69," ") -> 
A68: =IF('GESTION A'!F70<=0,'GESTION A'!A70," ") ->  | B68: =IF('GESTION A'!F70<=0,'GESTION A'!B70," ") ->  | C68: =IF('GESTION A'!F70<=0,'GESTION A'!C70," " ) ->  | D68: =IF('GESTION A'!F70<=0,'GESTION A'!D70," ") -> 
A69: =IF('GESTION A'!F71<=0,'GESTION A'!A71," ") ->  | B69: =IF('GESTION A'!F71<=0,'GESTION A'!B71," ") ->  | C69: =IF('GESTION A'!F71<=0,'GESTION A'!C71," " ) ->  | D69: =IF('GESTION A'!F71<=0,'GESTION A'!D71," ") -> 
A70: =IF('GESTION A'!F72<=0,'GESTION A'!A72," ") ->  | B70: =IF('GESTION A'!F72<=0,'GESTION A'!B72," ") ->  | C70: =IF('GESTION A'!F72<=0,'GESTION A'!C72," " ) ->  | D70: =IF('GESTION A'!F72<=0,'GESTION A'!D72," ") -> 
A71: =IF('GESTION A'!F73<=0,'GESTION A'!A73," ") ->  | B71: =IF('GESTION A'!F73<=0,'GESTION A'!B73," ") ->  | C71: =IF('GESTION A'!F73<=0,'GESTION A'!C73," " ) ->  | D71: =IF('GESTION A'!F73<=0,'GESTION A'!D73," ") -> 
A72: =IF('GESTION A'!F74<=0,'GESTION A'!A74," ") ->  | B72: =IF('GESTION A'!F74<=0,'GESTION A'!B74," ") ->  | C72: =IF('GESTION A'!F74<=0,'GESTION A'!C74," " ) ->  | D72: =IF('GESTION A'!F74<=0,'GESTION A'!D74," ") -> 
A73: =IF('GESTION A'!F75<=0,'GESTION A'!A75," ") ->  | B73: =IF('GESTION A'!F75<=0,'GESTION A'!B75," ") ->  | C73: =IF('GESTION A'!F75<=0,'GESTION A'!C75," " ) ->  | D73: =IF('GESTION A'!F75<=0,'GESTION A'!D75," ") -> 
A74: =IF('GESTION A'!F76<=0,'GESTION A'!A76," ") ->  | B74: =IF('GESTION A'!F76<=0,'GESTION A'!B76," ") ->  | C74: =IF('GESTION A'!F76<=0,'GESTION A'!C76," " ) ->  | D74: =IF('GESTION A'!F76<=0,'GESTION A'!D76," ") -> 
A75: =IF('GESTION A'!F77<=0,'GESTION A'!A77," ") ->  | B75: =IF('GESTION A'!F77<=0,'GESTION A'!B77," ") ->  | C75: =IF('GESTION A'!F77<=0,'GESTION A'!C77," " ) ->  | D75: =IF('GESTION A'!F77<=0,'GESTION A'!D77," ") -> 
A76: =IF('GESTION A'!F78<=0,'GESTION A'!A78," ") ->  | B76: =IF('GESTION A'!F78<=0,'GESTION A'!B78," ") ->  | C76: =IF('GESTION A'!F78<=0,'GESTION A'!C78," " ) ->  | D76: =IF('GESTION A'!F78<=0,'GESTION A'!D78," ") -> 
A77: =IF('GESTION A'!F79<=0,'GESTION A'!A79," ") ->  | B77: =IF('GESTION A'!F79<=0,'GESTION A'!B79," ") ->  | C77: =IF('GESTION A'!F79<=0,'GESTION A'!C79," " ) ->  | D77: =IF('GESTION A'!F79<=0,'GESTION A'!D79," ") -> 
A78: =IF('GESTION A'!F80<=0,'GESTION A'!A80," ") ->  | B78: =IF('GESTION A'!F80<=0,'GESTION A'!B80," ") ->  | C78: =IF('GESTION A'!F80<=0,'GESTION A'!C80," " ) ->  | D78: =IF('GESTION A'!F80<=0,'GESTION A'!D80," ") -> 
A79: =IF('GESTION A'!F81<=0,'GESTION A'!A81," ") ->  | B79: =IF('GESTION A'!F81<=0,'GESTION A'!B81," ") ->  | C79: =IF('GESTION A'!F81<=0,'GESTION A'!C81," " ) ->  | D79: =IF('GESTION A'!F81<=0,'GESTION A'!D81," ") -> 
A80: =IF('GESTION A'!F82<=0,'GESTION A'!A82," ") ->  | B80: =IF('GESTION A'!F82<=0,'GESTION A'!B82," ") ->  | C80: =IF('GESTION A'!F82<=0,'GESTION A'!C82," " ) ->  | D80: =IF('GESTION A'!F82<=0,'GESTION A'!D82," ") -> 
A81: =IF('GESTION A'!F83<=0,'GESTION A'!A83," ") ->  | B81: =IF('GESTION A'!F83<=0,'GESTION A'!B83," ") ->  | C81: =IF('GESTION A'!F83<=0,'GESTION A'!C83," " ) ->  | D81: =IF('GESTION A'!F83<=0,'GESTION A'!D83," ") -> 
A82: =IF('GESTION A'!F84<=0,'GESTION A'!A84," ") ->  | B82: =IF('GESTION A'!F84<=0,'GESTION A'!B84," ") ->  | C82: =IF('GESTION A'!F84<=0,'GESTION A'!C84," " ) ->  | D82: =IF('GESTION A'!F84<=0,'GESTION A'!D84," ") -> 
A83: =IF('GESTION A'!F85<=0,'GESTION A'!A85," ") ->  | B83: =IF('GESTION A'!F85<=0,'GESTION A'!B85," ") ->  | C83: =IF('GESTION A'!F85<=0,'GESTION A'!C85," " ) ->  | D83: =IF('GESTION A'!F85<=0,'GESTION A'!D85," ") -> 
A84: =IF('GESTION A'!F86<=0,'GESTION A'!A86," ") ->  | B84: =IF('GESTION A'!F86<=0,'GESTION A'!B86," ") ->  | C84: =IF('GESTION A'!F86<=0,'GESTION A'!C86," " ) ->  | D84: =IF('GESTION A'!F86<=0,'GESTION A'!D86," ") -> 
A85: =IF('GESTION A'!F87<=0,'GESTION A'!A87," ") ->  | B85: =IF('GESTION A'!F87<=0,'GESTION A'!B87," ") ->  | C85: =IF('GESTION A'!F87<=0,'GESTION A'!C87," " ) ->  | D85: =IF('GESTION A'!F87<=0,'GESTION A'!D87," ") -> 
A86: =IF('GESTION A'!F88<=0,'GESTION A'!A88," ") ->  | B86: =IF('GESTION A'!F88<=0,'GESTION A'!B88," ") ->  | C86: =IF('GESTION A'!F88<=0,'GESTION A'!C88," " ) ->  | D86: =IF('GESTION A'!F88<=0,'GESTION A'!D88," ") -> 
A87: =IF('GESTION A'!F89<=0,'GESTION A'!A89," ") ->  | B87: =IF('GESTION A'!F89<=0,'GESTION A'!B89," ") ->  | C87: =IF('GESTION A'!F89<=0,'GESTION A'!C89," " ) ->  | D87: =IF('GESTION A'!F89<=0,'GESTION A'!D89," ") -> 
A88: =IF('GESTION A'!F90<=0,'GESTION A'!A90," ") ->  | B88: =IF('GESTION A'!F90<=0,'GESTION A'!B90," ") ->  | C88: =IF('GESTION A'!F90<=0,'GESTION A'!C90," " ) ->  | D88: =IF('GESTION A'!F90<=0,'GESTION A'!D90," ") -> 
A89: =IF('GESTION A'!F91<=0,'GESTION A'!A91," ") ->  | B89: =IF('GESTION A'!F91<=0,'GESTION A'!B91," ") ->  | C89: =IF('GESTION A'!F91<=0,'GESTION A'!C91," " ) ->  | D89: =IF('GESTION A'!F91<=0,'GESTION A'!D91," ") -> 
A90: =IF('GESTION A'!F92<=0,'GESTION A'!A92," ") ->  | B90: =IF('GESTION A'!F92<=0,'GESTION A'!B92," ") ->  | C90: =IF('GESTION A'!F92<=0,'GESTION A'!C92," " ) ->  | D90: =IF('GESTION A'!F92<=0,'GESTION A'!D92," ") -> 
A91: =IF('GESTION A'!F94<=0,'GESTION A'!A94," ") ->  | B91: =IF('GESTION A'!F94<=0,'GESTION A'!B94," ") ->  | C91: =IF('GESTION A'!F94<=0,'GESTION A'!C94," " ) ->  | D91: =IF('GESTION A'!F94<=0,'GESTION A'!D94," ") -> 
A92: =IF('GESTION A'!F95<=0,'GESTION A'!A95," ") ->  | B92: =IF('GESTION A'!F95<=0,'GESTION A'!B95," ") ->  | C92: =IF('GESTION A'!F95<=0,'GESTION A'!C95," " ) ->  | D92: =IF('GESTION A'!F95<=0,'GESTION A'!D95," ") -> 
A93: =IF('GESTION A'!F96<=0,'GESTION A'!A96," ") -> A0322-A | B93: =IF('GESTION A'!F96<=0,'GESTION A'!B96," ") -> SIRUGUE | C93: =IF('GESTION A'!F96<=0,'GESTION A'!C96," " ) -> 0 | D93: =IF('GESTION A'!F96<=0,'GESTION A'!D96," ") -> DECHAUSSOIR
A94: =IF('GESTION A'!F97<=0,'GESTION A'!A97," ") ->  | B94: =IF('GESTION A'!F97<=0,'GESTION A'!B97," ") ->  | C94: =IF('GESTION A'!F97<=0,'GESTION A'!C97," " ) ->  | D94: =IF('GESTION A'!F97<=0,'GESTION A'!D97," ") -> 
A95: =IF('GESTION A'!F99<=0,'GESTION A'!A99," ") ->  | B95: =IF('GESTION A'!F99<=0,'GESTION A'!B99," ") ->  | C95: =IF('GESTION A'!F99<=0,'GESTION A'!C99," " ) ->  | D95: =IF('GESTION A'!F99<=0,'GESTION A'!D99," ") -> 
A96: =IF('GESTION A'!F100<=0,'GESTION A'!A100," ") ->  | B96: =IF('GESTION A'!F100<=0,'GESTION A'!B100," ") ->  | C96: =IF('GESTION A'!F100<=0,'GESTION A'!C100," " ) ->  | D96: =IF('GESTION A'!F100<=0,'GESTION A'!D100," ") -> 
A97: =IF('GESTION A'!F102<=0,'GESTION A'!A102," ") ->  | B97: =IF('GESTION A'!F102<=0,'GESTION A'!B102," ") ->  | C97: =IF('GESTION A'!F102<=0,'GESTION A'!C102," " ) ->  | D97: =IF('GESTION A'!F102<=0,'GESTION A'!D102," ") -> 
A98: =IF('GESTION A'!F103<=0,'GESTION A'!A103," ") ->  | B98: =IF('GESTION A'!F103<=0,'GESTION A'!B103," ") ->  | C98: =IF('GESTION A'!F103<=0,'GESTION A'!C103," " ) ->  | D98: =IF('GESTION A'!F103<=0,'GESTION A'!D103," ") -> 
A99: =IF('GESTION A'!F104<=0,'GESTION A'!A104," ") ->  | B99: =IF('GESTION A'!F104<=0,'GESTION A'!B104," ") ->  | C99: =IF('GESTION A'!F104<=0,'GESTION A'!C104," " ) ->  | D99: =IF('GESTION A'!F104<=0,'GESTION A'!D104," ") -> 
A100: =IF('GESTION A'!F106<=0,'GESTION A'!A106," ") ->  | B100: =IF('GESTION A'!F106<=0,'GESTION A'!B106," ") ->  | C100: =IF('GESTION A'!F106<=0,'GESTION A'!C106," " ) ->  | D100: =IF('GESTION A'!F106<=0,'GESTION A'!D106," ") -> 
A101: =IF('GESTION A'!F107<=0,'GESTION A'!A107," ") -> A0402-B | B101: =IF('GESTION A'!F107<=0,'GESTION A'!B107," ") -> FICEP | C101: =IF('GESTION A'!F107<=0,'GESTION A'!C107," " ) -> PC28 | D101: =IF('GESTION A'!F107<=0,'GESTION A'!D107," ") -> EBAUCHE FRAISEE 0 ET 45°
A102: =IF('GESTION A'!F108<=0,'GESTION A'!A108," ") ->  | B102: =IF('GESTION A'!F108<=0,'GESTION A'!B108," ") ->  | C102: =IF('GESTION A'!F108<=0,'GESTION A'!C108," " ) ->  | D102: =IF('GESTION A'!F108<=0,'GESTION A'!D108," ") -> 
A103: =IF('GESTION A'!F109<=0,'GESTION A'!A109," ") ->  | B103: =IF('GESTION A'!F109<=0,'GESTION A'!B109," ") ->  | C103: =IF('GESTION A'!F109<=0,'GESTION A'!C109," " ) ->  | D103: =IF('GESTION A'!F109<=0,'GESTION A'!D109," ") -> 
A104: =IF('GESTION A'!F110<=0,'GESTION A'!A110," ") ->  | B104: =IF('GESTION A'!F110<=0,'GESTION A'!B110," ") ->  | C104: =IF('GESTION A'!F110<=0,'GESTION A'!C110," " ) ->  | D104: =IF('GESTION A'!F110<=0,'GESTION A'!D110," ") -> 
A105: =IF('GESTION A'!F111<=0,'GESTION A'!A111," ") ->  | B105: =IF('GESTION A'!F111<=0,'GESTION A'!B111," ") ->  | C105: =IF('GESTION A'!F111<=0,'GESTION A'!C111," " ) ->  | D105: =IF('GESTION A'!F111<=0,'GESTION A'!D111," ") -> 
A106: =IF('GESTION A'!F112<=0,'GESTION A'!A112," ") ->  | B106: =IF('GESTION A'!F112<=0,'GESTION A'!B112," ") ->  | C106: =IF('GESTION A'!F112<=0,'GESTION A'!C112," " ) ->  | D106: =IF('GESTION A'!F112<=0,'GESTION A'!D112," ") -> 
A107: =IF('GESTION A'!F113<=0,'GESTION A'!A113," ") ->  | B107: =IF('GESTION A'!F113<=0,'GESTION A'!B113," ") ->  | C107: =IF('GESTION A'!F113<=0,'GESTION A'!C113," " ) ->  | D107: =IF('GESTION A'!F113<=0,'GESTION A'!D113," ") -> 
A108: =IF('GESTION A'!F114<=0,'GESTION A'!A114," ") ->  | B108: =IF('GESTION A'!F114<=0,'GESTION A'!B114," ") ->  | C108: =IF('GESTION A'!F114<=0,'GESTION A'!C114," " ) ->  | D108: =IF('GESTION A'!F114<=0,'GESTION A'!D114," ") -> 
A109: =IF('GESTION A'!F115<=0,'GESTION A'!A115," ") ->  | B109: =IF('GESTION A'!F115<=0,'GESTION A'!B115," ") ->  | C109: =IF('GESTION A'!F115<=0,'GESTION A'!C115," " ) ->  | D109: =IF('GESTION A'!F115<=0,'GESTION A'!D115," ") -> 
A110: =IF('GESTION A'!F116<=0,'GESTION A'!A116," ") ->  | B110: =IF('GESTION A'!F116<=0,'GESTION A'!B116," ") ->  | C110: =IF('GESTION A'!F116<=0,'GESTION A'!C116," " ) ->  | D110: =IF('GESTION A'!F116<=0,'GESTION A'!D116," ") -> 
A111: =IF('GESTION A'!F117<=0,'GESTION A'!A117," ") ->  | B111: =IF('GESTION A'!F117<=0,'GESTION A'!B117," ") ->  | C111: =IF('GESTION A'!F117<=0,'GESTION A'!C117," " ) ->  | D111: =IF('GESTION A'!F117<=0,'GESTION A'!D117," ") -> 
A112: =IF('GESTION A'!F118<=0,'GESTION A'!A118," ") ->  | B112: =IF('GESTION A'!F118<=0,'GESTION A'!B118," ") ->  | C112: =IF('GESTION A'!F118<=0,'GESTION A'!C118," " ) ->  | D112: =IF('GESTION A'!F118<=0,'GESTION A'!D118," ") -> 
A113: =IF('GESTION A'!F120<=0,'GESTION A'!A120," ") ->  | B113: =IF('GESTION A'!F120<=0,'GESTION A'!B120," ") ->  | C113: =IF('GESTION A'!F120<=0,'GESTION A'!C120," " ) ->  | D113: =IF('GESTION A'!F120<=0,'GESTION A'!D120," ") -> 
A114: =IF('GESTION A'!F121<=0,'GESTION A'!A121," ") ->  | B114: =IF('GESTION A'!F121<=0,'GESTION A'!B121," ") ->  | C114: =IF('GESTION A'!F121<=0,'GESTION A'!C121," " ) ->  | D114: =IF('GESTION A'!F121<=0,'GESTION A'!D121," ") -> 
A115: =IF('GESTION A'!F122<=0,'GESTION A'!A122," ") ->  | B115: =IF('GESTION A'!F122<=0,'GESTION A'!B122," ") ->  | C115: =IF('GESTION A'!F122<=0,'GESTION A'!C122," " ) ->  | D115: =IF('GESTION A'!F122<=0,'GESTION A'!D122," ") -> 
A116: =IF('GESTION A'!F124<=0,'GESTION A'!A124," ") ->  | B116: =IF('GESTION A'!F124<=0,'GESTION A'!B124," ") ->  | C116: =IF('GESTION A'!F124<=0,'GESTION A'!C124," " ) ->  | D116: =IF('GESTION A'!F124<=0,'GESTION A'!D124," ") -> 
A117: =IF('GESTION A'!F125<=0,'GESTION A'!A125," ") ->  | B117: =IF('GESTION A'!F125<=0,'GESTION A'!B125," ") ->  | C117: =IF('GESTION A'!F125<=0,'GESTION A'!C125," " ) ->  | D117: =IF('GESTION A'!F125<=0,'GESTION A'!D125," ") -> 
A118: =IF('GESTION A'!F126<=0,'GESTION A'!A126," ") ->  | B118: =IF('GESTION A'!F126<=0,'GESTION A'!B126," ") ->  | C118: =IF('GESTION A'!F126<=0,'GESTION A'!C126," " ) ->  | D118: =IF('GESTION A'!F126<=0,'GESTION A'!D126," ") -> 
A119: =IF('GESTION A'!F127<=0,'GESTION A'!A127," ") ->  | B119: =IF('GESTION A'!F127<=0,'GESTION A'!B127," ") ->  | C119: =IF('GESTION A'!F127<=0,'GESTION A'!C127," " ) ->  | D119: =IF('GESTION A'!F127<=0,'GESTION A'!D127," ") -> 
A120: =IF('GESTION A'!F129<=0,'GESTION A'!A129," ") ->  | B120: =IF('GESTION A'!F129<=0,'GESTION A'!B129," ") ->  | C120: =IF('GESTION A'!F129<=0,'GESTION A'!C129," " ) ->  | D120: =IF('GESTION A'!F129<=0,'GESTION A'!D129," ") -> 
A121: =IF('GESTION A'!F131<=0,'GESTION A'!A131," ") -> A0419 | B121: =IF('GESTION A'!F131<=0,'GESTION A'!B131," ") -> 0 | C121: =IF('GESTION A'!F131<=0,'GESTION A'!C131," " ) -> 0 | D121: =IF('GESTION A'!F131<=0,'GESTION A'!D131," ") -> 0
A122: =IF('GESTION A'!F132<=0,'GESTION A'!A132," ") -> A0420 | B122: =IF('GESTION A'!F132<=0,'GESTION A'!B132," ") -> 0 | C122: =IF('GESTION A'!F132<=0,'GESTION A'!C132," " ) -> 0 | D122: =IF('GESTION A'!F132<=0,'GESTION A'!D132," ") -> 0
A123: =IF('GESTION A'!F133<=0,'GESTION A'!A133," ") -> A0421 | B123: =IF('GESTION A'!F133<=0,'GESTION A'!B133," ") -> 0 | C123: =IF('GESTION A'!F133<=0,'GESTION A'!C133," " ) -> 0 | D123: =IF('GESTION A'!F133<=0,'GESTION A'!D133," ") -> 0
A124: =IF('GESTION A'!F134<=0,'GESTION A'!A134," ") -> A0422 | B124: =IF('GESTION A'!F134<=0,'GESTION A'!B134," ") -> 0 | C124: =IF('GESTION A'!F134<=0,'GESTION A'!C134," " ) -> 0 | D124: =IF('GESTION A'!F134<=0,'GESTION A'!D134," ") -> 0
A125: =IF('GESTION A'!F135<=0,'GESTION A'!A135," ") ->  | B125: =IF('GESTION A'!F135<=0,'GESTION A'!B135," ") ->  | C125: =IF('GESTION A'!F135<=0,'GESTION A'!C135," " ) ->  | D125: =IF('GESTION A'!F135<=0,'GESTION A'!D135," ") -> 
A126: =IF('GESTION A'!F136<=0,'GESTION A'!A136," ") ->  | B126: =IF('GESTION A'!F136<=0,'GESTION A'!B136," ") ->  | C126: =IF('GESTION A'!F136<=0,'GESTION A'!C136," " ) ->  | D126: =IF('GESTION A'!F136<=0,'GESTION A'!D136," ") -> 
A127: =IF('GESTION A'!F137<=0,'GESTION A'!A137," ") ->  | B127: =IF('GESTION A'!F137<=0,'GESTION A'!B137," ") ->  | C127: =IF('GESTION A'!F137<=0,'GESTION A'!C137," " ) ->  | D127: =IF('GESTION A'!F137<=0,'GESTION A'!D137," ") -> 
A128: =IF('GESTION A'!F138<=0,'GESTION A'!A138," ") ->  | B128: =IF('GESTION A'!F138<=0,'GESTION A'!B138," ") ->  | C128: =IF('GESTION A'!F138<=0,'GESTION A'!C138," " ) ->  | D128: =IF('GESTION A'!F138<=0,'GESTION A'!D138," ") -> 
A129: =IF('GESTION A'!F139<=0,'GESTION A'!A139," ") ->  | B129: =IF('GESTION A'!F139<=0,'GESTION A'!B139," ") ->  | C129: =IF('GESTION A'!F139<=0,'GESTION A'!C139," " ) ->  | D129: =IF('GESTION A'!F139<=0,'GESTION A'!D139," ") -> 
A130: =IF('GESTION A'!F140<=0,'GESTION A'!A140," ") ->  | B130: =IF('GESTION A'!F140<=0,'GESTION A'!B140," ") ->  | C130: =IF('GESTION A'!F140<=0,'GESTION A'!C140," " ) ->  | D130: =IF('GESTION A'!F140<=0,'GESTION A'!D140," ") -> 
A131: =IF('GESTION A'!F141<=0,'GESTION A'!A141," ") ->  | B131: =IF('GESTION A'!F141<=0,'GESTION A'!B141," ") ->  | C131: =IF('GESTION A'!F141<=0,'GESTION A'!C141," " ) ->  | D131: =IF('GESTION A'!F141<=0,'GESTION A'!D141," ") -> 
A132: =IF('GESTION A'!F142<=0,'GESTION A'!A142," ") -> A0502-B | B132: =IF('GESTION A'!F142<=0,'GESTION A'!B142," ") -> PEDDY | C132: =IF('GESTION A'!F142<=0,'GESTION A'!C142," " ) -> PN4 | D132: =IF('GESTION A'!F142<=0,'GESTION A'!D142," ") -> EBAUCHE FRAISEE L85
A133: =IF('GESTION A'!F144<=0,'GESTION A'!A144," ") ->  | B133: =IF('GESTION A'!F144<=0,'GESTION A'!B144," ") ->  | C133: =IF('GESTION A'!F144<=0,'GESTION A'!C144," " ) ->  | D133: =IF('GESTION A'!F144<=0,'GESTION A'!D144," ") -> 
A134: =IF('GESTION A'!#REF!<=0,'GESTION A'!#REF!," ") ->  | B134: =IF('GESTION A'!#REF!<=0,'GESTION A'!#REF!," ") ->  | C134: =IF('GESTION A'!#REF!<=0,'GESTION A'!#REF!," " ) ->  | D134: =IF('GESTION A'!#REF!<=0,'GESTION A'!#REF!," ") -> 
A135: =IF('GESTION A'!F146<=0,'GESTION A'!A146," ") ->  | B135: =IF('GESTION A'!F146<=0,'GESTION A'!B146," ") ->  | C135: =IF('GESTION A'!F146<=0,'GESTION A'!C146," " ) ->  | D135: =IF('GESTION A'!F146<=0,'GESTION A'!D146," ") -> 
A136: =IF('GESTION A'!F147<=0,'GESTION A'!A147," ") -> A0505-A | B136: =IF('GESTION A'!F147<=0,'GESTION A'!B147," ") -> PEDDY | C136: =IF('GESTION A'!F147<=0,'GESTION A'!C147," " ) -> PN5 | D136: =IF('GESTION A'!F147<=0,'GESTION A'!D147," ") -> EBAUCHE FRAISEE 31,5
A137: =IF('GESTION A'!F149<=0,'GESTION A'!A149," ") ->  | B137: =IF('GESTION A'!F149<=0,'GESTION A'!B149," ") ->  | C137: =IF('GESTION A'!F149<=0,'GESTION A'!C149," " ) ->  | D137: =IF('GESTION A'!F149<=0,'GESTION A'!D149," ") -> 
A138: =IF('GESTION A'!F150<=0,'GESTION A'!A150," ") ->  | B138: =IF('GESTION A'!F150<=0,'GESTION A'!B150," ") ->  | C138: =IF('GESTION A'!F150<=0,'GESTION A'!C150," " ) ->  | D138: =IF('GESTION A'!F150<=0,'GESTION A'!D150," ") -> 
A139: =IF('GESTION A'!F151<=0,'GESTION A'!A151," ") ->  | B139: =IF('GESTION A'!F151<=0,'GESTION A'!B151," ") ->  | C139: =IF('GESTION A'!F151<=0,'GESTION A'!C151," " ) ->  | D139: =IF('GESTION A'!F151<=0,'GESTION A'!D151," ") -> 
A140: =IF('GESTION A'!F153<=0,'GESTION A'!A153," ") ->  | B140: =IF('GESTION A'!F153<=0,'GESTION A'!B153," ") ->  | C140: =IF('GESTION A'!F153<=0,'GESTION A'!C153," " ) ->  | D140: =IF('GESTION A'!F153<=0,'GESTION A'!D153," ") -> 
A141: =IF('GESTION A'!F154<=0,'GESTION A'!A154," ") ->  | B141: =IF('GESTION A'!F154<=0,'GESTION A'!B154," ") ->  | C141: =IF('GESTION A'!F154<=0,'GESTION A'!C154," " ) ->  | D141: =IF('GESTION A'!F154<=0,'GESTION A'!D154," ") -> 
A142: =IF('GESTION A'!F155<=0,'GESTION A'!A155," ") ->  | B142: =IF('GESTION A'!F155<=0,'GESTION A'!B155," ") ->  | C142: =IF('GESTION A'!F155<=0,'GESTION A'!C155," " ) ->  | D142: =IF('GESTION A'!F155<=0,'GESTION A'!D155," ") -> 
A143: =IF('GESTION A'!F156<=0,'GESTION A'!A156," ") ->  | B143: =IF('GESTION A'!F156<=0,'GESTION A'!B156," ") ->  | C143: =IF('GESTION A'!F156<=0,'GESTION A'!C156," " ) ->  | D143: =IF('GESTION A'!F156<=0,'GESTION A'!D156," ") -> 
A144: =IF('GESTION A'!F157<=0,'GESTION A'!A157," ") ->  | B144: =IF('GESTION A'!F157<=0,'GESTION A'!B157," ") ->  | C144: =IF('GESTION A'!F157<=0,'GESTION A'!C157," " ) ->  | D144: =IF('GESTION A'!F157<=0,'GESTION A'!D157," ") -> 
A145: =IF('GESTION A'!F159<=0,'GESTION A'!A159," ") ->  | B145: =IF('GESTION A'!F159<=0,'GESTION A'!B159," ") ->  | C145: =IF('GESTION A'!F159<=0,'GESTION A'!C159," " ) ->  | D145: =IF('GESTION A'!F159<=0,'GESTION A'!D159," ") -> 
A146: =IF('GESTION A'!F160<=0,'GESTION A'!A160," ") ->  | B146: =IF('GESTION A'!F160<=0,'GESTION A'!B160," ") ->  | C146: =IF('GESTION A'!F160<=0,'GESTION A'!C160," " ) ->  | D146: =IF('GESTION A'!F160<=0,'GESTION A'!D160," ") -> 
A147: =IF('GESTION A'!F162<=0,'GESTION A'!A162," ") ->  | B147: =IF('GESTION A'!F162<=0,'GESTION A'!B162," ") ->  | C147: =IF('GESTION A'!F162<=0,'GESTION A'!C162," " ) ->  | D147: =IF('GESTION A'!F162<=0,'GESTION A'!D162," ") -> 
A148: =IF('GESTION A'!F163<=0,'GESTION A'!A163," ") ->  | B148: =IF('GESTION A'!F163<=0,'GESTION A'!B163," ") ->  | C148: =IF('GESTION A'!F163<=0,'GESTION A'!C163," " ) ->  | D148: =IF('GESTION A'!F163<=0,'GESTION A'!D163," ") -> 
A149: =IF('GESTION A'!F164<=0,'GESTION A'!A164," ") ->  | B149: =IF('GESTION A'!F164<=0,'GESTION A'!B164," ") ->  | C149: =IF('GESTION A'!F164<=0,'GESTION A'!C164," " ) ->  | D149: =IF('GESTION A'!F164<=0,'GESTION A'!D164," ") -> 
A150: =IF('GESTION A'!F165<=0,'GESTION A'!A165," ") ->  | B150: =IF('GESTION A'!F165<=0,'GESTION A'!B165," ") ->  | C150: =IF('GESTION A'!F165<=0,'GESTION A'!C165," " ) ->  | D150: =IF('GESTION A'!F165<=0,'GESTION A'!D165," ") -> 
A151: =IF('GESTION A'!F166<=0,'GESTION A'!A166," ") ->  | B151: =IF('GESTION A'!F166<=0,'GESTION A'!B166," ") ->  | C151: =IF('GESTION A'!F166<=0,'GESTION A'!C166," " ) ->  | D151: =IF('GESTION A'!F166<=0,'GESTION A'!D166," ") -> 
A152: =IF('GESTION A'!F169<=0,'GESTION A'!A169," ") ->  | B152: =IF('GESTION A'!F169<=0,'GESTION A'!B169," ") ->  | C152: =IF('GESTION A'!F169<=0,'GESTION A'!C169," " ) ->  | D152: =IF('GESTION A'!F169<=0,'GESTION A'!D169," ") -> 
A153: =IF('GESTION A'!F170<=0,'GESTION A'!A170," ") ->  | B153: =IF('GESTION A'!F170<=0,'GESTION A'!B170," ") ->  | C153: =IF('GESTION A'!F170<=0,'GESTION A'!C170," " ) ->  | D153: =IF('GESTION A'!F170<=0,'GESTION A'!D170," ") -> 
A154: =IF('GESTION A'!F171<=0,'GESTION A'!A171," ") ->  | B154: =IF('GESTION A'!F171<=0,'GESTION A'!B171," ") ->  | C154: =IF('GESTION A'!F171<=0,'GESTION A'!C171," " ) ->  | D154: =IF('GESTION A'!F171<=0,'GESTION A'!D171," ") -> 
A155: =IF('GESTION A'!F172<=0,'GESTION A'!A172," ") ->  | B155: =IF('GESTION A'!F172<=0,'GESTION A'!B172," ") ->  | C155: =IF('GESTION A'!F172<=0,'GESTION A'!C172," " ) ->  | D155: =IF('GESTION A'!F172<=0,'GESTION A'!D172," ") -> 
A156: =IF('GESTION A'!F173<=0,'GESTION A'!A173," ") ->  | B156: =IF('GESTION A'!F173<=0,'GESTION A'!B173," ") ->  | C156: =IF('GESTION A'!F173<=0,'GESTION A'!C173," " ) ->  | D156: =IF('GESTION A'!F173<=0,'GESTION A'!D173," ") -> 
A157: =IF('GESTION A'!F174<=0,'GESTION A'!A174," ") ->  | B157: =IF('GESTION A'!F174<=0,'GESTION A'!B174," ") ->  | C157: =IF('GESTION A'!F174<=0,'GESTION A'!C174," " ) ->  | D157: =IF('GESTION A'!F174<=0,'GESTION A'!D174," ") -> 
A158: =IF('GESTION A'!F175<=0,'GESTION A'!A175," ") ->  | B158: =IF('GESTION A'!F175<=0,'GESTION A'!B175," ") ->  | C158: =IF('GESTION A'!F175<=0,'GESTION A'!C175," " ) ->  | D158: =IF('GESTION A'!F175<=0,'GESTION A'!D175," ") -> 
A159: =IF('GESTION A'!F176<=0,'GESTION A'!A176," ") ->  | B159: =IF('GESTION A'!F176<=0,'GESTION A'!B176," ") ->  | C159: =IF('GESTION A'!F176<=0,'GESTION A'!C176," " ) ->  | D159: =IF('GESTION A'!F176<=0,'GESTION A'!D176," ") -> 
A160: =IF('GESTION A'!F177<=0,'GESTION A'!A177," ") ->  | B160: =IF('GESTION A'!F177<=0,'GESTION A'!B177," ") ->  | C160: =IF('GESTION A'!F177<=0,'GESTION A'!C177," " ) ->  | D160: =IF('GESTION A'!F177<=0,'GESTION A'!D177," ") -> 
A161: =IF('GESTION A'!F178<=0,'GESTION A'!A178," ") ->  | B161: =IF('GESTION A'!F178<=0,'GESTION A'!B178," ") ->  | C161: =IF('GESTION A'!F178<=0,'GESTION A'!C178," " ) ->  | D161: =IF('GESTION A'!F178<=0,'GESTION A'!D178," ") -> 
A162: =IF('GESTION A'!F179<=0,'GESTION A'!A179," ") ->  | B162: =IF('GESTION A'!F179<=0,'GESTION A'!B179," ") ->  | C162: =IF('GESTION A'!F179<=0,'GESTION A'!C179," " ) ->  | D162: =IF('GESTION A'!F179<=0,'GESTION A'!D179," ") -> 
A163: =IF('GESTION A'!F180<=0,'GESTION A'!A180," ") ->  | B163: =IF('GESTION A'!F180<=0,'GESTION A'!B180," ") ->  | C163: =IF('GESTION A'!F180<=0,'GESTION A'!C180," " ) ->  | D163: =IF('GESTION A'!F180<=0,'GESTION A'!D180," ") -> 
A164: =IF('GESTION A'!F181<=0,'GESTION A'!A181," ") ->  | B164: =IF('GESTION A'!F181<=0,'GESTION A'!B181," ") ->  | C164: =IF('GESTION A'!F181<=0,'GESTION A'!C181," " ) ->  | D164: =IF('GESTION A'!F181<=0,'GESTION A'!D181," ") -> 
A165: =IF('GESTION A'!F182<=0,'GESTION A'!A182," ") ->  | B165: =IF('GESTION A'!F182<=0,'GESTION A'!B182," ") ->  | C165: =IF('GESTION A'!F182<=0,'GESTION A'!C182," " ) ->  | D165: =IF('GESTION A'!F182<=0,'GESTION A'!D182," ") -> 
A166: =IF('GESTION A'!F183<=0,'GESTION A'!A183," ") ->  | B166: =IF('GESTION A'!F183<=0,'GESTION A'!B183," ") ->  | C166: =IF('GESTION A'!F183<=0,'GESTION A'!C183," " ) ->  | D166: =IF('GESTION A'!F183<=0,'GESTION A'!D183," ") -> 
A167: =IF('GESTION A'!F184<=0,'GESTION A'!A184," ") ->  | B167: =IF('GESTION A'!F184<=0,'GESTION A'!B184," ") ->  | C167: =IF('GESTION A'!F184<=0,'GESTION A'!C184," " ) ->  | D167: =IF('GESTION A'!F184<=0,'GESTION A'!D184," ") -> 
A168: =IF('GESTION A'!F185<=0,'GESTION A'!A185," ") ->  | B168: =IF('GESTION A'!F185<=0,'GESTION A'!B185," ") ->  | C168: =IF('GESTION A'!F185<=0,'GESTION A'!C185," " ) ->  | D168: =IF('GESTION A'!F185<=0,'GESTION A'!D185," ") -> 
A169: =IF('GESTION A'!F186<=0,'GESTION A'!A186," ") ->  | B169: =IF('GESTION A'!F186<=0,'GESTION A'!B186," ") ->  | C169: =IF('GESTION A'!F186<=0,'GESTION A'!C186," " ) ->  | D169: =IF('GESTION A'!F186<=0,'GESTION A'!D186," ") -> 
A170: =IF('GESTION A'!F187<=0,'GESTION A'!A187," ") -> A0605-A | B170: =IF('GESTION A'!F187<=0,'GESTION A'!B187," ") -> 0 | C170: =IF('GESTION A'!F187<=0,'GESTION A'!C187," " ) -> 0 | D170: =IF('GESTION A'!F187<=0,'GESTION A'!D187," ") -> 0
A171: =IF('GESTION A'!F188<=0,'GESTION A'!A188," ") ->  | B171: =IF('GESTION A'!F188<=0,'GESTION A'!B188," ") ->  | C171: =IF('GESTION A'!F188<=0,'GESTION A'!C188," " ) ->  | D171: =IF('GESTION A'!F188<=0,'GESTION A'!D188," ") -> 
A172: =IF('GESTION A'!F189<=0,'GESTION A'!A189," ") ->  | B172: =IF('GESTION A'!F189<=0,'GESTION A'!B189," ") ->  | C172: =IF('GESTION A'!F189<=0,'GESTION A'!C189," " ) ->  | D172: =IF('GESTION A'!F189<=0,'GESTION A'!D189," ") -> 
A173: =IF('GESTION A'!F190<=0,'GESTION A'!A190," ") ->  | B173: =IF('GESTION A'!F190<=0,'GESTION A'!B190," ") ->  | C173: =IF('GESTION A'!F190<=0,'GESTION A'!C190," " ) ->  | D173: =IF('GESTION A'!F190<=0,'GESTION A'!D190," ") -> 
A174: =IF('GESTION A'!F191<=0,'GESTION A'!A191," ") ->  | B174: =IF('GESTION A'!F191<=0,'GESTION A'!B191," ") ->  | C174: =IF('GESTION A'!F191<=0,'GESTION A'!C191," " ) ->  | D174: =IF('GESTION A'!F191<=0,'GESTION A'!D191," ") -> 
A175: =IF('GESTION A'!F192<=0,'GESTION A'!A192," ") ->  | B175: =IF('GESTION A'!F192<=0,'GESTION A'!B192," ") ->  | C175: =IF('GESTION A'!F192<=0,'GESTION A'!C192," " ) ->  | D175: =IF('GESTION A'!F192<=0,'GESTION A'!D192," ") -> 
A176: =IF('GESTION A'!F193<=0,'GESTION A'!A193," ") ->  | B176: =IF('GESTION A'!F193<=0,'GESTION A'!B193," ") ->  | C176: =IF('GESTION A'!F193<=0,'GESTION A'!C193," " ) ->  | D176: =IF('GESTION A'!F193<=0,'GESTION A'!D193," ") -> 
A177: =IF('GESTION A'!F194<=0,'GESTION A'!A194," ") ->  | B177: =IF('GESTION A'!F194<=0,'GESTION A'!B194," ") ->  | C177: =IF('GESTION A'!F194<=0,'GESTION A'!C194," " ) ->  | D177: =IF('GESTION A'!F194<=0,'GESTION A'!D194," ") -> 
A178: =IF('GESTION A'!F195<=0,'GESTION A'!A195," ") ->  | B178: =IF('GESTION A'!F195<=0,'GESTION A'!B195," ") ->  | C178: =IF('GESTION A'!F195<=0,'GESTION A'!C195," " ) ->  | D178: =IF('GESTION A'!F195<=0,'GESTION A'!D195," ") -> 
A179: =IF('GESTION A'!F196<=0,'GESTION A'!A196," ") ->  | B179: =IF('GESTION A'!F196<=0,'GESTION A'!B196," ") ->  | C179: =IF('GESTION A'!F196<=0,'GESTION A'!C196," " ) ->  | D179: =IF('GESTION A'!F196<=0,'GESTION A'!D196," ") -> 
A180: =IF('GESTION A'!F197<=0,'GESTION A'!A197," ") -> A0611 | B180: =IF('GESTION A'!F197<=0,'GESTION A'!B197," ") -> PEDDY | C180: =IF('GESTION A'!F197<=0,'GESTION A'!C197," " ) -> MN2 | D180: =IF('GESTION A'!F197<=0,'GESTION A'!D197," ") -> EBAUCHE FRAISEE PERCEE 0° ET 90°
A181: =IF('GESTION A'!F199<=0,'GESTION A'!A199," ") -> 0 | B181: =IF('GESTION A'!F199<=0,'GESTION A'!B199," ") -> 0 | C181: =IF('GESTION A'!F199<=0,'GESTION A'!C199," " ) -> 0 | D181: =IF('GESTION A'!F199<=0,'GESTION A'!D199," ") -> 0
A182: =IF('GESTION A'!F200<=0,'GESTION A'!A200," ") ->  | B182: =IF('GESTION A'!F200<=0,'GESTION A'!B200," ") ->  | C182: =IF('GESTION A'!F200<=0,'GESTION A'!C200," " ) ->  | D182: =IF('GESTION A'!F200<=0,'GESTION A'!D200," ") -> 
A183: =IF('GESTION A'!F201<=0,'GESTION A'!A201," ") ->  | B183: =IF('GESTION A'!F201<=0,'GESTION A'!B201," ") ->  | C183: =IF('GESTION A'!F201<=0,'GESTION A'!C201," " ) ->  | D183: =IF('GESTION A'!F201<=0,'GESTION A'!D201," ") -> 
A184: =IF('GESTION A'!F203<=0,'GESTION A'!A203," ") ->  | B184: =IF('GESTION A'!F203<=0,'GESTION A'!B203," ") ->  | C184: =IF('GESTION A'!F203<=0,'GESTION A'!C203," " ) ->  | D184: =IF('GESTION A'!F203<=0,'GESTION A'!D203," ") -> 
A185: =IF('GESTION A'!F205<=0,'GESTION A'!A205," ") ->  | B185: =IF('GESTION A'!F205<=0,'GESTION A'!B205," ") ->  | C185: =IF('GESTION A'!F205<=0,'GESTION A'!C205," " ) ->  | D185: =IF('GESTION A'!F205<=0,'GESTION A'!D205," ") -> 
A186: =IF('GESTION A'!F207<=0,'GESTION A'!A207," ") ->  | B186: =IF('GESTION A'!F207<=0,'GESTION A'!B207," ") ->  | C186: =IF('GESTION A'!F207<=0,'GESTION A'!C207," " ) ->  | D186: =IF('GESTION A'!F207<=0,'GESTION A'!D207," ") -> 
A187: =IF('GESTION A'!F209<=0,'GESTION A'!A209," ") ->  | B187: =IF('GESTION A'!F209<=0,'GESTION A'!B209," ") ->  | C187: =IF('GESTION A'!F209<=0,'GESTION A'!C209," " ) ->  | D187: =IF('GESTION A'!F209<=0,'GESTION A'!D209," ") -> 
A188: =IF('GESTION A'!F210<=0,'GESTION A'!A210," ") ->  | B188: =IF('GESTION A'!F210<=0,'GESTION A'!B210," ") ->  | C188: =IF('GESTION A'!F210<=0,'GESTION A'!C210," " ) ->  | D188: =IF('GESTION A'!F210<=0,'GESTION A'!D210," ") -> 
A189: =IF('GESTION A'!F211<=0,'GESTION A'!A211," ") ->  | B189: =IF('GESTION A'!F211<=0,'GESTION A'!B211," ") ->  | C189: =IF('GESTION A'!F211<=0,'GESTION A'!C211," " ) ->  | D189: =IF('GESTION A'!F211<=0,'GESTION A'!D211," ") -> 
A190: =IF('GESTION A'!F212<=0,'GESTION A'!A212," ") ->  | B190: =IF('GESTION A'!F212<=0,'GESTION A'!B212," ") ->  | C190: =IF('GESTION A'!F212<=0,'GESTION A'!C212," " ) ->  | D190: =IF('GESTION A'!F212<=0,'GESTION A'!D212," ") -> 
A191: =IF('GESTION A'!F213<=0,'GESTION A'!A213," ") ->  | B191: =IF('GESTION A'!F213<=0,'GESTION A'!B213," ") ->  | C191: =IF('GESTION A'!F213<=0,'GESTION A'!C213," " ) ->  | D191: =IF('GESTION A'!F213<=0,'GESTION A'!D213," ") -> 
A192: =IF('GESTION A'!F214<=0,'GESTION A'!A214," ") -> A0622 | B192: =IF('GESTION A'!F214<=0,'GESTION A'!B214," ") -> PEDDY | C192: =IF('GESTION A'!F214<=0,'GESTION A'!C214," " ) -> MN4 | D192: =IF('GESTION A'!F214<=0,'GESTION A'!D214," ") -> EBAUCHE FRAISEE PERCEE
A193: =IF('GESTION A'!F215<=0,'GESTION A'!A215," ") ->  | B193: =IF('GESTION A'!F215<=0,'GESTION A'!B215," ") ->  | C193: =IF('GESTION A'!F215<=0,'GESTION A'!C215," " ) ->  | D193: =IF('GESTION A'!F215<=0,'GESTION A'!D215," ") -> 
A194: =IF('GESTION A'!F216<=0,'GESTION A'!A216," ") ->  | B194: =IF('GESTION A'!F216<=0,'GESTION A'!B216," ") ->  | C194: =IF('GESTION A'!F216<=0,'GESTION A'!C216," " ) ->  | D194: =IF('GESTION A'!F216<=0,'GESTION A'!D216," ") -> 
A195: =IF('GESTION A'!F217<=0,'GESTION A'!A217," ") ->  | B195: =IF('GESTION A'!F217<=0,'GESTION A'!B217," ") ->  | C195: =IF('GESTION A'!F217<=0,'GESTION A'!C217," " ) ->  | D195: =IF('GESTION A'!F217<=0,'GESTION A'!D217," ") -> 
A196: =IF('GESTION A'!F218<=0,'GESTION A'!A218," ") -> A0701 | B196: =IF('GESTION A'!F218<=0,'GESTION A'!B218," ") -> PEDDY | C196: =IF('GESTION A'!F218<=0,'GESTION A'!C218," " ) -> MN6 | D196: =IF('GESTION A'!F218<=0,'GESTION A'!D218," ") -> EBAUCHE MATRICE DEGAGEE
A197: =IF('GESTION A'!F219<=0,'GESTION A'!A219," ") ->  | B197: =IF('GESTION A'!F219<=0,'GESTION A'!B219," ") ->  | C197: =IF('GESTION A'!F219<=0,'GESTION A'!C219," " ) ->  | D197: =IF('GESTION A'!F219<=0,'GESTION A'!D219," ") -> 
A198: =IF('GESTION A'!F220<=0,'GESTION A'!A220," ") ->  | B198: =IF('GESTION A'!F220<=0,'GESTION A'!B220," ") ->  | C198: =IF('GESTION A'!F220<=0,'GESTION A'!C220," " ) ->  | D198: =IF('GESTION A'!F220<=0,'GESTION A'!D220," ") -> 
A199: =IF('GESTION A'!F221<=0,'GESTION A'!A221," ") ->  | B199: =IF('GESTION A'!F221<=0,'GESTION A'!B221," ") ->  | C199: =IF('GESTION A'!F221<=0,'GESTION A'!C221," " ) ->  | D199: =IF('GESTION A'!F221<=0,'GESTION A'!D221," ") -> 
A200: =IF('GESTION A'!F222<=0,'GESTION A'!A222," ") ->  | B200: =IF('GESTION A'!F222<=0,'GESTION A'!B222," ") ->  | C200: =IF('GESTION A'!F222<=0,'GESTION A'!C222," " ) ->  | D200: =IF('GESTION A'!F222<=0,'GESTION A'!D222," ") -> 
A201: =IF('GESTION A'!F223<=0,'GESTION A'!A223," ") ->  | B201: =IF('GESTION A'!F223<=0,'GESTION A'!B223," ") ->  | C201: =IF('GESTION A'!F223<=0,'GESTION A'!C223," " ) ->  | D201: =IF('GESTION A'!F223<=0,'GESTION A'!D223," ") -> 
A202: =IF('GESTION A'!F224<=0,'GESTION A'!A224," ") ->  | B202: =IF('GESTION A'!F224<=0,'GESTION A'!B224," ") ->  | C202: =IF('GESTION A'!F224<=0,'GESTION A'!C224," " ) ->  | D202: =IF('GESTION A'!F224<=0,'GESTION A'!D224," ") -> 
A203: =IF('GESTION A'!F225<=0,'GESTION A'!A225," ") -> A0708 | B203: =IF('GESTION A'!F225<=0,'GESTION A'!B225," ") -> PEDDY | C203: =IF('GESTION A'!F225<=0,'GESTION A'!C225," " ) -> MN6 | D203: =IF('GESTION A'!F225<=0,'GESTION A'!D225," ") -> EBAUCHE Ø90 H70
A204: =IF('GESTION A'!F226<=0,'GESTION A'!A226," ") ->  | B204: =IF('GESTION A'!F226<=0,'GESTION A'!B226," ") ->  | C204: =IF('GESTION A'!F226<=0,'GESTION A'!C226," " ) ->  | D204: =IF('GESTION A'!F226<=0,'GESTION A'!D226," ") -> 
... 199 more rows

Sheet VIDES B
A1: EMPLACEMENTS VIDES ETAGERE B
A4: ADRESSES | B4: MACHINES | C4: REFERENCE | D4: DESIGNATION
A5: =IF('GESTION B'!F4<=0,'GESTION B'!A4," ") ->  | B5: =IF('GESTION B'!F4<=0,'GESTION B'!B4," ") ->  | C5: =IF('GESTION B'!F4>=0,'GESTION B'!C4," ") -> 9001 | D5: =IF('GESTION B'!F4>=0,'GESTION B'!D4," ") -> EBAUCHE FRAISEE
A6: =IF('GESTION B'!F7<=0,'GESTION B'!A7," ") ->  | B6: =IF('GESTION B'!F7<=0,'GESTION B'!B7," ") ->  | C6: =IF('GESTION B'!F7>=0,'GESTION B'!C7," ") -> 9001 | D6: =IF('GESTION B'!F7>=0,'GESTION B'!D7," ") -> EBAUCHE FRAISEE L71
A7: =IF('GESTION B'!F8<=0,'GESTION B'!A8," ") ->  | B7: =IF('GESTION B'!F8<=0,'GESTION B'!B8," ") ->  | C7: =IF('GESTION B'!F8>=0,'GESTION B'!C8," ") -> 9001 | D7: =IF('GESTION B'!F8>=0,'GESTION B'!D8," ") -> EBAUCHE FRAISEE L80
A8: =IF('GESTION B'!F9<=0,'GESTION B'!A9," ") ->  | B8: =IF('GESTION B'!F9<=0,'GESTION B'!B9," ") ->  | C8: =IF('GESTION B'!F9>=0,'GESTION B'!C9," ") -> 9001 | D8: =IF('GESTION B'!F9>=0,'GESTION B'!D9," ") -> EBAUCHE FRAISEE L97
A9: =IF('GESTION B'!F10<=0,'GESTION B'!A10," ") ->  | B9: =IF('GESTION B'!F10<=0,'GESTION B'!B10," ") ->  | C9: =IF('GESTION B'!F10>=0,'GESTION B'!C10," ") -> 9004 | D9: =IF('GESTION B'!F10>=0,'GESTION B'!D10," ") -> EBAUCHE FRAISEE
A10: =IF('GESTION B'!F11<=0,'GESTION B'!A11," ") ->  | B10: =IF('GESTION B'!F11<=0,'GESTION B'!B11," ") ->  | C10: =IF('GESTION B'!F11>=0,'GESTION B'!C11," ") -> 9004 | D10: =IF('GESTION B'!F11>=0,'GESTION B'!D11," ") -> EBAUCHE FRAISEE
A11: =IF('GESTION B'!F12<=0,'GESTION B'!A12," ") -> B0106-A | B11: =IF('GESTION B'!F12<=0,'GESTION B'!B12," ") -> KINGSLAND | C11: =IF('GESTION B'!F12>=0,'GESTION B'!C12," ") -> 9004 | D11: =IF('GESTION B'!F12>=0,'GESTION B'!D12," ") -> EBAUCHE FRAISEE L80
A12: =IF('GESTION B'!F13<=0,'GESTION B'!A13," ") -> B0106-B | B12: =IF('GESTION B'!F13<=0,'GESTION B'!B13," ") -> KINGSLAND | C12: =IF('GESTION B'!F13>=0,'GESTION B'!C13," ") -> 9004 | D12: =IF('GESTION B'!F13>=0,'GESTION B'!D13," ") -> EBAUCHE FRAISEE L120
A13: =IF('GESTION B'!F14<=0,'GESTION B'!A14," ") ->  | B13: =IF('GESTION B'!F14<=0,'GESTION B'!B14," ") ->  | C13: =IF('GESTION B'!F14>=0,'GESTION B'!C14," ") -> 9004 | D13: =IF('GESTION B'!F14>=0,'GESTION B'!D14," ") -> EBAUCHE FRAISEE L140
A14: =IF('GESTION B'!F15<=0,'GESTION B'!A15," ") -> B0107 | B14: =IF('GESTION B'!F15<=0,'GESTION B'!B15," ") -> KINGSLAND | C14: =IF('GESTION B'!F15>=0,'GESTION B'!C15," ") -> 9007 | D14: =IF('GESTION B'!F15>=0,'GESTION B'!D15," ") -> EBAUCHE FRAISEE
A15: =IF('GESTION B'!F16<=0,'GESTION B'!A16," ") ->  | B15: =IF('GESTION B'!F16<=0,'GESTION B'!B16," ") ->  | C15: =IF('GESTION B'!F16>=0,'GESTION B'!C16," ") -> 9007 | D15: =IF('GESTION B'!F16>=0,'GESTION B'!D16," ") -> EBAUCHE FRAISEE
A16: =IF('GESTION B'!F17<=0,'GESTION B'!A17," ") ->  | B16: =IF('GESTION B'!F17<=0,'GESTION B'!B17," ") ->  | C16: =IF('GESTION B'!F17>=0,'GESTION B'!C17," ") -> 9006 | D16: =IF('GESTION B'!F17>=0,'GESTION B'!D17," ") -> EBAUCHE FRAISEE
A17: =IF('GESTION B'!F18<=0,'GESTION B'!A18," ") -> B0110 | B17: =IF('GESTION B'!F18<=0,'GESTION B'!B18," ") -> KINGSLAND | C17: =IF('GESTION B'!F18>=0,'GESTION B'!C18," ") -> 9006 | D17: =IF('GESTION B'!F18>=0,'GESTION B'!D18," ") -> EBAUCHE FRAISEE
A18: =IF('GESTION B'!F19<=0,'GESTION B'!A19," ") ->  | B18: =IF('GESTION B'!F19<=0,'GESTION B'!B19," ") ->  | C18: =IF('GESTION B'!F19>=0,'GESTION B'!C19," ") -> 9009 | D18: =IF('GESTION B'!F19>=0,'GESTION B'!D19," ") -> EBAUCHE FRAISEE
A19: =IF('GESTION B'!F20<=0,'GESTION B'!A20," ") -> B0112 | B19: =IF('GESTION B'!F20<=0,'GESTION B'!B20," ") -> KINGSLAND | C19: =IF('GESTION B'!F20>=0,'GESTION B'!C20," ") -> 9009 | D19: =IF('GESTION B'!F20>=0,'GESTION B'!D20," ") -> EBAUCHE FRAISEE
A20: =IF('GESTION B'!F21<=0,'GESTION B'!A21," ") -> B0113-A | B20: =IF('GESTION B'!F21<=0,'GESTION B'!B21," ") -> KINGSLAND | C20: =IF('GESTION B'!F21>=0,'GESTION B'!C21," ") -> 9006 | D20: =IF('GESTION B'!F21>=0,'GESTION B'!D21," ") -> EBAUCHE FRAISEE L…
A21: =IF('GESTION B'!F22<=0,'GESTION B'!A22," ") ->  | B21: =IF('GESTION B'!F22<=0,'GESTION B'!B22," ") ->  | C21: =IF('GESTION B'!F22>=0,'GESTION B'!C22," ") -> 9009 | D21: =IF('GESTION B'!F22>=0,'GESTION B'!D22," ") -> EBAUCHE FRAISEE L…
A22: =IF('GESTION B'!F23<=0,'GESTION B'!A23," ") ->  | B22: =IF('GESTION B'!F23<=0,'GESTION B'!B23," ") ->  | C22: =IF('GESTION B'!F23>=0,'GESTION B'!C23," ") -> 9010 | D22: =IF('GESTION B'!F23>=0,'GESTION B'!D23," ") -> EBAUCHE FRAISEE
A23: =IF('GESTION B'!F24<=0,'GESTION B'!A24," ") ->  | B23: =IF('GESTION B'!F24<=0,'GESTION B'!B24," ") ->  | C23: =IF('GESTION B'!F24>=0,'GESTION B'!C24," ") -> 9010 | D23: =IF('GESTION B'!F24>=0,'GESTION B'!D24," ") -> EBAUCHE FRAISEE L70
A24: =IF('GESTION B'!F25<=0,'GESTION B'!A25," ") ->  | B24: =IF('GESTION B'!F25<=0,'GESTION B'!B25," ") ->  | C24: =IF('GESTION B'!F25>=0,'GESTION B'!C25," ") -> 9010 | D24: =IF('GESTION B'!F25>=0,'GESTION B'!D25," ") -> EBAUCHE NON TOURNEE
A25: =IF('GESTION B'!F26<=0,'GESTION B'!A26," ") ->  | B25: =IF('GESTION B'!F26<=0,'GESTION B'!B26," ") ->  | C25: =IF('GESTION B'!F26>=0,'GESTION B'!C26," ") -> 9010 | D25: =IF('GESTION B'!F26>=0,'GESTION B'!D26," ") -> EBAUCHE NON TOURNEE
A26: =IF('GESTION B'!F27<=0,'GESTION B'!A27," ") ->  | B26: =IF('GESTION B'!F27<=0,'GESTION B'!B27," ") ->  | C26: =IF('GESTION B'!F27>=0,'GESTION B'!C27," ") -> 9010 | D26: =IF('GESTION B'!F27>=0,'GESTION B'!D27," ") -> EBAUCHE NON TOURNEE
A27: =IF('GESTION B'!F28<=0,'GESTION B'!A28," ") ->  | B27: =IF('GESTION B'!F28<=0,'GESTION B'!B28," ") ->  | C27: =IF('GESTION B'!F28>=0,'GESTION B'!C28," ") -> 9011 | D27: =IF('GESTION B'!F28>=0,'GESTION B'!D28," ") -> EBAUCHE FRAISEE
A28: =IF('GESTION B'!F31<=0,'GESTION B'!A31," ") ->  | B28: =IF('GESTION B'!F31<=0,'GESTION B'!B31," ") ->  | C28: =IF('GESTION B'!F31>=0,'GESTION B'!C31," ") -> 9011 | D28: =IF('GESTION B'!F31>=0,'GESTION B'!D31," ") -> EBAUCHE FRAISEE
A29: =IF('GESTION B'!F32<=0,'GESTION B'!A32," ") ->  | B29: =IF('GESTION B'!F32<=0,'GESTION B'!B32," ") ->  | C29: =IF('GESTION B'!F32>=0,'GESTION B'!C32," ") -> 9011 | D29: =IF('GESTION B'!F32>=0,'GESTION B'!D32," ") -> EBAUCHE NON TOURNEE
A30: =IF('GESTION B'!F33<=0,'GESTION B'!A33," ") ->  | B30: =IF('GESTION B'!F33<=0,'GESTION B'!B33," ") ->  | C30: =IF('GESTION B'!F33>=0,'GESTION B'!C33," ") -> 9011 | D30: =IF('GESTION B'!F33>=0,'GESTION B'!D33," ") -> EBAUCHE NON TOURNEE
A31: =IF('GESTION B'!F34<=0,'GESTION B'!A34," ") ->  | B31: =IF('GESTION B'!F34<=0,'GESTION B'!B34," ") ->  | C31: =IF('GESTION B'!F34>=0,'GESTION B'!C34," ") -> 9011 | D31: =IF('GESTION B'!F34>=0,'GESTION B'!D34," ") -> EBAUCHE NON TOURNEE
A32: =IF('GESTION B'!F35<=0,'GESTION B'!A35," ") ->  | B32: =IF('GESTION B'!F35<=0,'GESTION B'!B35," ") ->  | C32: =IF('GESTION B'!F35>=0,'GESTION B'!C35," ") -> 9011 | D32: =IF('GESTION B'!F35>=0,'GESTION B'!D35," ") -> EBAUCHE NON TOURNEE
A33: =IF('GESTION B'!F36<=0,'GESTION B'!A36," ") -> B0125 | B33: =IF('GESTION B'!F36<=0,'GESTION B'!B36," ") -> 0 | C33: =IF('GESTION B'!F36>=0,'GESTION B'!C36," ") -> 0 | D33: =IF('GESTION B'!F36>=0,'GESTION B'!D36," ") -> 0
A34: =IF('GESTION B'!F37<=0,'GESTION B'!A37," ") ->  | B34: =IF('GESTION B'!F37<=0,'GESTION B'!B37," ") ->  | C34: =IF('GESTION B'!F37>=0,'GESTION B'!C37," ") -> 9020 | D34: =IF('GESTION B'!F37>=0,'GESTION B'!D37," ") -> EBAUCHE
A35: =IF('GESTION B'!F39<=0,'GESTION B'!A39," ") ->  | B35: =IF('GESTION B'!F39<=0,'GESTION B'!B39," ") ->  | C35: =IF('GESTION B'!F39>=0,'GESTION B'!C39," ") -> 9022 | D35: =IF('GESTION B'!F39>=0,'GESTION B'!D39," ") -> EBAUCHE
A36: =IF('GESTION B'!F40<=0,'GESTION B'!A40," ") ->  | B36: =IF('GESTION B'!F40<=0,'GESTION B'!B40," ") ->  | C36: =IF('GESTION B'!F40>=0,'GESTION B'!C40," ") -> 9022 | D36: =IF('GESTION B'!F40>=0,'GESTION B'!D40," ") -> EBAUCHE FRAISEE PERCEE
A37: =IF('GESTION B'!F41<=0,'GESTION B'!A41," ") ->  | B37: =IF('GESTION B'!F41<=0,'GESTION B'!B41," ") ->  | C37: =IF('GESTION B'!F41>=0,'GESTION B'!C41," ") -> 9023 | D37: =IF('GESTION B'!F41>=0,'GESTION B'!D41," ") -> EBAUCHE
A38: =IF('GESTION B'!F42<=0,'GESTION B'!A42," ") ->  | B38: =IF('GESTION B'!F42<=0,'GESTION B'!B42," ") ->  | C38: =IF('GESTION B'!F42>=0,'GESTION B'!C42," ") -> 9023 | D38: =IF('GESTION B'!F42>=0,'GESTION B'!D42," ") -> EBAUCHE DEPORTEE
A39: =IF('GESTION B'!F43<=0,'GESTION B'!A43," ") ->  | B39: =IF('GESTION B'!F43<=0,'GESTION B'!B43," ") ->  | C39: =IF('GESTION B'!F43>=0,'GESTION B'!C43," ") -> 9023 | D39: =IF('GESTION B'!F43>=0,'GESTION B'!D43," ") -> EBAUCHE PERCEE Ø20
A40: =IF('GESTION B'!F44<=0,'GESTION B'!A44," ") ->  | B40: =IF('GESTION B'!F44<=0,'GESTION B'!B44," ") ->  | C40: =IF('GESTION B'!F44>=0,'GESTION B'!C44," ") -> 9023 | D40: =IF('GESTION B'!F44>=0,'GESTION B'!D44," ") -> EBAUCHE FRAISEE PERCEE
A41: =IF('GESTION B'!F45<=0,'GESTION B'!A45," ") ->  | B41: =IF('GESTION B'!F45<=0,'GESTION B'!B45," ") ->  | C41: =IF('GESTION B'!F45>=0,'GESTION B'!C45," ") -> 9023 | D41: =IF('GESTION B'!F45>=0,'GESTION B'!D45," ") -> EBAUCHE FRAISEE PERCEE
A42: =IF('GESTION B'!F46<=0,'GESTION B'!A46," ") -> B0208 | B42: =IF('GESTION B'!F46<=0,'GESTION B'!B46," ") -> KINGSLAND | C42: =IF('GESTION B'!F46>=0,'GESTION B'!C46," ") -> 9023 | D42: =IF('GESTION B'!F46>=0,'GESTION B'!D46," ") -> EBAUCHE FRAISEE PERCEE
A43: =IF('GESTION B'!F47<=0,'GESTION B'!A47," ") -> B0209 | B43: =IF('GESTION B'!F47<=0,'GESTION B'!B47," ") -> KINGSLAND | C43: =IF('GESTION B'!F47>=0,'GESTION B'!C47," ") -> 9023 | D43: =IF('GESTION B'!F47>=0,'GESTION B'!D47," ") -> EBAUCHE FRAISEE PERCEE
A44: =IF('GESTION B'!F48<=0,'GESTION B'!A48," ") -> B0210 | B44: =IF('GESTION B'!F48<=0,'GESTION B'!B48," ") -> KINGSLAND | C44: =IF('GESTION B'!F48>=0,'GESTION B'!C48," ") -> 9023 | D44: =IF('GESTION B'!F48>=0,'GESTION B'!D48," ") -> EBAUCHE FRAISEE PERCEE Ø3
A45: =IF('GESTION B'!F49<=0,'GESTION B'!A49," ") ->  | B45: =IF('GESTION B'!F49<=0,'GESTION B'!B49," ") ->  | C45: =IF('GESTION B'!F49>=0,'GESTION B'!C49," ") -> 9023 | D45: =IF('GESTION B'!F49>=0,'GESTION B'!D49," ") -> EBAUCHE TOUT VENANT
A46: =IF('GESTION B'!F50<=0,'GESTION B'!A50," ") ->  | B46: =IF('GESTION B'!F50<=0,'GESTION B'!B50," ") ->  | C46: =IF('GESTION B'!F50>=0,'GESTION B'!C50," ") -> 9023 | D46: =IF('GESTION B'!F50>=0,'GESTION B'!D50," ") -> EBAUCHE 1/4 ROND
A47: =IF('GESTION B'!F51<=0,'GESTION B'!A51," ") -> B0213 | B47: =IF('GESTION B'!F51<=0,'GESTION B'!B51," ") -> KINGSLAND | C47: =IF('GESTION B'!F51>=0,'GESTION B'!C51," ") -> 9024 | D47: =IF('GESTION B'!F51>=0,'GESTION B'!D51," ") -> EBAUCHE
A48: =IF('GESTION B'!F52<=0,'GESTION B'!A52," ") ->  | B48: =IF('GESTION B'!F52<=0,'GESTION B'!B52," ") ->  | C48: =IF('GESTION B'!F52>=0,'GESTION B'!C52," ") -> 9024 | D48: =IF('GESTION B'!F52>=0,'GESTION B'!D52," ") -> EBAUCHE
A49: =IF('GESTION B'!F53<=0,'GESTION B'!A53," ") ->  | B49: =IF('GESTION B'!F53<=0,'GESTION B'!B53," ") ->  | C49: =IF('GESTION B'!F53>=0,'GESTION B'!C53," ") -> 9025 | D49: =IF('GESTION B'!F53>=0,'GESTION B'!D53," ") -> EBAUCHE
A50: =IF('GESTION B'!F54<=0,'GESTION B'!A54," ") ->  | B50: =IF('GESTION B'!F54<=0,'GESTION B'!B54," ") ->  | C50: =IF('GESTION B'!F54>=0,'GESTION B'!C54," ") -> 9025 | D50: =IF('GESTION B'!F54>=0,'GESTION B'!D54," ") -> EBAUCHE
A51: =IF('GESTION B'!F55<=0,'GESTION B'!A55," ") ->  | B51: =IF('GESTION B'!F55<=0,'GESTION B'!B55," ") ->  | C51: =IF('GESTION B'!F55>=0,'GESTION B'!C55," ") -> 9025 | D51: =IF('GESTION B'!F55>=0,'GESTION B'!D55," ") -> EBAUCHE FRAISEE PERCEE
A52: =IF('GESTION B'!F56<=0,'GESTION B'!A56," ") ->  | B52: =IF('GESTION B'!F56<=0,'GESTION B'!B56," ") ->  | C52: =IF('GESTION B'!F56>=0,'GESTION B'!C56," ") -> 9023 | D52: =IF('GESTION B'!F56>=0,'GESTION B'!D56," ") -> EBAUCHE PERCEE Ø48 2 PLATS 0° et 90°
A53: =IF('GESTION B'!F57<=0,'GESTION B'!A57," ") -> B0219 | B53: =IF('GESTION B'!F57<=0,'GESTION B'!B57," ") -> 0 | C53: =IF('GESTION B'!F57>=0,'GESTION B'!C57," ") -> 0 | D53: =IF('GESTION B'!F57>=0,'GESTION B'!D57," ") -> 0
A54: =IF('GESTION B'!F58<=0,'GESTION B'!A58," ") -> B0220 | B54: =IF('GESTION B'!F58<=0,'GESTION B'!B58," ") -> 0 | C54: =IF('GESTION B'!F58>=0,'GESTION B'!C58," ") -> 0 | D54: =IF('GESTION B'!F58>=0,'GESTION B'!D58," ") -> 0
A55: =IF('GESTION B'!F59<=0,'GESTION B'!A59," ") -> B0221 | B55: =IF('GESTION B'!F59<=0,'GESTION B'!B59," ") -> 0 | C55: =IF('GESTION B'!F59>=0,'GESTION B'!C59," ") -> 0 | D55: =IF('GESTION B'!F59>=0,'GESTION B'!D59," ") -> 0
A56: =IF('GESTION B'!F60<=0,'GESTION B'!A60," ") -> B0222 | B56: =IF('GESTION B'!F60<=0,'GESTION B'!B60," ") -> 0 | C56: =IF('GESTION B'!F60>=0,'GESTION B'!C60," ") -> 0 | D56: =IF('GESTION B'!F60>=0,'GESTION B'!D60," ") -> 0
A57: =IF('GESTION B'!F61<=0,'GESTION B'!A61," ") -> B0223 | B57: =IF('GESTION B'!F61<=0,'GESTION B'!B61," ") -> 0 | C57: =IF('GESTION B'!F61>=0,'GESTION B'!C61," ") -> 0 | D57: =IF('GESTION B'!F61>=0,'GESTION B'!D61," ") -> 0
A58: =IF('GESTION B'!F62<=0,'GESTION B'!A62," ") -> B0224 | B58: =IF('GESTION B'!F62<=0,'GESTION B'!B62," ") -> 0 | C58: =IF('GESTION B'!F62>=0,'GESTION B'!C62," ") -> 0 | D58: =IF('GESTION B'!F62>=0,'GESTION B'!D62," ") -> 0
A59: =IF('GESTION B'!F63<=0,'GESTION B'!A63," ") -> B0225 | B59: =IF('GESTION B'!F63<=0,'GESTION B'!B63," ") -> 0 | C59: =IF('GESTION B'!F63>=0,'GESTION B'!C63," ") -> 0 | D59: =IF('GESTION B'!F63>=0,'GESTION B'!D63," ") -> 0
A60: =IF('GESTION B'!F64<=0,'GESTION B'!A64," ") ->  | B60: =IF('GESTION B'!F64<=0,'GESTION B'!B64," ") ->  | C60: =IF('GESTION B'!F64>=0,'GESTION B'!C64," ") -> GR2 | D60: =IF('GESTION B'!F64>=0,'GESTION B'!D64," ") -> EBAUCHE FRAISEE
A61: =IF('GESTION B'!F65<=0,'GESTION B'!A65," ") -> B0302 | B61: =IF('GESTION B'!F65<=0,'GESTION B'!B65," ") -> MUBEA | C61: =IF('GESTION B'!F65>=0,'GESTION B'!C65," ") -> GR2 | D61: =IF('GESTION B'!F65>=0,'GESTION B'!D65," ") -> EBAUCHE FRAISEE
A62: =IF('GESTION B'!F66<=0,'GESTION B'!A66," ") -> B0303 | B62: =IF('GESTION B'!F66<=0,'GESTION B'!B66," ") -> MUBEA | C62: =IF('GESTION B'!F66>=0,'GESTION B'!C66," ") -> GR2 | D62: =IF('GESTION B'!F66>=0,'GESTION B'!D66," ") -> EBAUCHE FRAISEE
A63: =IF('GESTION B'!F67<=0,'GESTION B'!A67," ") -> B0304-A | B63: =IF('GESTION B'!F67<=0,'GESTION B'!B67," ") -> MUBEA | C63: =IF('GESTION B'!F67>=0,'GESTION B'!C67," ") -> GR2 | D63: =IF('GESTION B'!F67>=0,'GESTION B'!D67," ") -> EBAUCHE FRAISEE 0 ET 45°
A64: =IF('GESTION B'!F68<=0,'GESTION B'!A68," ") -> B0304-B | B64: =IF('GESTION B'!F68<=0,'GESTION B'!B68," ") -> MUBEA | C64: =IF('GESTION B'!F68>=0,'GESTION B'!C68," ") -> GR2 | D64: =IF('GESTION B'!F68>=0,'GESTION B'!D68," ") -> 0
A65: =IF('GESTION B'!F69<=0,'GESTION B'!A69," ") ->  | B65: =IF('GESTION B'!F69<=0,'GESTION B'!B69," ") ->  | C65: =IF('GESTION B'!F69>=0,'GESTION B'!C69," ") -> GR2 | D65: =IF('GESTION B'!F69>=0,'GESTION B'!D69," ") -> EBAUCHE FRAISEE L85
A66: =IF('GESTION B'!F70<=0,'GESTION B'!A70," ") ->  | B66: =IF('GESTION B'!F70<=0,'GESTION B'!B70," ") ->  | C66: =IF('GESTION B'!F70>=0,'GESTION B'!C70," ") -> GR2 | D66: =IF('GESTION B'!F70>=0,'GESTION B'!D70," ") -> EBAUCHE FRAISEE L95
A67: =IF('GESTION B'!F71<=0,'GESTION B'!A71," ") ->  | B67: =IF('GESTION B'!F71<=0,'GESTION B'!B71," ") ->  | C67: =IF('GESTION B'!F71>=0,'GESTION B'!C71," ") -> GR2 | D67: =IF('GESTION B'!F71>=0,'GESTION B'!D71," ") -> EBAUCHE FRAISEE L90
A68: =IF('GESTION B'!F73<=0,'GESTION B'!A73," ") -> B0306 | B68: =IF('GESTION B'!F73<=0,'GESTION B'!B73," ") -> MUBEA | C68: =IF('GESTION B'!F73>=0,'GESTION B'!C73," ") -> GR2 | D68: =IF('GESTION B'!F73>=0,'GESTION B'!D73," ") -> CANON EUROPEEN
A69: =IF('GESTION B'!F74<=0,'GESTION B'!A74," ") ->  | B69: =IF('GESTION B'!F74<=0,'GESTION B'!B74," ") ->  | C69: =IF('GESTION B'!F74>=0,'GESTION B'!C74," ") -> GR2 | D69: =IF('GESTION B'!F74>=0,'GESTION B'!D74," ") -> EBAUCHE FRAISEE EXCENTREE
A70: =IF('GESTION B'!F75<=0,'GESTION B'!A75," ") ->  | B70: =IF('GESTION B'!F75<=0,'GESTION B'!B75," ") ->  | C70: =IF('GESTION B'!F75>=0,'GESTION B'!C75," ") -> GR2 | D70: =IF('GESTION B'!F75>=0,'GESTION B'!D75," ") -> EBAUCHE FRAISEE SUPERIEUR Ø55
A71: =IF('GESTION B'!F76<=0,'GESTION B'!A76," ") ->  | B71: =IF('GESTION B'!F76<=0,'GESTION B'!B76," ") ->  | C71: =IF('GESTION B'!F76>=0,'GESTION B'!C76," ") -> GR2 | D71: =IF('GESTION B'!F76>=0,'GESTION B'!D76," ") -> EBAUCHE FRAISEE SUPERIEUR Ø60
A72: =IF('GESTION B'!F78<=0,'GESTION B'!A78," ") ->  | B72: =IF('GESTION B'!F78<=0,'GESTION B'!B78," ") ->  | C72: =IF('GESTION B'!F78>=0,'GESTION B'!C78," ") -> GR2 | D72: =IF('GESTION B'!F78>=0,'GESTION B'!D78," ") -> EBAUCHE PERCEE D6
A73: =IF('GESTION B'!F79<=0,'GESTION B'!A79," ") ->  | B73: =IF('GESTION B'!F79<=0,'GESTION B'!B79," ") ->  | C73: =IF('GESTION B'!F79>=0,'GESTION B'!C79," ") -> GR3 | D73: =IF('GESTION B'!F79>=0,'GESTION B'!D79," ") -> EBAUCHE FRAISEE
A74: =IF('GESTION B'!F80<=0,'GESTION B'!A80," ") ->  | B74: =IF('GESTION B'!F80<=0,'GESTION B'!B80," ") ->  | C74: =IF('GESTION B'!F80>=0,'GESTION B'!C80," ") -> GR3 | D74: =IF('GESTION B'!F80>=0,'GESTION B'!D80," ") -> EBAUCHE FRAISEE
A75: =IF('GESTION B'!F81<=0,'GESTION B'!A81," ") -> B0312 | B75: =IF('GESTION B'!F81<=0,'GESTION B'!B81," ") -> MUBEA | C75: =IF('GESTION B'!F81>=0,'GESTION B'!C81," ") -> GR3 | D75: =IF('GESTION B'!F81>=0,'GESTION B'!D81," ") -> EBAUCHE FRAISEE
A76: =IF('GESTION B'!F82<=0,'GESTION B'!A82," ") ->  | B76: =IF('GESTION B'!F82<=0,'GESTION B'!B82," ") ->  | C76: =IF('GESTION B'!F82>=0,'GESTION B'!C82," ") -> GR3 | D76: =IF('GESTION B'!F82>=0,'GESTION B'!D82," ") -> EBAUCHE FRAISEE 0 ET 45°
A77: =IF('GESTION B'!F83<=0,'GESTION B'!A83," ") -> B0314 | B77: =IF('GESTION B'!F83<=0,'GESTION B'!B83," ") -> MUBEA | C77: =IF('GESTION B'!F83>=0,'GESTION B'!C83," ") -> GR3 | D77: =IF('GESTION B'!F83>=0,'GESTION B'!D83," ") -> EBAUCHE FRAISEE L…….
A78: =IF('GESTION B'!F84<=0,'GESTION B'!A84," ") ->  | B78: =IF('GESTION B'!F84<=0,'GESTION B'!B84," ") ->  | C78: =IF('GESTION B'!F84>=0,'GESTION B'!C84," ") -> GR3 | D78: =IF('GESTION B'!F84>=0,'GESTION B'!D84," ") -> EBAUCHE FRAISEE EXCENTREE
A79: =IF('GESTION B'!F85<=0,'GESTION B'!A85," ") ->  | B79: =IF('GESTION B'!F85<=0,'GESTION B'!B85," ") ->  | C79: =IF('GESTION B'!F85>=0,'GESTION B'!C85," ") -> GR4 | D79: =IF('GESTION B'!F85>=0,'GESTION B'!D85," ") -> EBAUCHE FRAISEE
A80: =IF('GESTION B'!F86<=0,'GESTION B'!A86," ") -> B0317 | B80: =IF('GESTION B'!F86<=0,'GESTION B'!B86," ") -> MUBEA | C80: =IF('GESTION B'!F86>=0,'GESTION B'!C86," ") -> GR4 | D80: =IF('GESTION B'!F86>=0,'GESTION B'!D86," ") -> EBAUCHE FRAISEE
A81: =IF('GESTION B'!F87<=0,'GESTION B'!A87," ") -> B0318 | B81: =IF('GESTION B'!F87<=0,'GESTION B'!B87," ") -> MUBEA | C81: =IF('GESTION B'!F87>=0,'GESTION B'!C87," ") -> GR4 | D81: =IF('GESTION B'!F87>=0,'GESTION B'!D87," ") -> EBAUCHE FRAISEE
A82: =IF('GESTION B'!F88<=0,'GESTION B'!A88," ") -> B0319 | B82: =IF('GESTION B'!F88<=0,'GESTION B'!B88," ") -> MUBEA | C82: =IF('GESTION B'!F88>=0,'GESTION B'!C88," ") -> GR4 | D82: =IF('GESTION B'!F88>=0,'GESTION B'!D88," ") -> EBAUCHE FRAISEE 0 ET 45°
A83: =IF('GESTION B'!F89<=0,'GESTION B'!A89," ") ->  | B83: =IF('GESTION B'!F89<=0,'GESTION B'!B89," ") ->  | C83: =IF('GESTION B'!F89>=0,'GESTION B'!C89," ") -> GR4 | D83: =IF('GESTION B'!F89>=0,'GESTION B'!D89," ") -> EBAUCHE FRAISEE EXCENTREE
A84: =IF('GESTION B'!F90<=0,'GESTION B'!A90," ") ->  | B84: =IF('GESTION B'!F90<=0,'GESTION B'!B90," ") ->  | C84: =IF('GESTION B'!F90>=0,'GESTION B'!C90," ") -> GR4 | D84: =IF('GESTION B'!F90>=0,'GESTION B'!D90," ") -> EBAUCHE FRAISEE L90
A85: =IF('GESTION B'!F91<=0,'GESTION B'!A91," ") ->  | B85: =IF('GESTION B'!F91<=0,'GESTION B'!B91," ") ->  | C85: =IF('GESTION B'!F91>=0,'GESTION B'!C91," ") -> GR4 | D85: =IF('GESTION B'!F91>=0,'GESTION B'!D91," ") -> EBAUCHE FRAISEE L100
A86: =IF('GESTION B'!F92<=0,'GESTION B'!A92," ") ->  | B86: =IF('GESTION B'!F92<=0,'GESTION B'!B92," ") ->  | C86: =IF('GESTION B'!F92>=0,'GESTION B'!C92," ") -> GR4 | D86: =IF('GESTION B'!F92>=0,'GESTION B'!D92," ") -> EBAUCHE FRAISEE L110
A87: =IF('GESTION B'!F93<=0,'GESTION B'!A93," ") ->  | B87: =IF('GESTION B'!F93<=0,'GESTION B'!B93," ") ->  | C87: =IF('GESTION B'!F93>=0,'GESTION B'!C93," ") -> GR4 | D87: =IF('GESTION B'!F93>=0,'GESTION B'!D93," ") -> EBAUCHE FRAISEE L130
A88: =IF('GESTION B'!F94<=0,'GESTION B'!A94," ") -> B0322 | B88: =IF('GESTION B'!F94<=0,'GESTION B'!B94," ") -> 0 | C88: =IF('GESTION B'!F94>=0,'GESTION B'!C94," ") -> 0 | D88: =IF('GESTION B'!F94>=0,'GESTION B'!D94," ") -> 0
A89: =IF('GESTION B'!F95<=0,'GESTION B'!A95," ") -> B0323 | B89: =IF('GESTION B'!F95<=0,'GESTION B'!B95," ") -> 0 | C89: =IF('GESTION B'!F95>=0,'GESTION B'!C95," ") -> 0 | D89: =IF('GESTION B'!F95>=0,'GESTION B'!D95," ") -> 0
A90: =IF('GESTION B'!F96<=0,'GESTION B'!A96," ") -> B0324 | B90: =IF('GESTION B'!F96<=0,'GESTION B'!B96," ") -> 0 | C90: =IF('GESTION B'!F96>=0,'GESTION B'!C96," ") -> 0 | D90: =IF('GESTION B'!F96>=0,'GESTION B'!D96," ") -> 0
A91: =IF('GESTION B'!F97<=0,'GESTION B'!A97," ") -> B0325 | B91: =IF('GESTION B'!F97<=0,'GESTION B'!B97," ") -> 0 | C91: =IF('GESTION B'!F97>=0,'GESTION B'!C97," ") -> 0 | D91: =IF('GESTION B'!F97>=0,'GESTION B'!D97," ") -> 0
A92: =IF('GESTION B'!F98<=0,'GESTION B'!A98," ") ->  | B92: =IF('GESTION B'!F98<=0,'GESTION B'!B98," ") ->  | C92: =IF('GESTION B'!F98>=0,'GESTION B'!C98," ") -> ED50 | D92: =IF('GESTION B'!F98>=0,'GESTION B'!D98," ") -> CORPS 80 1 ENCOCHE
A93: =IF('GESTION B'!F99<=0,'GESTION B'!A99," ") ->  | B93: =IF('GESTION B'!F99<=0,'GESTION B'!B99," ") ->  | C93: =IF('GESTION B'!F99>=0,'GESTION B'!C99," ") -> ED50 | D93: =IF('GESTION B'!F99>=0,'GESTION B'!D99," ") -> CORPS 80 2 ENCOCHES
A94: =IF('GESTION B'!F100<=0,'GESTION B'!A100," ") ->  | B94: =IF('GESTION B'!F100<=0,'GESTION B'!B100," ") ->  | C94: =IF('GESTION B'!F100>=0,'GESTION B'!C100," ") -> ED50 | D94: =IF('GESTION B'!F100>=0,'GESTION B'!D100," ") -> CORPS 101 1 ENCOCHE
A95: =IF('GESTION B'!F101<=0,'GESTION B'!A101," ") ->  | B95: =IF('GESTION B'!F101<=0,'GESTION B'!B101," ") ->  | C95: =IF('GESTION B'!F101>=0,'GESTION B'!C101," ") -> ED50 | D95: =IF('GESTION B'!F101>=0,'GESTION B'!D101," ") -> CORPS 101 2 ENCOCHES
A96: =IF('GESTION B'!F102<=0,'GESTION B'!A102," ") ->  | B96: =IF('GESTION B'!F102<=0,'GESTION B'!B102," ") ->  | C96: =IF('GESTION B'!F102>=0,'GESTION B'!C102," ") -> ED50 | D96: =IF('GESTION B'!F102>=0,'GESTION B'!D102," ") -> CORPS 101 2 ENCOCHES
A97: =IF('GESTION B'!F103<=0,'GESTION B'!A103," ") ->  | B97: =IF('GESTION B'!F103<=0,'GESTION B'!B103," ") ->  | C97: =IF('GESTION B'!F103>=0,'GESTION B'!C103," ") -> M45 | D97: =IF('GESTION B'!F103>=0,'GESTION B'!D103," ") -> EBAUCHE EXCENTREE
A98: =IF('GESTION B'!F105<=0,'GESTION B'!A105," ") ->  | B98: =IF('GESTION B'!F105<=0,'GESTION B'!B105," ") ->  | C98: =IF('GESTION B'!F105>=0,'GESTION B'!C105," ") -> M30 | D98: =IF('GESTION B'!F105>=0,'GESTION B'!D105," ") -> EBAUCHE PERCEE 2 REPERES 0° ET 90°
A99: =IF('GESTION B'!F106<=0,'GESTION B'!A106," ") ->  | B99: =IF('GESTION B'!F106<=0,'GESTION B'!B106," ") ->  | C99: =IF('GESTION B'!F106>=0,'GESTION B'!C106," ") -> M30 | D99: =IF('GESTION B'!F106>=0,'GESTION B'!D106," ") -> EBAUCHE PERCEE D3 2 REPERES 0° ET 90°
A100: =IF('GESTION B'!F108<=0,'GESTION B'!A108," ") ->  | B100: =IF('GESTION B'!F108<=0,'GESTION B'!B108," ") ->  | C100: =IF('GESTION B'!F108>=0,'GESTION B'!C108," ") -> M45 | D100: =IF('GESTION B'!F108>=0,'GESTION B'!D108," ") -> EBAUCHE
A101: =IF('GESTION B'!F110<=0,'GESTION B'!A110," ") -> B0410 | B101: =IF('GESTION B'!F110<=0,'GESTION B'!B110," ") -> MUBEA | C101: =IF('GESTION B'!F110>=0,'GESTION B'!C110," ") -> M45 | D101: =IF('GESTION B'!F110>=0,'GESTION B'!D110," ") -> EBAUCHE PERCEE 2 REPERES 0° ET 90°
A102: =IF('GESTION B'!F111<=0,'GESTION B'!A111," ") ->  | B102: =IF('GESTION B'!F111<=0,'GESTION B'!B111," ") ->  | C102: =IF('GESTION B'!F111>=0,'GESTION B'!C111," ") -> M45 | D102: =IF('GESTION B'!F111>=0,'GESTION B'!D111," ") -> EBAUCHE PERCEE 2 REPERES 0° ET 90°
A103: =IF('GESTION B'!F112<=0,'GESTION B'!A112," ") -> B0412-A | B103: =IF('GESTION B'!F112<=0,'GESTION B'!B112," ") -> MUBEA | C103: =IF('GESTION B'!F112>=0,'GESTION B'!C112," ") -> M45 | D103: =IF('GESTION B'!F112>=0,'GESTION B'!D112," ") -> EBAUCHE PERCEE 4 REPERES
A104: =IF('GESTION B'!F114<=0,'GESTION B'!A114," ") ->  | B104: =IF('GESTION B'!F114<=0,'GESTION B'!B114," ") ->  | C104: =IF('GESTION B'!F114>=0,'GESTION B'!C114," ") -> M45 | D104: =IF('GESTION B'!F114>=0,'GESTION B'!D114," ") -> EBAUCHE 3 REPERES 0° 45° 90°
A105: =IF('GESTION B'!F115<=0,'GESTION B'!A115," ") ->  | B105: =IF('GESTION B'!F115<=0,'GESTION B'!B115," ") ->  | C105: =IF('GESTION B'!F115>=0,'GESTION B'!C115," ") -> M45 | D105: =IF('GESTION B'!F115>=0,'GESTION B'!D115," ") -> EBAUCHE PERCEE D3 3 REPERES 0° 45° 90°
A106: =IF('GESTION B'!F116<=0,'GESTION B'!A116," ") ->  | B106: =IF('GESTION B'!F116<=0,'GESTION B'!B116," ") ->  | C106: =IF('GESTION B'!F116>=0,'GESTION B'!C116," ") -> M45 | D106: =IF('GESTION B'!F116>=0,'GESTION B'!D116," ") -> EBAUCHE PERCEE D3 2 REPERES 0° ET 90°
A107: =IF('GESTION B'!F117<=0,'GESTION B'!A117," ") ->  | B107: =IF('GESTION B'!F117<=0,'GESTION B'!B117," ") ->  | C107: =IF('GESTION B'!F117>=0,'GESTION B'!C117," ") -> M45 | D107: =IF('GESTION B'!F117>=0,'GESTION B'!D117," ") -> EBAUCHE 1/4 ROND
A108: =IF('GESTION B'!F119<=0,'GESTION B'!A119," ") ->  | B108: =IF('GESTION B'!F119<=0,'GESTION B'!B119," ") ->  | C108: =IF('GESTION B'!F119>=0,'GESTION B'!C119," ") -> M45 | D108: =IF('GESTION B'!F119>=0,'GESTION B'!D119," ") -> EBAUCHE IPN
A109: =IF('GESTION B'!#REF!<=0,'GESTION B'!#REF!," ") ->  | B109: =IF('GESTION B'!#REF!<=0,'GESTION B'!#REF!," ") ->  | C109: =IF('GESTION B'!#REF!>=0,'GESTION B'!#REF!," ") ->  | D109: =IF('GESTION B'!#REF!>=0,'GESTION B'!#REF!," ") -> 
A110: =IF('GESTION B'!F120<=0,'GESTION B'!A120," ") ->  | B110: =IF('GESTION B'!F120<=0,'GESTION B'!B120," ") ->  | C110: =IF('GESTION B'!F120>=0,'GESTION B'!C120," ") -> M45 | D110: =IF('GESTION B'!F120>=0,'GESTION B'!D120," ") -> EBAUCHE UPN FRAISEE
A111: =IF('GESTION B'!F121<=0,'GESTION B'!A121," ") ->  | B111: =IF('GESTION B'!F121<=0,'GESTION B'!B121," ") ->  | C111: =IF('GESTION B'!F121>=0,'GESTION B'!C121," ") -> M45 | D111: =IF('GESTION B'!F121>=0,'GESTION B'!D121," ") -> EBAUCHE IPN FRAISEE
A112: =IF('GESTION B'!F122<=0,'GESTION B'!A122," ") -> B0418 | B112: =IF('GESTION B'!F122<=0,'GESTION B'!B122," ") -> MUBEA | C112: =IF('GESTION B'!F122>=0,'GESTION B'!C122," ") -> M60 | D112: =IF('GESTION B'!F122>=0,'GESTION B'!D122," ") -> EBAUCHE
A113: =IF('GESTION B'!F123<=0,'GESTION B'!A123," ") -> B0419 | B113: =IF('GESTION B'!F123<=0,'GESTION B'!B123," ") -> MUBEA | C113: =IF('GESTION B'!F123>=0,'GESTION B'!C123," ") -> M60 | D113: =IF('GESTION B'!F123>=0,'GESTION B'!D123," ") -> EBAUCHE
A114: =IF('GESTION B'!F124<=0,'GESTION B'!A124," ") ->  | B114: =IF('GESTION B'!F124<=0,'GESTION B'!B124," ") ->  | C114: =IF('GESTION B'!F124>=0,'GESTION B'!C124," ") -> M60 | D114: =IF('GESTION B'!F124>=0,'GESTION B'!D124," ") -> EBAUCHE PERCEE 2 REPERES 0° ET 90°
A115: =IF('GESTION B'!F125<=0,'GESTION B'!A125," ") -> B0421 | B115: =IF('GESTION B'!F125<=0,'GESTION B'!B125," ") -> MUBEA | C115: =IF('GESTION B'!F125>=0,'GESTION B'!C125," ") -> M60 | D115: =IF('GESTION B'!F125>=0,'GESTION B'!D125," ") -> EBAUCHE PERCEE 2 REPERES 0° ET 90°
A116: =IF('GESTION B'!F126<=0,'GESTION B'!A126," ") ->  | B116: =IF('GESTION B'!F126<=0,'GESTION B'!B126," ") ->  | C116: =IF('GESTION B'!F126>=0,'GESTION B'!C126," ") -> M60 | D116: =IF('GESTION B'!F126>=0,'GESTION B'!D126," ") -> EBAUCHE PERCEE 2 REPERES 0° ET 90°
A117: =IF('GESTION B'!F127<=0,'GESTION B'!A127," ") ->  | B117: =IF('GESTION B'!F127<=0,'GESTION B'!B127," ") ->  | C117: =IF('GESTION B'!F127>=0,'GESTION B'!C127," ") -> M60 | D117: =IF('GESTION B'!F127>=0,'GESTION B'!D127," ") -> EBAUCHE 3 REPERES 0° 45° 90°
A118: =IF('GESTION B'!F128<=0,'GESTION B'!A128," ") ->  | B118: =IF('GESTION B'!F128<=0,'GESTION B'!B128," ") ->  | C118: =IF('GESTION B'!F128>=0,'GESTION B'!C128," ") -> M60 | D118: =IF('GESTION B'!F128>=0,'GESTION B'!D128," ") -> EBAUCHE EXCENTREE
A119: =IF('GESTION B'!F130<=0,'GESTION B'!A130," ") ->  | B119: =IF('GESTION B'!F130<=0,'GESTION B'!B130," ") ->  | C119: =IF('GESTION B'!F130>=0,'GESTION B'!C130," ") -> M60 | D119: =IF('GESTION B'!F130>=0,'GESTION B'!D130," ") -> EBAUCHE 1/4 ROND
A120: =IF('GESTION B'!F132<=0,'GESTION B'!A132," ") ->  | B120: =IF('GESTION B'!F132<=0,'GESTION B'!B132," ") ->  | C120: =IF('GESTION B'!F132>=0,'GESTION B'!C132," ") -> M60 | D120: =IF('GESTION B'!F132>=0,'GESTION B'!D132," ") -> EBAUCHE PERCEE D3
A121: =IF('GESTION B'!F134<=0,'GESTION B'!A134," ") -> B0502-B | B121: =IF('GESTION B'!F134<=0,'GESTION B'!B134," ") -> MUBEA | C121: =IF('GESTION B'!F134>=0,'GESTION B'!C134," ") -> P. N°4 | D121: =IF('GESTION B'!F134>=0,'GESTION B'!D134," ") -> EBAUCHE FRAISEE Ø26,2 L85
A122: =IF('GESTION B'!F135<=0,'GESTION B'!A135," ") ->  | B122: =IF('GESTION B'!F135<=0,'GESTION B'!B135," ") ->  | C122: =IF('GESTION B'!F135>=0,'GESTION B'!C135," ") -> M80 | D122: =IF('GESTION B'!F135>=0,'GESTION B'!D135," ") -> EBAUCHE PERCEE 2 REPERES 0° ET 90°
A123: =IF('GESTION B'!F136<=0,'GESTION B'!A136," ") -> B0504 | B123: =IF('GESTION B'!F136<=0,'GESTION B'!B136," ") -> MUBEA | C123: =IF('GESTION B'!F136>=0,'GESTION B'!C136," ") -> M80 | D123: =IF('GESTION B'!F136>=0,'GESTION B'!D136," ") -> EBAUCHE PERCEE 2 REPERES 0° ET 90°
A124: =IF('GESTION B'!F137<=0,'GESTION B'!A137," ") ->  | B124: =IF('GESTION B'!F137<=0,'GESTION B'!B137," ") ->  | C124: =IF('GESTION B'!F137>=0,'GESTION B'!C137," ") -> M80 | D124: =IF('GESTION B'!F137>=0,'GESTION B'!D137," ") -> EBAUCHE 2 REPERES 0° ET 45°
A125: =IF('GESTION B'!F138<=0,'GESTION B'!A138," ") -> B0506 | B125: =IF('GESTION B'!F138<=0,'GESTION B'!B138," ") -> MUBEA | C125: =IF('GESTION B'!F138>=0,'GESTION B'!C138," ") -> M80 | D125: =IF('GESTION B'!F138>=0,'GESTION B'!D138," ") -> EBAUCHE
A126: =IF('GESTION B'!F139<=0,'GESTION B'!A139," ") ->  | B126: =IF('GESTION B'!F139<=0,'GESTION B'!B139," ") ->  | C126: =IF('GESTION B'!F139>=0,'GESTION B'!C139," ") -> M80 | D126: =IF('GESTION B'!F139>=0,'GESTION B'!D139," ") -> EBAUCHE 3 REPERES 0° 45° 90°
A127: =IF('GESTION B'!F140<=0,'GESTION B'!A140," ") ->  | B127: =IF('GESTION B'!F140<=0,'GESTION B'!B140," ") ->  | C127: =IF('GESTION B'!F140>=0,'GESTION B'!C140," ") -> M80 | D127: =IF('GESTION B'!F140>=0,'GESTION B'!D140," ") -> EBAUCHE 1/4 ROND
A128: =IF('GESTION B'!F141<=0,'GESTION B'!A141," ") ->  | B128: =IF('GESTION B'!F141<=0,'GESTION B'!B141," ") ->  | C128: =IF('GESTION B'!F141>=0,'GESTION B'!C141," ") -> M110 | D128: =IF('GESTION B'!F141>=0,'GESTION B'!D141," ") -> EBAUCHE
A129: =IF('GESTION B'!F142<=0,'GESTION B'!A142," ") ->  | B129: =IF('GESTION B'!F142<=0,'GESTION B'!B142," ") ->  | C129: =IF('GESTION B'!F142>=0,'GESTION B'!C142," ") -> M110 | D129: =IF('GESTION B'!F142>=0,'GESTION B'!D142," ") -> EBAUCHE PERCEE
A130: =IF('GESTION B'!F143<=0,'GESTION B'!A143," ") ->  | B130: =IF('GESTION B'!F143<=0,'GESTION B'!B143," ") ->  | C130: =IF('GESTION B'!F143>=0,'GESTION B'!C143," ") -> M150 | D130: =IF('GESTION B'!F143>=0,'GESTION B'!D143," ") -> EBAUCHE
A131: =IF('GESTION B'!F144<=0,'GESTION B'!A144," ") ->  | B131: =IF('GESTION B'!F144<=0,'GESTION B'!B144," ") ->  | C131: =IF('GESTION B'!F144>=0,'GESTION B'!C144," ") -> M150 | D131: =IF('GESTION B'!F144>=0,'GESTION B'!D144," ") -> EBAUCHE
A132: =IF('GESTION B'!F145<=0,'GESTION B'!A145," ") -> B0513 | B132: =IF('GESTION B'!F145<=0,'GESTION B'!B145," ") -> 0 | C132: =IF('GESTION B'!F145>=0,'GESTION B'!C145," ") -> 0 | D132: =IF('GESTION B'!F145>=0,'GESTION B'!D145," ") -> 0
A133: =IF('GESTION B'!F146<=0,'GESTION B'!A146," ") -> B0514 | B133: =IF('GESTION B'!F146<=0,'GESTION B'!B146," ") -> 0 | C133: =IF('GESTION B'!F146>=0,'GESTION B'!C146," ") -> 0 | D133: =IF('GESTION B'!F146>=0,'GESTION B'!D146," ") -> 0
A134: =IF('GESTION B'!F147<=0,'GESTION B'!A147," ") -> B0515 | B134: =IF('GESTION B'!F147<=0,'GESTION B'!B147," ") -> 0 | C134: =IF('GESTION B'!F147>=0,'GESTION B'!C147," ") -> 0 | D134: =IF('GESTION B'!F147>=0,'GESTION B'!D147," ") -> 0
A135: =IF('GESTION B'!F148<=0,'GESTION B'!A148," ") -> B0516 | B135: =IF('GESTION B'!F148<=0,'GESTION B'!B148," ") -> 0 | C135: =IF('GESTION B'!F148>=0,'GESTION B'!C148," ") -> 0 | D135: =IF('GESTION B'!F148>=0,'GESTION B'!D148," ") -> 0
A136: =IF('GESTION B'!F149<=0,'GESTION B'!A149," ") -> B0517 | B136: =IF('GESTION B'!F149<=0,'GESTION B'!B149," ") -> 0 | C136: =IF('GESTION B'!F149>=0,'GESTION B'!C149," ") -> 0 | D136: =IF('GESTION B'!F149>=0,'GESTION B'!D149," ") -> 0
A137: =IF('GESTION B'!F150<=0,'GESTION B'!A150," ") -> B0518 | B137: =IF('GESTION B'!F150<=0,'GESTION B'!B150," ") -> 0 | C137: =IF('GESTION B'!F150>=0,'GESTION B'!C150," ") -> 0 | D137: =IF('GESTION B'!F150>=0,'GESTION B'!D150," ") -> 0
A138: =IF('GESTION B'!F151<=0,'GESTION B'!A151," ") -> B0519 | B138: =IF('GESTION B'!F151<=0,'GESTION B'!B151," ") -> 0 | C138: =IF('GESTION B'!F151>=0,'GESTION B'!C151," ") -> 0 | D138: =IF('GESTION B'!F151>=0,'GESTION B'!D151," ") -> 0
A139: =IF('GESTION B'!F152<=0,'GESTION B'!A152," ") -> B0520 | B139: =IF('GESTION B'!F152<=0,'GESTION B'!B152," ") -> 0 | C139: =IF('GESTION B'!F152>=0,'GESTION B'!C152," ") -> 0 | D139: =IF('GESTION B'!F152>=0,'GESTION B'!D152," ") -> 0
A140: =IF('GESTION B'!F153<=0,'GESTION B'!A153," ") -> B0521 | B140: =IF('GESTION B'!F153<=0,'GESTION B'!B153," ") -> 0 | C140: =IF('GESTION B'!F153>=0,'GESTION B'!C153," ") -> 0 | D140: =IF('GESTION B'!F153>=0,'GESTION B'!D153," ") -> 0
A141: =IF('GESTION B'!F154<=0,'GESTION B'!A154," ") -> B0522 | B141: =IF('GESTION B'!F154<=0,'GESTION B'!B154," ") -> 0 | C141: =IF('GESTION B'!F154>=0,'GESTION B'!C154," ") -> 0 | D141: =IF('GESTION B'!F154>=0,'GESTION B'!D154," ") -> 0
A142: =IF('GESTION B'!F155<=0,'GESTION B'!A155," ") -> B0523 | B142: =IF('GESTION B'!F155<=0,'GESTION B'!B155," ") -> 0 | C142: =IF('GESTION B'!F155>=0,'GESTION B'!C155," ") -> 0 | D142: =IF('GESTION B'!F155>=0,'GESTION B'!D155," ") -> 0
A143: =IF('GESTION B'!F156<=0,'GESTION B'!A156," ") -> B0524 | B143: =IF('GESTION B'!F156<=0,'GESTION B'!B156," ") -> 0 | C143: =IF('GESTION B'!F156>=0,'GESTION B'!C156," ") -> 0 | D143: =IF('GESTION B'!F156>=0,'GESTION B'!D156," ") -> 0
A144: =IF('GESTION B'!F157<=0,'GESTION B'!A157," ") -> B0525 | B144: =IF('GESTION B'!F157<=0,'GESTION B'!B157," ") -> 0 | C144: =IF('GESTION B'!F157>=0,'GESTION B'!C157," ") -> 0 | D144: =IF('GESTION B'!F157>=0,'GESTION B'!D157," ") -> 0
A145: =IF('GESTION B'!F158<=0,'GESTION B'!A158," ") ->  | B145: =IF('GESTION B'!F158<=0,'GESTION B'!B158," ") ->  | C145: =IF('GESTION B'!F158>=0,'GESTION B'!C158," ") -> GR3 | D145: =IF('GESTION B'!F158>=0,'GESTION B'!D158," ") -> SOUS TIGE 60
A146: =IF('GESTION B'!F159<=0,'GESTION B'!A159," ") ->  | B146: =IF('GESTION B'!F159<=0,'GESTION B'!B159," ") ->  | C146: =IF('GESTION B'!F159>=0,'GESTION B'!C159," ") -> GR2 | D146: =IF('GESTION B'!F159>=0,'GESTION B'!D159," ") -> SOUS TIGE 65
A147: =IF('GESTION B'!F160<=0,'GESTION B'!A160," ") ->  | B147: =IF('GESTION B'!F160<=0,'GESTION B'!B160," ") ->  | C147: =IF('GESTION B'!F160>=0,'GESTION B'!C160," ") -> GR2 | D147: =IF('GESTION B'!F160>=0,'GESTION B'!D160," ") -> SOUS TIGE 100
A148: =IF('GESTION B'!F161<=0,'GESTION B'!A161," ") ->  | B148: =IF('GESTION B'!F161<=0,'GESTION B'!B161," ") ->  | C148: =IF('GESTION B'!F161>=0,'GESTION B'!C161," ") -> GR4 | D148: =IF('GESTION B'!F161>=0,'GESTION B'!D161," ") -> SOUS TIGE 65
A149: =IF('GESTION B'!F162<=0,'GESTION B'!A162," ") ->  | B149: =IF('GESTION B'!F162<=0,'GESTION B'!B162," ") ->  | C149: =IF('GESTION B'!F162>=0,'GESTION B'!C162," ") -> C10 | D149: =IF('GESTION B'!F162>=0,'GESTION B'!D162," ") -> EBAUCHE
A150: =IF('GESTION B'!F163<=0,'GESTION B'!A163," ") ->  | B150: =IF('GESTION B'!F163<=0,'GESTION B'!B163," ") ->  | C150: =IF('GESTION B'!F163>=0,'GESTION B'!C163," ") -> C15 | D150: =IF('GESTION B'!F163>=0,'GESTION B'!D163," ") -> EBAUCHE 1 REPERE
A151: =IF('GESTION B'!F164<=0,'GESTION B'!A164," ") ->  | B151: =IF('GESTION B'!F164<=0,'GESTION B'!B164," ") ->  | C151: =IF('GESTION B'!F164>=0,'GESTION B'!C164," ") -> C15 | D151: =IF('GESTION B'!F164>=0,'GESTION B'!D164," ") -> EBAUCHE 2 REPERES
A152: =IF('GESTION B'!F165<=0,'GESTION B'!A165," ") ->  | B152: =IF('GESTION B'!F165<=0,'GESTION B'!B165," ") ->  | C152: =IF('GESTION B'!F165>=0,'GESTION B'!C165," ") -> C15 | D152: =IF('GESTION B'!F165>=0,'GESTION B'!D165," ") -> EBAUCHE SUPERIEUR Ø20 1 REPERE
A153: =IF('GESTION B'!F166<=0,'GESTION B'!A166," ") -> B0606-B | B153: =IF('GESTION B'!F166<=0,'GESTION B'!B166," ") -> MUBEA | C153: =IF('GESTION B'!F166>=0,'GESTION B'!C166," ") -> C15 | D153: =IF('GESTION B'!F166>=0,'GESTION B'!D166," ") -> EBAUCHE SUPERIEUR Ø20 2 REPERES
A154: =IF('GESTION B'!F167<=0,'GESTION B'!A167," ") ->  | B154: =IF('GESTION B'!F167<=0,'GESTION B'!B167," ") ->  | C154: =IF('GESTION B'!F167>=0,'GESTION B'!C167," ") -> C15 | D154: =IF('GESTION B'!F167>=0,'GESTION B'!D167," ") -> EBAUCHE SUPERIEUR Ø30 1 REPERE
A155: =IF('GESTION B'!F168<=0,'GESTION B'!A168," ") ->  | B155: =IF('GESTION B'!F168<=0,'GESTION B'!B168," ") ->  | C155: =IF('GESTION B'!F168>=0,'GESTION B'!C168," ") -> C15 | D155: =IF('GESTION B'!F168>=0,'GESTION B'!D168," ") -> EBAUCHE SUPERIEUR Ø30 2 REPERES
A156: =IF('GESTION B'!F169<=0,'GESTION B'!A169," ") -> B0608 | B156: =IF('GESTION B'!F169<=0,'GESTION B'!B169," ") -> MUBEA | C156: =IF('GESTION B'!F169>=0,'GESTION B'!C169," ") -> C15 | D156: =IF('GESTION B'!F169>=0,'GESTION B'!D169," ") -> MIXTE
A157: =IF('GESTION B'!F170<=0,'GESTION B'!A170," ") ->  | B157: =IF('GESTION B'!F170<=0,'GESTION B'!B170," ") ->  | C157: =IF('GESTION B'!F170>=0,'GESTION B'!C170," ") -> C20 | D157: =IF('GESTION B'!F170>=0,'GESTION B'!D170," ") -> EBAUCHE SUPERIEUR Ø20 1 REPERE
A158: =IF('GESTION B'!F171<=0,'GESTION B'!A171," ") ->  | B158: =IF('GESTION B'!F171<=0,'GESTION B'!B171," ") ->  | C158: =IF('GESTION B'!F171>=0,'GESTION B'!C171," ") -> C20 | D158: =IF('GESTION B'!F171>=0,'GESTION B'!D171," ") -> EBAUCHE SUPERIEUR Ø20 2 REPERES
A159: =IF('GESTION B'!F173<=0,'GESTION B'!A173," ") ->  | B159: =IF('GESTION B'!F173<=0,'GESTION B'!B173," ") ->  | C159: =IF('GESTION B'!F173>=0,'GESTION B'!C173," ") -> TRI | D159: =IF('GESTION B'!F173>=0,'GESTION B'!D173," ") -> EBAUCHE FRAISEE
A160: =IF('GESTION B'!F174<=0,'GESTION B'!A174," ") ->  | B160: =IF('GESTION B'!F174<=0,'GESTION B'!B174," ") ->  | C160: =IF('GESTION B'!F174>=0,'GESTION B'!C174," ") -> RP4 | D160: =IF('GESTION B'!F174>=0,'GESTION B'!D174," ") -> EBAUCHE
A161: =IF('GESTION B'!F175<=0,'GESTION B'!A175," ") ->  | B161: =IF('GESTION B'!F175<=0,'GESTION B'!B175," ") ->  | C161: =IF('GESTION B'!F175>=0,'GESTION B'!C175," ") -> RP4 | D161: =IF('GESTION B'!F175>=0,'GESTION B'!D175," ") -> EBAUCHE FRAISEE
A162: =IF('GESTION B'!F176<=0,'GESTION B'!A176," ") ->  | B162: =IF('GESTION B'!F176<=0,'GESTION B'!B176," ") ->  | C162: =IF('GESTION B'!F176>=0,'GESTION B'!C176," ") -> RP5 | D162: =IF('GESTION B'!F176>=0,'GESTION B'!D176," ") -> EBAUCHE
A163: =IF('GESTION B'!F177<=0,'GESTION B'!A177," ") -> B0612-B | B163: =IF('GESTION B'!F177<=0,'GESTION B'!B177," ") -> MUBEA/SUNRISE | C163: =IF('GESTION B'!F177>=0,'GESTION B'!C177," ") -> RP5 | D163: =IF('GESTION B'!F177>=0,'GESTION B'!D177," ") -> EBAUCHE FRAISEE
A164: =IF('GESTION B'!F178<=0,'GESTION B'!A178," ") -> B0613 | B164: =IF('GESTION B'!F178<=0,'GESTION B'!B178," ") -> MUBEA/SUNRISE | C164: =IF('GESTION B'!F178>=0,'GESTION B'!C178," ") -> RP6 | D164: =IF('GESTION B'!F178>=0,'GESTION B'!D178," ") -> EBAUCHE
A165: =IF('GESTION B'!F179<=0,'GESTION B'!A179," ") ->  | B165: =IF('GESTION B'!F179<=0,'GESTION B'!B179," ") ->  | C165: =IF('GESTION B'!F179>=0,'GESTION B'!C179," ") -> RP6 | D165: =IF('GESTION B'!F179>=0,'GESTION B'!D179," ") -> EBAUCHE FRAISEE
A166: =IF('GESTION B'!F180<=0,'GESTION B'!A180," ") ->  | B166: =IF('GESTION B'!F180<=0,'GESTION B'!B180," ") ->  | C166: =IF('GESTION B'!F180>=0,'GESTION B'!C180," ") -> RP8 | D166: =IF('GESTION B'!F180>=0,'GESTION B'!D180," ") -> EBAUCHE
A167: =IF('GESTION B'!F181<=0,'GESTION B'!A181," ") ->  | B167: =IF('GESTION B'!F181<=0,'GESTION B'!B181," ") ->  | C167: =IF('GESTION B'!F181>=0,'GESTION B'!C181," ") -> RP8 | D167: =IF('GESTION B'!F181>=0,'GESTION B'!D181," ") -> EBAUCHE FRAISEE
A168: =IF('GESTION B'!F182<=0,'GESTION B'!A182," ") ->  | B168: =IF('GESTION B'!F182<=0,'GESTION B'!B182," ") ->  | C168: =IF('GESTION B'!F182>=0,'GESTION B'!C182," ") -> GP-P01-075-3 | D168: =IF('GESTION B'!F182>=0,'GESTION B'!D182," ") -> EBAUCHE
A169: =IF('GESTION B'!F183<=0,'GESTION B'!A183," ") ->  | B169: =IF('GESTION B'!F183<=0,'GESTION B'!B183," ") ->  | C169: =IF('GESTION B'!F183>=0,'GESTION B'!C183," ") -> GP-P01-075-3 | D169: =IF('GESTION B'!F183>=0,'GESTION B'!D183," ") -> EBAUCHE
A170: =IF('GESTION B'!F184<=0,'GESTION B'!A184," ") ->  | B170: =IF('GESTION B'!F184<=0,'GESTION B'!B184," ") ->  | C170: =IF('GESTION B'!F184>=0,'GESTION B'!C184," ") -> GP-P01-075-3 | D170: =IF('GESTION B'!F184>=0,'GESTION B'!D184," ") -> EBAUCHE FRAISEE
A171: =IF('GESTION B'!F185<=0,'GESTION B'!A185," ") ->  | B171: =IF('GESTION B'!F185<=0,'GESTION B'!B185," ") ->  | C171: =IF('GESTION B'!F185>=0,'GESTION B'!C185," ") -> GP-P01-075-3 | D171: =IF('GESTION B'!F185>=0,'GESTION B'!D185," ") -> EBAUCHE FRAISEE
A172: =IF('GESTION B'!F186<=0,'GESTION B'!A186," ") ->  | B172: =IF('GESTION B'!F186<=0,'GESTION B'!B186," ") ->  | C172: =IF('GESTION B'!F186>=0,'GESTION B'!C186," ") -> GP-P01-100-3 | D172: =IF('GESTION B'!F186>=0,'GESTION B'!D186," ") -> EBAUCHE
A173: =IF('GESTION B'!F187<=0,'GESTION B'!A187," ") ->  | B173: =IF('GESTION B'!F187<=0,'GESTION B'!B187," ") ->  | C173: =IF('GESTION B'!F187>=0,'GESTION B'!C187," ") -> GP-P01-100-3 | D173: =IF('GESTION B'!F187>=0,'GESTION B'!D187," ") -> EBAUCHE
A174: =IF('GESTION B'!F188<=0,'GESTION B'!A188," ") ->  | B174: =IF('GESTION B'!F188<=0,'GESTION B'!B188," ") ->  | C174: =IF('GESTION B'!F188>=0,'GESTION B'!C188," ") -> GP-P01-100-3 | D174: =IF('GESTION B'!F188>=0,'GESTION B'!D188," ") -> EBAUCHE FRAISEE L90
A175: =IF('GESTION B'!F189<=0,'GESTION B'!A189," ") ->  | B175: =IF('GESTION B'!F189<=0,'GESTION B'!B189," ") ->  | C175: =IF('GESTION B'!F189>=0,'GESTION B'!C189," ") -> GP-P01-075-3 | D175: =IF('GESTION B'!F189>=0,'GESTION B'!D189," ") -> EBAUCHE AUDINOX
A176: =IF('GESTION B'!F190<=0,'GESTION B'!A190," ") -> B0625 | B176: =IF('GESTION B'!F190<=0,'GESTION B'!B190," ") -> 0 | C176: =IF('GESTION B'!F190>=0,'GESTION B'!C190," ") -> 0 | D176: =IF('GESTION B'!F190>=0,'GESTION B'!D190," ") -> 0
A177: =IF('GESTION B'!F191<=0,'GESTION B'!A191," ") -> B0701-A | B177: =IF('GESTION B'!F191<=0,'GESTION B'!B191," ") -> VERNET | C177: =IF('GESTION B'!F191>=0,'GESTION B'!C191," ") -> P. N°1 | D177: =IF('GESTION B'!F191>=0,'GESTION B'!D191," ") -> EBAUCHE FRAISEE L4
A178: =IF('GESTION B'!F192<=0,'GESTION B'!A192," ") ->  | B178: =IF('GESTION B'!F192<=0,'GESTION B'!B192," ") ->  | C178: =IF('GESTION B'!F192>=0,'GESTION B'!C192," ") -> P. N°2 | D178: =IF('GESTION B'!F192>=0,'GESTION B'!D192," ") -> EBAUCHE FRAISEE L4
A179: =IF('GESTION B'!F193<=0,'GESTION B'!A193," ") ->  | B179: =IF('GESTION B'!F193<=0,'GESTION B'!B193," ") ->  | C179: =IF('GESTION B'!F193>=0,'GESTION B'!C193," ") -> P. N°3 | D179: =IF('GESTION B'!F193>=0,'GESTION B'!D193," ") -> EBAUCHE FRAISEE L4
A180: =IF('GESTION B'!F195<=0,'GESTION B'!A195," ") ->  | B180: =IF('GESTION B'!F195<=0,'GESTION B'!B195," ") ->  | C180: =IF('GESTION B'!F195>=0,'GESTION B'!C195," ") -> P. N°4 | D180: =IF('GESTION B'!F195>=0,'GESTION B'!D195," ") -> EBAUCHE FRAISEE L4
A181: =IF('GESTION B'!F197<=0,'GESTION B'!A197," ") ->  | B181: =IF('GESTION B'!F197<=0,'GESTION B'!B197," ") ->  | C181: =IF('GESTION B'!F197>=0,'GESTION B'!C197," ") -> P. N°4 | D181: =IF('GESTION B'!F197>=0,'GESTION B'!D197," ") -> EBAUCHE FRAISEE CROIX L8
A182: =IF('GESTION B'!F198<=0,'GESTION B'!A198," ") ->  | B182: =IF('GESTION B'!F198<=0,'GESTION B'!B198," ") ->  | C182: =IF('GESTION B'!F198>=0,'GESTION B'!C198," ") -> P. N°4 | D182: =IF('GESTION B'!F198>=0,'GESTION B'!D198," ") -> EBAUCHE FRAISEE ERGOT 8 AVEC MOUCHE Ø33
A183: =IF('GESTION B'!F200<=0,'GESTION B'!A200," ") ->  | B183: =IF('GESTION B'!F200<=0,'GESTION B'!B200," ") ->  | C183: =IF('GESTION B'!F200>=0,'GESTION B'!C200," ") -> P. N°4 | D183: =IF('GESTION B'!F200>=0,'GESTION B'!D200," ") -> EBAUCHE FRAISEE ERGOT 8 AVEC MOUCHE
A184: =IF('GESTION B'!F201<=0,'GESTION B'!A201," ") ->  | B184: =IF('GESTION B'!F201<=0,'GESTION B'!B201," ") ->  | C184: =IF('GESTION B'!F201>=0,'GESTION B'!C201," ") -> P. N°1 PG80 | D184: =IF('GESTION B'!F201>=0,'GESTION B'!D201," ") -> EBAUCHE FRAISEE L8
A185: =IF('GESTION B'!F202<=0,'GESTION B'!A202," ") ->  | B185: =IF('GESTION B'!F202<=0,'GESTION B'!B202," ") ->  | C185: =IF('GESTION B'!F202>=0,'GESTION B'!C202," ") -> P. N°1 PG80 | D185: =IF('GESTION B'!F202>=0,'GESTION B'!D202," ") -> EBAUCHE FRAISEE ERGOT 8 SANS MOUCHE
A186: =IF('GESTION B'!F203<=0,'GESTION B'!A203," ") ->  | B186: =IF('GESTION B'!F203<=0,'GESTION B'!B203," ") ->  | C186: =IF('GESTION B'!F203>=0,'GESTION B'!C203," ") -> P. N°1 PG80 | D186: =IF('GESTION B'!F203>=0,'GESTION B'!D203," ") -> EBAUCHE FRAISEE CROIX L8
A187: =IF('GESTION B'!F204<=0,'GESTION B'!A204," ") ->  | B187: =IF('GESTION B'!F204<=0,'GESTION B'!B204," ") ->  | C187: =IF('GESTION B'!F204>=0,'GESTION B'!C204," ") -> P. N°1 PG116/MAP AMB | D187: =IF('GESTION B'!F204>=0,'GESTION B'!D204," ") -> EBAUCHE FRAISEE ERGOT 8 AVEC MOUCHE
A188: =IF('GESTION B'!F205<=0,'GESTION B'!A205," ") ->  | B188: =IF('GESTION B'!F205<=0,'GESTION B'!B205," ") ->  | C188: =IF('GESTION B'!F205>=0,'GESTION B'!C205," ") -> P. N°1 PG116/MAP AME | D188: =IF('GESTION B'!F205>=0,'GESTION B'!D205," ") -> EBAUCHE FRAISEE CROIX L8
A189: =IF('GESTION B'!F206<=0,'GESTION B'!A206," ") ->  | B189: =IF('GESTION B'!F206<=0,'GESTION B'!B206," ") ->  | C189: =IF('GESTION B'!F206>=0,'GESTION B'!C206," ") -> P. N°1 PG116/MAP AME | D189: =IF('GESTION B'!F206>=0,'GESTION B'!D206," ") -> EBAUCHE FRAISEE ERGOT 8 SANS MOUCHE
A190: =IF('GESTION B'!F207<=0,'GESTION B'!A207," ") ->  | B190: =IF('GESTION B'!F207<=0,'GESTION B'!B207," ") ->  | C190: =IF('GESTION B'!F207>=0,'GESTION B'!C207," ") -> P. N°2 PG116/MAP AME | D190: =IF('GESTION B'!F207>=0,'GESTION B'!D207," ") -> EBAUCHE FRAISEE ERGOT 8 SANS MOUCHE
A191: =IF('GESTION B'!F208<=0,'GESTION B'!A208," ") ->  | B191: =IF('GESTION B'!F208<=0,'GESTION B'!B208," ") ->  | C191: =IF('GESTION B'!F208>=0,'GESTION B'!C208," ") -> P. N°4 | D191: =IF('GESTION B'!F208>=0,'GESTION B'!D208," ") -> EBAUCHE FRAISEE L8
A192: =IF('GESTION B'!F209<=0,'GESTION B'!A209," ") ->  | B192: =IF('GESTION B'!F209<=0,'GESTION B'!B209," ") ->  | C192: =IF('GESTION B'!F209>=0,'GESTION B'!C209," ") -> P. N°1 PG116/MAP AME | D192: =IF('GESTION B'!F209>=0,'GESTION B'!D209," ") -> EBAUCHE FRAISEE L8
A193: =IF('GESTION B'!F210<=0,'GESTION B'!A210," ") -> B0715 | B193: =IF('GESTION B'!F210<=0,'GESTION B'!B210," ") -> 0 | C193: =IF('GESTION B'!F210>=0,'GESTION B'!C210," ") -> 0 | D193: =IF('GESTION B'!F210>=0,'GESTION B'!D210," ") -> 0
A194: =IF('GESTION B'!F211<=0,'GESTION B'!A211," ") -> B0716 | B194: =IF('GESTION B'!F211<=0,'GESTION B'!B211," ") -> 0 | C194: =IF('GESTION B'!F211>=0,'GESTION B'!C211," ") -> 0 | D194: =IF('GESTION B'!F211>=0,'GESTION B'!D211," ") -> 0
A195: =IF('GESTION B'!F212<=0,'GESTION B'!A212," ") ->  | B195: =IF('GESTION B'!F212<=0,'GESTION B'!B212," ") ->  | C195: =IF('GESTION B'!F212>=0,'GESTION B'!C212," ") -> PED 30 | D195: =IF('GESTION B'!F212>=0,'GESTION B'!D212," ") -> EBAUCHE Ø75 FRAISE 0° ET 90°
A196: =IF('GESTION B'!F213<=0,'GESTION B'!A213," ") ->  | B196: =IF('GESTION B'!F213<=0,'GESTION B'!B213," ") ->  | C196: =IF('GESTION B'!F213>=0,'GESTION B'!C213," ") -> PED 30 | D196: =IF('GESTION B'!F213>=0,'GESTION B'!D213," ") -> Ø50 FRAISEE 0° ET 90°
A197: =IF('GESTION B'!F214<=0,'GESTION B'!A214," ") ->  | B197: =IF('GESTION B'!F214<=0,'GESTION B'!B214," ") ->  | C197: =IF('GESTION B'!F214>=0,'GESTION B'!C214," ") -> PED 30 | D197: =IF('GESTION B'!F214>=0,'GESTION B'!D214," ") -> EBAUCHE Ø80 FRAISE 0° ET 90°
A198: =IF('GESTION B'!F215<=0,'GESTION B'!A215," ") ->  | B198: =IF('GESTION B'!F215<=0,'GESTION B'!B215," ") ->  | C198: =IF('GESTION B'!F215>=0,'GESTION B'!C215," ") -> PED 30 | D198: =IF('GESTION B'!F215>=0,'GESTION B'!D215," ") -> EBAUCHE Ø80 FRAISE 0° ET 90°
A199: =IF('GESTION B'!F216<=0,'GESTION B'!A216," ") -> B0721 | B199: =IF('GESTION B'!F216<=0,'GESTION B'!B216," ") -> VERNET | C199: =IF('GESTION B'!F216>=0,'GESTION B'!C216," ") -> PED 30 | D199: =IF('GESTION B'!F216>=0,'GESTION B'!D216," ") -> Ø98
A200: =IF('GESTION B'!F217<=0,'GESTION B'!A217," ") ->  | B200: =IF('GESTION B'!F217<=0,'GESTION B'!B217," ") ->  | C200: =IF('GESTION B'!F217>=0,'GESTION B'!C217," ") -> PED 25 | D200: =IF('GESTION B'!F217>=0,'GESTION B'!D217," ") -> EBAUCHE
A201: =IF('GESTION B'!F218<=0,'GESTION B'!A218," ") ->  | B201: =IF('GESTION B'!F218<=0,'GESTION B'!B218," ") ->  | C201: =IF('GESTION B'!F218>=0,'GESTION B'!C218," ") -> PG 41 | D201: =IF('GESTION B'!F218>=0,'GESTION B'!D218," ") -> EBAUCHE
A202: =IF('GESTION B'!F219<=0,'GESTION B'!A219," ") -> B0723 | B202: =IF('GESTION B'!F219<=0,'GESTION B'!B219," ") -> 0 | C202: =IF('GESTION B'!F219>=0,'GESTION B'!C219," ") -> 0 | D202: =IF('GESTION B'!F219>=0,'GESTION B'!D219," ") -> 0
... 198 more rows

Sheet MACHINES
G1: MACHINES
B2: ABL
B3: ABL - PROFEL
B4: ALFRA
B5: ALPHYDRO
B6: BOUTILLON
B7: FICEP
B8: GEKA
B9: GEKA/PEDDY
B10: IMAC
B11: IMAC SELFER ALFRA
B12: KINGSLAND
B13: LOPIN
B14: MUBEA
B15: MUBEA/SUNRISE
B16: PEDDY
B17: PROFEL
B18: ROUYER RC
B19: SELFER
B20: SIRUGUE
B21: SOCLAM
B22: SUNRISE
B23: VERNET
B24: IMS
B25: SOMMER
B26: ARMO-EDNOR
B27: PROMAT/PROFEL
B28: PROMAT
B29: OMERA
B30: DENHEZ/RASKIN
B31: SCOTCHMAN
B32: EDEL
B33: SUP-GRAUVRE
B34: IRES
B35: HUVEMA
B36: REY

Sheet REFERENCES A
E1: REFERENCES A
B2: C14
B3: C18
B4: C22
B5: CORPS 25
B6: CORPS 32
B7: CORPS 40
B9: EM300
B11: GM11
B12: GM10
B13: GM12
B14: GM13
B15: GM5
B16: GM8
B17: GN10
B18: GN11
B19: GN11A
B20: GN12
B21: GN12A
B22: GN13
B23: GN13A
B24: GN5/27
B25: GN5/30
B26: GN6
B27: GN8/31
B28: GN8/40
B29: LPA 8D
B30: M110
B31: M14
B32: M164
B33: M20
B34: M22
B35: M24
B36: M24
B37: M26
B38: M28
B39: M30
B40: M30
B41: M31
B42: M32
B43: M34
B44: M34
B45: M35
B46: M38
B47: M39
B48: M40
B49: M41
B50: M45
B51: M47
B52: M48
B53: M50
B54: M50,8 P
B55: M50,8
B56: M55
B57: M58
B58: M70
B59: M70
B60: M95
B61: MC79,37
B62: MN2
B63: MN20
B64: MN3
B65: MN4
B66: MN6
B68: PA3000 POINCON
B69: PA5000 MATRICE Ø38,1
B70: PA5000 POINCON
B71: PA5046 MATRICE Ø46
B72: PC10
B73: PC14
B74: PC16
B75: PC27
B76: PC28
B77: PC31
B78: PC32
B79: PC39,5
B80: PC40
B81: PC40
B82: PC45
B83: PC46
B84: PC51
B85: PED
B86: PED 18
B87: PED 20
B88: PED 22
B89: PED 25
B90: PED 30
B91: PED 36
B92: PED36
B93: PEMH
B94: PG6
B95: PN1
B96: PN11
B97: PN2
B98: PN3
B99: PN4
B100: PN4 S
B101: PN5
B102: PN6
B103: PN7
B105: SC1
B106: SC2
B107: SC3
B108: SC4
B110: T22 MATRICE Ø31,7
B111: T32 MATRICE Ø54
B112: TRA
B113: TRA1
B114: TRA2
B115: TRA3
B117: MATRICE 271
B118: POINCON 272
B120: GN8/31A
B121: GN6/30
B122: GN8/31 DOUBLE
B123: M73
B124: GN5 DOUBLE
B125: TRA30x45
B126: TRA36X55
B127: C20

Sheet REFERENCES B
F1: REFERENCES B
B3: 9001
B4: 9004
B5: 9006
B6: 9007
B7: 9009
B8: 9010
B9: 9011
B10: 9020
B11: 9022
B12: 9023
B13: 9024
B14: 9025
B15: 9026
B17: 5012836 - 101
B18: 5012836 - 102
B20: C10
B21: C15
B22: C20
B24: DEVETISSEUR
B26: ED50
B28: GN13
B29: GP-P01-075-3
B30: GP-P01-100-3
B31: GR2
B32: GR3
B33: GR4
B35: M100
B36: M110
B37: M25
B38: M30
B39: M30
B40: M35
B41: M42
B42: M45
B43: M45
B44: M54
B45: M55
B46: M60
B47: M70
B48: M80
B49: M90
B50: MAP M25
B51: MAP M35
B52: MAP M42
B53: MAP M55
B54: MATRICE MN1
B55: MATRICE SP
B57: Ø113X26,5
B58: Ø113XDIVERS
B60: P. N°1 PG116/MAP AME
B61: P. N°1 PG80
B62: P. N°2
B63: P. N°2 PG116/MAP AME
B64: P. N°2 PG80
B65: P. N°3
B66: P. N°4
B67: P. N°1
B68: P24
B69: P24 CE
B70: P24 EXCENTRE
B71: P24 SUPERIEUR Ø30
B72: P25
B73: P26
B74: P40
B75: P70
B76: PED 25
B77: PED 30
B78: PG 41
B79: PG M55
B80: PG M70
B81: PN11
B82: POINCON AM
B83: POINCON MN1
B84: POINCON MN2
B85: POINCON MN3
B86: POINCON SP
B88: RP4
B89: RP5
B90: RP6
B91: RP8
B93: TIRANT PORTE MATRICE
B94: TRI
B96: VP derniere generation M24
B97: VP derniere generation M32
B98: VP derniere generation M38
B99: VP derniere generation M43
B100: VP derniere generation M48
B101: VP M20 H6
B102: VP M24 H7
B103: VP M32 H8
B104: VP M38 H10
B105: VP M38 H9
B106: VP M43 H10
B108: M44
B109: M50,8
B110: M79,5
B111: M120
B112: M150
B114: C52 | K114: VP DERNIERE GENERATION M45
B116: MAP M70
B118: C22
B119: C20
B120: C30
B121: VP DERNIERE GENERATION M45
B122: M40
B123: M34 HAUTE
B124: VP M43 H10
B125: P. N°1 PG116/MAP AMB
B126: VP M46 H10
B127: RETIS
B128: P NUM C30
B129: C31,5
B130: C39
B131: C35
B132: M65
B133: PC8
B134: TRA3454H18
B135: MT3030
B136: MT3040
B137: 5012836-189
B138: 5013058-M35
B139: 5013058-P14
B140: 2013058-M35H10

Sheet REFERENCES C
B3: P70
B4: M40
B5: P40
B6: 5013205-38
B7: 5012090+
B8: 5013710-1
B9: 5013090+
B10: CORPS 34
B11: CORPS 28
B12: P CORPS 26 Lg45
B13: b
B14: c
B15: a
B16: b
B17: c
B18: a
B19: b
B20: c
B21: a
B22: b
B23: c
B24: a
B25: b
B26: c
B27: a
B28: b
B29: c
B30: a
B31: b
B32: c
B33: a
B34: b
B35: c
B36: a
B37: b
B38: c
B39: a
B40: b
B41: c
B42: a
B43: b
B44: c
B45: a
B46: b
B47: c
B48: a
B49: b
B50: c
B51: a
B52: b
B53: c
B54: a
B55: b
B56: c
B57: a
B58: b
B59: c
B60: a
B61: b
B62: c
B63: a
B64: b
B65: c
B66: a
B67: b
B68: c
B69: a
B70: b
B71: c
B72: a
B73: b
B74: c
B75: a
B76: b
B77: c
B78: a
B79: b
B80: c
B81: a

Sheet DESIGNATIONS
F1: DESIGNATIONS
B2: BONNET
B4: CANON EUROPEEN
B5: CONE REDUCTION EBAUCHE
B6: CORPS 101 1 ENCOCHE
B7: CORPS 101 2 ENCOCHES
B8: CORPS 18 Ø50 FRAISE
B9: CORPS 18 Ø50 NON FRAISE
B10: CORPS 20 Ø50 FRAISE
B11: CORPS 20 Ø50 FRAISE SANS POINTE
B12: CORPS 20 Ø60 FRAISE
B13: CORPS 20 Ø70 FRAISE H30
B14: CORPS 20 Ø70 FRAISE H40
B15: CORPS 20 Ø70 FRAISE SANS POINTE
B16: CORPS 22 Ø100 FRAISE H30
B17: CORPS 22 Ø100 FRAISE H30 SANS POINTE
B18: CORPS 22 Ø100 FRAISE H40 SANS POINTE
B19: CORPS 22 Ø110 FRAISE SANS POINTE
B20: CORPS 22 Ø50 FRAISE H30
B21: CORPS 22 Ø50 FRAISE H40
B22: CORPS 22 Ø70 FRAISE H30
B23: CORPS 22 Ø70 FRAISE H40
B24: CORPS 80 1 ENCOCHE
B25: CORPS 80 2 ENCOCHES
B26: CORPS Ø24 PERCE 1 TROU Ø3
B27: CORPS Ø24 PERCE 4 TROUS Ø3
B28: CORPS Ø24 PERCE 4 TROUS Ø3 EXCENTRE
B29: CORPS Ø25 PERCE 1 TROU Ø3
B30: CORPS Ø26 PERCE 1 TROU Ø3
B32: DECHAUSSOIR
B34: EBAUCHE
B35: EBAUCHE 1 FACE
B36: EBAUCHE 1 REPERE
B37: EBAUCHE 1 REPERE DERVAUX
B38: EBAUCHE 1 REPERE ALESEE Ø30
B39: EBAUCHE 1 REPERE FACE INCLINEE
B40: EBAUCHE 1/4 ROND
B41: EBAUCHE 1/4 ROND L 40
B42: EBAUCHE 1/4 ROND L 50
B43: EBAUCHE 1/4 ROND L 55
B44: EBAUCHE 1/4 ROND (VIEUX)
B45: EBAUCHE 2 FACES
B46: EBAUCHE 2 REPERES
B47: EBAUCHE 2 REPERES 0° ET 45°
B48: EBAUCHE 2 REPERES 1 PLAT
B49: EBAUCHE 3 REPERES 0° 45° 90°
B50: EBAUCHE AUDINOX
B51: EBAUCHE CARRE 0° ET 45°
B52: EBAUCHE CARRE 0° ET 90°
B53: EBAUCHE CE
B54: EBAUCHE DEPORTEE
B55: EBAUCHE ED
B56: EBAUCHE EXCENTREE
B57: EBAUCHE FRAISEE
B58: EBAUCHE FRAISEE 0 ET 45°
B59: EBAUCHE FRAISEE 0 ET 45° CLAVETTE 4 MM
B60: EBAUCHE FRAISEE 0 ET 45° CLAVETTE 6 MM
B61: EBAUCHE FRAISEE 0 ET 90°
B62: EBAUCHE FRAISEE 0° ET 90° L32
B63: EBAUCHE FRAISEE 1 ENCOCHE
B64: EBAUCHE FRAISEE 2 ENCOCHES
B65: EBAUCHE FRAISEE 2 ENCOCHES 0 ET 180°
B66: EBAUCHE FRAISEE 26,4
B67: EBAUCHE FRAISEE 27
B68: EBAUCHE FRAISEE 31,5
B69: EBAUCHE FRAISEE 32
B70: EBAUCHE FRAISEE CLAVETTE 4 MM
B71: EBAUCHE FRAISEE CLAVETTE 6 MM
B72: EBAUCHE FRAISEE CORPS 27
B73: EBAUCHE FRAISEE CORPS 31
B74: EBAUCHE FRAISEE CORPS 41
B75: EBAUCHE FRAISEE CORPS 58,5
B76: EBAUCHE FRAISEE CORPS 60
B77: EBAUCHE FRAISEE CROIX L4
B78: EBAUCHE FRAISEE CROIX L8
B79: EBAUCHE FRAISEE ERGOT 8 AVEC MOUCHE
B80: EBAUCHE FRAISEE ERGOT 8 SANS MOUCHE
B81: EBAUCHE FRAISEE EXCENTREE
B82: EBAUCHE FRAISEE L…
B83: EBAUCHE FRAISEE L100
B84: EBAUCHE FRAISEE L106
B85: EBAUCHE FRAISEE L110
B86: EBAUCHE FRAISEE L120
B87: EBAUCHE FRAISEE L130
B88: EBAUCHE FRAISEE L140
B89: EBAUCHE FRAISEE L4
B90: EBAUCHE FRAISEE L55
B91: EBAUCHE FRAISEE L 60
B92: EBAUCHE FRAISEE L61
B93: EBAUCHE FRAISEE L70
B94: EBAUCHE FRAISEE L74
B95: EBAUCHE FRAISEE L8
B96: EBAUCHE FRAISEE L80
B97: EBAUCHE FRAISEE L85
B98: EBAUCHE FRAISEE L86
B99: EBAUCHE FRAISEE L87
B100: EBAUCHE FRAISEE L90
B101: EBAUCHE FRAISEE L95
B102: EBAUCHE FRAISEE L97
B103: EBAUCHE FRAISEE NON PERCEE
B104: EBAUCHE FRAISEE Ø24
B105: EBAUCHE FRAISEE Ø26
B106: EBAUCHE FRAISEE Ø34
B107: EBAUCHE FRAISEE Ø40
B108: EBAUCHE FRAISEE PERCEE
B109: EBAUCHE FRAISEE PERCEE 0° ET 45°
B110: EBAUCHE FRAISEE PERCEE Ø36 0° ET 90°
B111: EBAUCHE FRAISEE PERCEE 0° ET 90°
B112: EBAUCHE FRAISEE PERCEE 0° ET 90° L30
B113: EBAUCHE FRAISEE PERCEE 0° ET 90° L32
B114: EBAUCHE FRAISEE PERCEE Ø3
B115: EBAUCHE FRAISEE PERCEE Ø3 0° ET 90°
B116: EBAUCHE FRAISEE SANS POINTE
B117: EBAUCHE FRAISEE SUPERIEUR
B118: EBAUCHE FRAISEE SUPERIEUR Ø55
B119: EBAUCHE FRAISEE SUPERIEUR Ø60
B120: EBAUCHE IPN
B121: EBAUCHE IPN FRAISEE
B122: EBAUCHE MATRICE DEGAGEE
B123: EBAUCHE NON FRAISEE
B124: EBAUCHE NON FRAISEE Ø10
B125: EBAUCHE NON FRAISEE Ø6
B126: EBAUCHE NON TOURNEE
B127: EBAUCHE NON TOURNEE L98
B128: EBAUCHE Ø26
B129: EBAUCHE Ø27
B130: EBAUCHE Ø30
B131: EBAUCHE Ø32 L30
B132: EBAUCHE Ø32 L32
B133: EBAUCHE Ø34
B134: EBAUCHE Ø40
B135: EBAUCHE Ø90 H70
B136: EBAUCHE PERCEE
B137: EBAUCHE PERCEE 1 REPERE
B138: EBAUCHE PERCEE 1 REPERE FACE INCLINEE
B139: EBAUCHE PERCEE 2 REPERES 0° ET 180°
B140: EBAUCHE PERCEE 2 REPERES 0° ET 90°
B141: EBAUCHE PERCEE 4 REPERES
B142: EBAUCHE PERCEE Ø16
B143: EBAUCHE PERCEE Ø20
B144: EBAUCHE PERCEE Ø22
B145: EBAUCHE PERCEE Ø28
B146: EBAUCHE PERCEE Ø31
B147: EBAUCHE PERCEE Ø35
B148: EBAUCHE PERCEE Ø24 2 REPERES 0° - 90°
B149: EBAUCHE PERCEE Ø26 2 REPERES 0° - 90°
B150: EBAUCHE PERCEE Ø29 2 REPERES 0° - 90°
B151: EBAUCHE PERCEE Ø3
B152: EBAUCHE PERCEE Ø3 2 REPERES 0° ET 90°
B153: EBAUCHE PERCEE Ø3 3 REPERES 0° 45° 90°
B154: EBAUCHE PERCEE Ø30 4 REPERES
B155: EBAUCHE RAINURE CIRCULAIRE
B156: EBAUCHE RAINURE FRAISEE
B157: EBAUCHE RAINURE FRAISEE 0° ET 90°
B158: EBAUCHE RAINURE FRAISEE 1 RAINURE
B159: EBAUCHE RAINURE FRAISEE PERCEE 0° ET 45°
B160: EBAUCHE RAINURE FRAISEE PERCEE 0° ET 90°
B161: EBAUCHE SCS
B162: EBAUCHE SUPERIEUR
B163: EBAUCHE SUPERIEUR 2 REPERES
B164: EBAUCHE SUPERIEUR Ø20
B165: EBAUCHE SUPERIEUR Ø20 1 REPERE
B166: EBAUCHE SUPERIEUR Ø20 2 REPERES
B167: EBAUCHE SUPERIEUR Ø30 1 REPERE
B168: EBAUCHE SUPERIEUR Ø30 2 REPERES
B169: EBAUCHE SUPERIEUR TREMPEE
B170: EBAUCHE TOUT VENANT
B171: EBAUCHE UPN
B172: EBAUCHE UPN FRAISEE
B174: M14
B175: M95
B176: MATRICE EBAUCHE
B177: MIXTE
B178: MOLETTE DROITE
B179: MOLETTE GAUCHE
B181: N°1
B182: N°3
B183: N°3 CANON EUROPEEN
B184: NEZ DE BROCHE Ø30
B186: Ø102
B187: Ø102 LONGUEUR + 20MM
B188: Ø110
B189: Ø26
B190: Ø30
B191: Ø50
B192: Ø50 FRAISEE 0° ET 90°
B193: Ø50 LONGUEUR + 10 MM
B194: Ø55
B195: Ø80
B196: Ø80
B197: Ø90
B198: Ø98
B200: PED 22 LONG Ø22
B201: PED 22 LONG Ø40
B202: POINCON EBAUCHE
B204: REDUCTION MATRICE
B206: SOUS TIGE
B207: SOUS TIGE 100
B208: SOUS TIGE 108
B209: SOUS TIGE 60
... 169 more rows

Sheet CLIENTS
G1: CLIENTS
B3: MATELON
B4: A0703+A0704
B5: REY
B9: -

Sheet ADRESSES A
G1: ADRESSES A
B3: A0101
B4: A0102
B5: A0103
B6: A0104
B7: A0105
B8: A0106-A
B9: A0106-B
B10: A0107
B11: A0108
B12: A0109
B13: A0110
B14: A0111-A
B15: A0111-B
B16: A0112-A
B17: A0112-B
B18: A0113
B19: A0114
B20: A0115
B21: A0116
B22: A0117
B23: A0118-A
B24: A0118-B
B25: A0119-A
B26: A0119-B
B27: A0120-A
B28: A0120-B
B29: A0120-C
B30: A0121
B31: A0122-A
B32: A0122-B
B33: A0123
B34: A0124-A
B35: A0124-B
B36: A0125
B38: A0201-A
B39: A0201-B
B40: A0202
B41: A0203
B42: A0204
B43: A0205
B44: A0206-A
B45: A0206-B
B46: A0206-C
B47: A0207
B48: A0208-A
B49: A0208-B
B50: A0209
B51: A0210
B52: A0211
B53: A0212
B54: A0213
B55: A0214
B56: A0215
B57: A0216
B58: A0217
B59: A0218
B60: A0219
B61: A0220
B62: A0221
B63: A0222
B64: A0223
B65: A0224-A
B66: A0224-B
B67: A0225
B68: A0301-A
B69: A0301-B
B70: A0302-A
B71: A0302-B
B72: A0303
B73: A0304
B74: A0305-A
B75: A0305-B
B76: A0306-A
B77: A0306-B
B78: A0307
B79: A0308
B80: A0309
B81: A0310
B82: A0311
B83: A0312
B84: A0313
B85: A0314
B86: A0315
B87: A0316
B88: A0317
B89: A0318
B90: A0319
B91: A0320
B92: A0321
B93: A0322-A
B94: A0322-B
B95: A0323-A
B96: A0323-B
B97: A0324-A
B98: A0324-B
B99: A0325
B100: A0401-A
B101: A0401-B
B102: A0401-C
B103: A0402-A
B104: A0402-B
B105: A0403
B106: A0404-A
B107: A0404-B
B108: A0405
B109: A0406
B110: A0407
B111: A0408
B112: A0409
B113: A0410-A
B114: A0410-B
B115: A0411
B116: A0412-A
B117: A0412-B
B118: A0413
B119: A0414
B120: A0415-A
B121: A0415-B
B122: A0416-A
B123: A0416-B
B124: A0417
B125: A0418-A
B126: A0418-B
B127: A0418-C
B128: A0419
B129: A0420
B130: A0421
B131: A0422
B132: A0423
B133: A0424
B134: A0425
B135: A0501-A
B136: A0501-B
B137: A0501-C
B138: A0502-A
B139: A0502-B
B140: A0502-C
B141: A0503-A
B142: A0503-B
B143: A0504
B144: A0504-B
B145: A0505-A
B146: A0505-B
B147: A0506-A
B148: A0506-B
B149: A0507-A
B150: A0507-B
B151: A0508-A
B152: A0508-B
B153: A0508-C
B154: A0508-D
B155: A0508-E
B156: A0508-F
B157: A0509-A
B158: A0509-B
B159: A0509-C
B160: A0510
B161: A0511-A
B162: A0511-B
B163: A0512-A
B164: A0512-B
B165: A0513
B166: A0514
B167: A0515
B168: A0516
B169: A0517
B170: A0518
B171: A0519
B172: A0520
B173: A0521-A
B174: A0521-B
B175: A0522
B176: A0523
B177: A0524
B178: A0525
B179: A0601
B180: A0602
B181: A0603-A
B182: A0603-B
B183: A0604-A
B184: A0604-B
B185: A0605-A
B186: A0605-B
B187: A0606
B188: A0607-A
B189: A0607-B
B190: A0608-A
B191: A0608-B
B192: A0609-A
B193: A0609-B
B194: A0610
B195: A0611
B196: A0612-A
B197: A0612-B
B198: A0613
B199: A0614-A
B200: A0614-B
B201: A0615-A
B202: A0615-B
... 267 more rows

Sheet ADRESSES B
G1: ADRESSES B
A3: B0101-A
A4: B0101-B
A5: B0102-A
A6: B0102-B
A7: B0103-A
A8: B0103-B
A9: B0104
A10: B0105
A11: B0106-A
A12: B0106-B
A13: B0106-C
A14: B0107
A15: B0108
A16: B0109
A17: B0110
A18: B0111
A19: B0112
A20: B0113-A
A21: B0113-B
A22: B0114
A23: B0115
A24: B0116
A25: B0117
A26: B0118
A27: B0119-A
A28: B0119-B
A29: B0119-C
A30: B0120
A31: B0121
A32: B0122
A33: B0123
A34: B0124
A35: B0125
A37: B0201-A
A38: B0201-B
A39: B0202-A
A40: B0202-B
A41: B0203
A42: B0204
A43: B0205
A44: B0206
A45: B0207
A46: B0208
A47: B0209
A48: B0210
A49: B0211
A50: B0212
A51: B0213
A52: B0214
A53: B0215
A54: B0216
A55: B0217
A56: B0218
A57: B0219
A58: B0220
A59: B0221
A60: B0222
A61: B0223
A62: B0224
A63: B0225
A65: B0301
A66: B0302
A67: B0303
A68: B0304-A
A69: B0304-B
A70: B0305-A
A71: B0305-B
A72: B0305-C
A73: B0305-D
A74: B0306
A75: B0307
A76: B0308-A
A77: B0308-B
A78: B0308-C
A79: B0309
A80: B0310
A81: B0311
A82: B0312
A83: B0313
A84: B0314
A85: B0315
A86: B0316
A87: B0317
A88: B0318
A89: B0319
A90: B0320
A91: B0321-A
A92: B0321-B
A93: B0321-C
A94: B0321-D
A95: B0322
A96: B0323
A97: B0324
A98: B0325
A100: B0401
A101: B0402
A102: B0403
A103: B0404
A104: B0405
A105: B0406
A106: B0407-A
A107: B0407-B
A108: B0408-A
A109: B0408-B
A110: B0409-A
A111: B0409-B
A112: B0410
A113: B0411
A114: B0412-A
A115: B0412-B
A116: B0413-A
A117: B0413-B
A118: B0413-C
A119: B0414
A120: B0415-A
A121: B0415-B
A122: B0416
A123: B0417
A124: B0418
A125: B0419
A126: B0420
A127: B0421
A128: B0422
A129: B0423
A130: B0424-A
A131: B0424-B
A132: B0425-A
A133: B0425-B
A134: B0501
A135: B0502-A
A136: B0502-B
A137: B0503
A138: B0504
A139: B0505
A140: B0506
A141: B0507
A142: B0508
A143: B0509
A144: B0510
A145: B0511
A146: B0512
A147: B0513
A148: B0514
A149: B0515
A150: B0516
A151: B0517
A152: B0518
A153: B0519
A154: B0520
A155: B0521
A156: B0522
A157: B0523
A158: B0524
A159: B0525
A161: B0601
A162: B0602
A163: B0603
A164: B0604
A165: B0605-A
A166: B0605-B
A167: B0606-A
A168: B0606-B
A169: B0607-A
A170: B0607-B
A171: B0608
A172: B0609-A
A173: B0609-B
A174: B0609-C
A175: B0610
A176: B0611-A
A177: B0611-B
A178: B0612-A
A179: B0612-B
A180: B0613
A181: B0614
A182: B0615
A183: B0616
A184: B0617
A185: B0618
A186: B0619
A187: B0620
A188: B0621
A189: B0622
A190: B0623
A191: B0624
A192: B0625
A193: B0701-A
A194: B0701-B
A195: B0702-A
A196: B0702-B
A197: B0703-A
A198: B0703-B
A199: B0704
A200: B0705-A
A201: B0705-B
A202: B0706
A203: B0707
A204: B0708
A205: B0709
... 259 more rows

Sheet ADRESSES C
G1: ADRESSES C
A3: C0901-A
A4: C0901-B
A5: C0902-A
A6: C0902-B
A7: C0903-A
A8: C0903-B
A9: C0904-A
A10: C0904-B
A11: C0905-A
A12: C0905-B
A13: C0906-A
A14: C0906-B
A15: C0907-A
A16: C0907-B
A17: C0908-A
A18: C0908-B
A19: C0916
A20: C0917
A21: C1001
A22: C1002
A23: C1003
A24: C1004
A25: C1005
A26: C1006
A27: C1007
A28: C1008
A29: C1009
A30: C1010
A31: C1011
A32: C1012
A33: C1013
A34: C1014
A35: C1015
A36: C1016
A37: C1017
A38: C1101
A39: C1102
A40: C1103
A41: C1104
A42: C1105
A43: C1106
A44: C1107
A45: C1108
A46: C1109
A47: C1110
A48: C1111
A49: C1112
A50: C1113
A51: C1114
A52: C1115
A53: C1116
A54: C1117
A55: C1201-A
A56: C1201-B
A57: C1202-A
A58: C1202-B
A59: C1203
A60: C1204
A61: C1205
A62: C1206
A63: C1207
A64: C1208
A65: C1209
A66: C1210
A67: C1211
A68: C1212
A69: C1213
A70: C1214
A71: C1215
A72: C1216
A73: C1217-A
A74: C1217-B
A75: C1301-A
A76: C1301-B1
A77: C1301-B2
A78: C1301-B3
A79: C1302-A
A80: C1302-B
A81: C1303-A
A82: C1303-B
A83: C1304-A
A84: C1304-B
A85: C1305-A
A86: C1305-B
A87: C1305-C
A88: C1305-D
A89: C1306-A
A90: C1306-B1
A91: C1306-B2
A92: C1307-A
A93: C1307-B1
A94: C1307-B2
A95: C1308-A
A96: C1308-B
A97: C1309-A
A98: C1309-B1
A99: C1309-B2
A100: C1310-A
A101: C1310-B
A102: C1311-A1
A103: C1311-A2
A104: C1311-B1
A105: C1311-B2
A106: C1311-B3
A107: C1311-B4
A108: C1311-B5
A109: C1312-A
A110: C1312-B
A111: C1313-A
A112: C1313-B
A113: C1314-A1
A114: C1314-A2
A115: C1314-B1
A116: C1314-B2
A117: C1315-A1
A118: C1315-A2
A119: C1315-A3
A120: C1315-A4
A121: C1315-B
A122: C1316-A
A123: C1316-B
A124: C1317-A1
A125: C1317-A2
A126: C1317-A3
A127: C1317-A4
A128: C1317-A5
A129: C1317-A6
A130: C1317-A7
A131: C1317-B
A132: C1401-A
A133: C1401-B
A134: C1401-B
A135: C1402-A
A136: C1402-B
A137: C1403-A
A138: C1403-B
A139: C1404-A
A140: C1404-B
A141: C1405-A
A142: C1405-B
A143: C1406-A
A144: C1406-B
A145: C1407-A
A146: C1407-B
A147: C1408-A
A148: C1408-B
A149: C1409-A
A150: C1409-B
A151: C1410-A
A152: C1410-B
A153: C1411-B
A154: C1411-A
A155: C1411-B
A156: C1411-C
A157: C1412-A
A158: C1412-B
A159: C1412-C
A160: C1413-A
A161: C1413-B
A162: C1414-A
A163: C1414-B1
A164: C1414-B2
A165: C1415-A
A166: C1415-B
A167: C1416-A
A168: C1416-B
A169: C1416-C
A170: C1417-A
A171: C1417-B1
A172: C1417-B2
A173: C1417-B3

Sheet VALORISATION DES STOCKS A B C
C1: VALORISATION DES STOCKS A B C
A6: POIDS TOTAL A | C6: ='GESTION A'!H447 -> 3820.837 | D6: kg | F6: VALORISATION A | H6: =C6*C14 -> 6877.5066
A7: POIDS TOTAL B | C7: ='GESTION B'!H416 -> 3428.853682 | D7: kg | F7: VALORISATION B | H7: =C7*C14 -> 6171.936628
A8: POIDS TOTAL C | C8: ='GESTION C'!H332 -> 26.419 | D8: kg | F8: VALORISATION C | H8: =C8*C14 -> 47.5542
A12: PRIX MATIERE AU KG | C12: 1.5
A13: COÛT M.O 20% | C13: =(C12*20)/100 -> 0.3
A14: PRIX PIECE EBAUCHEE AU KG | C14: =C12+C13 -> 1.8
D16: =SUM(H6:H8) -> 13096.99743
B17: VALORISATION A B C
